Publisher Label,Publisher URI,"Directorate code","Directorate","Service code","Service","Revenue or capital code","Revenue capital","Cost centre","Cost centre description","Bvsub Category","Bvsub description","Bvsum code","Bvsum description","Account code","Account description","Transaction No","Period","Transaction Date","Amount","Classification code","Classification description","Supplier ID","Supplier description","Company registration number","Company registration number Uri","VAT registration number"
"London Borough of Redbridge","http://opendatacommunities.org/doc/london-borough-council/redbridge","9BNONBVO","Outside the BVACOP Objective Structure","9CNONBVO","Outside the BVACOP Objective Structure","REV","Revenue","R5114","Shu HRA Expenses","02-PREMISES","Premises","02B","Energy costs","4000","Electricity","3548068","202001",16/04/2019 00:00:00,563.08,"39564","Gas Companies","REDACTED DATA","KENT COUNTY COUNCIL (GAS & ELECTRIC)","",,"204269191"
"London Borough of Redbridge","http://opendatacommunities.org/doc/london-borough-council/redbridge","9BNONBVO","Outside the BVACOP Objective Structure","9CNONBVO","Outside the BVACOP Objective Structure","REV","Revenue","R5211","Orchard and Manford Office Costs","02-PREMISES","Premises","02B","Energy costs","4000","Electricity","3548068","202001",11/04/2019 00:00:00,1571.86,"39564","Gas Companies","REDACTED DATA","KENT COUNTY COUNCIL (GAS & ELECTRIC)","",,"204269191"
"London Borough of Redbridge","http://opendatacommunities.org/doc/london-borough-council/redbridge","9BNONBVO","Outside the BVACOP Objective Structure","9CNONBVO","Outside the BVACOP Objective Structure","CAP","Capital","C2170","Temporary Accommodation","99-NONBV","Capital, Balance Sheet and Control","50D","Capital - Site Surveys","9120","Land/Site Surveys","60401800","202001",08/04/2019 00:00:00,35675.18,"12100","Business and Management Consultants","REDACTED DATA","ARCADIS LLP","OC368843","http://opencorporates.com/companies/gb/OC368843","872799950"
"London Borough of Redbridge","http://opendatacommunities.org/doc/london-borough-council/redbridge","6BSOCIALSERV","Social Services","6CCHILLOOKED","Children Looked After","REV","Revenue","R2135","SEN and CD short breaks- commissioned","05-THIRD","Third Party Payments","05H","Private contractors","6903","Respite Care Block Contracts","60402027","202001",17/04/2019 00:00:00,42810,"12960","Camping Sites","REDACTED DATA","LAMBOURNE END","5067695","http://opencorporates.com/companies/gb/5067695",""
"London Borough of Redbridge","http://opendatacommunities.org/doc/london-borough-council/redbridge","9BNONBVO","Outside the BVACOP Objective Structure","9CNONBVO","Outside the BVACOP Objective Structure","REV","Revenue","R7705","Fuel Service","03-TRANSPORT","Transport","03A","Direct - transport costs","5006","Diesel Oil","669705","202001",01/04/2019 00:00:00,35621.86,"57580","Petroleum Products - Mnfrs","REDACTED DATA","EMO OIL LIMITED","5067422","http://opencorporates.com/companies/gb/5067422","844283419"
"London Borough of Redbridge","http://opendatacommunities.org/doc/london-borough-council/redbridge","1BOTHEROPI&E","Other Operating Income & Expenditure","1CTRADSURDEF","Trading Account Surpluses & Deficits","REV","Revenue","R9160","Strategic IT","04-SUPPLIES","Supplies And Services","04E","Services","5754","Consultancy","3547760","202001",09/04/2019 00:00:00,15099.5,"31230","Employment and Recruitment Agencies","REDACTED DATA","ADAM HTT LIMITED T/A ADAM","7718565","http://opencorporates.com/companies/gb/7718565","198573349"
"London Borough of Redbridge","http://opendatacommunities.org/doc/london-borough-council/redbridge","1BOTHEROPI&E","Other Operating Income & Expenditure","1CTRADSURDEF","Trading Account Surpluses & Deficits","REV","Revenue","R9160","Strategic IT","04-SUPPLIES","Supplies And Services","04E","Services","5754","Consultancy","3547760","202001",03/04/2019 00:00:00,19695,"31230","Employment and Recruitment Agencies","REDACTED DATA","ADAM HTT LIMITED T/A ADAM","7718565","http://opencorporates.com/companies/gb/7718565","198573349"
"London Borough of Redbridge","http://opendatacommunities.org/doc/london-borough-council/redbridge","6BADULTSOCIA","Adult Social Care","6CADLEARNDIS","Adults Under 65 with Learning Disabilities","REV","Revenue","R4185","LD - Supported Living","06-TRANSFER","Transfer Payments","06B","Social Services Clients","7066","Supportive Lodgings (Transfer Payments)","91046245","202001",27/03/2019 00:00:00,44670.76,"1266","Accommodation Agencies - Residential","REDACTED DATA","SPENCER & ARLINGTON LTD","4377774","http://opencorporates.com/companies/gb/4377774",""
"London Borough of Redbridge","http://opendatacommunities.org/doc/london-borough-council/redbridge","6BADULTSOCIA","Adult Social Care","6CADLEARNDIS","Adults Under 65 with Learning Disabilities","REV","Revenue","R4185","LD - Supported Living","09-INCOME","Income","09C","Customer and Client Receipts","8553","Care Package Charges","91046245","202001",27/03/2019 00:00:00,-3108.46,"1266","Accommodation Agencies - Residential","REDACTED DATA","SPENCER & ARLINGTON LTD","4377774","http://opencorporates.com/companies/gb/4377774",""
"London Borough of Redbridge","http://opendatacommunities.org/doc/london-borough-council/redbridge","6BADULTSOCIA","Adult Social Care","6CADPHYSDIS","Adults Under 65 with Phys Disab or Sensory Impair","REV","Revenue","R4138","Integrated Community Equipment Services (ICES)","04-SUPPLIES","Supplies And Services","04K","Miscellaneous expenses","6239","Occupational Therapy Equip","60402197","202001",31/03/2019 00:00:00,34429.92,"51520","Mobility Equipment","REDACTED DATA","MILLBROOK HEALTHCARE LTD","833987","http://opencorporates.com/companies/gb/833987","675991080"
"London Borough of Redbridge","http://opendatacommunities.org/doc/london-borough-council/redbridge","6BADULTSOCIA","Adult Social Care","6CADLEARNDIS","Adults Under 65 with Learning Disabilities","REV","Revenue","R4188","LD - Residential Care","05-THIRD","Third Party Payments","05F","Voluntary associations","6802","Residential Homes","91045744","202001",19/03/2019 00:00:00,42083.28,"67860","Schools - Independent and Preparatory","REDACTED DATA","ACORN NORFOLK LTD T/AS ACORN PARK SCHOOL","7448673","http://opencorporates.com/companies/gb/7448673",""
"London Borough of Redbridge","http://opendatacommunities.org/doc/london-borough-council/redbridge","6BADULTSOCIA","Adult Social Care","6CADLEARNDIS","Adults Under 65 with Learning Disabilities","REV","Revenue","R4188","LD - Residential Care","09-INCOME","Income","09C","Customer and Client Receipts","8555","Accommodation Charges","91045744","202001",19/03/2019 00:00:00,-818,"67860","Schools - Independent and Preparatory","REDACTED DATA","ACORN NORFOLK LTD T/AS ACORN PARK SCHOOL","7448673","http://opencorporates.com/companies/gb/7448673",""
"London Borough of Redbridge","http://opendatacommunities.org/doc/london-borough-council/redbridge","9BNONBVO","Outside the BVACOP Objective Structure","9CNONBVO","Outside the BVACOP Objective Structure","BAL","Balance Sheet","B2001","Insurance Fund","99-NONBV","Capital, Balance Sheet and Control","50K","Current Assets","9314","Advance To MMI","70107462","202001",10/04/2019 00:00:00,41262.27,"45415","Insurance - Other","REDACTED DATA","ZURICH MUNICIPAL","",,""
"London Borough of Redbridge","http://opendatacommunities.org/doc/london-borough-council/redbridge","9BNONBVO","Outside the BVACOP Objective Structure","9CNONBVO","Outside the BVACOP Objective Structure","REV","Revenue","R0056","Loans Fund - Revenue Exp","09-INCOME","Income","09D","Interest","8703","Interest On Temporary Investments","70107462","202001",10/04/2019 00:00:00,-96.11,"45415","Insurance - Other","REDACTED DATA","ZURICH MUNICIPAL","",,""
"London Borough of Redbridge","http://opendatacommunities.org/doc/london-borough-council/redbridge","1BOTHEROPI&E","Other Operating Income & Expenditure","1CTRADSURDEF","Trading Account Surpluses & Deficits","REV","Revenue","R9556","CLM Cleaning","02-PREMISES","Premises","02H","Cleaning and domestic supplies","4620","Cleaning Contract Payments","60401722","202001",25/02/2019 00:00:00,34036.23,"15269","Cleaning Services - Commercial","REDACTED DATA","LEWIS & GRAVES PARTNERSHIP LLP","8953594","http://opencorporates.com/companies/gb/8953594","135553810"
"London Borough of Redbridge","http://opendatacommunities.org/doc/london-borough-council/redbridge","1BOTHEROPI&E","Other Operating Income & Expenditure","1CTRADSURDEF","Trading Account Surpluses & Deficits","REV","Revenue","R9252","IT Applications","04-SUPPLIES","Supplies And Services","04F","Communications and computing","5853","Computer Software","60399143","201912",12/03/2019 00:00:00,33834.53,"20703","Computer Systems and Software","REDACTED DATA","PHOENIX SOFTWARE LTD","2548628","http://opencorporates.com/companies/gb/2548628","755349015"
"London Borough of Redbridge","http://opendatacommunities.org/doc/london-borough-council/redbridge","5BGFHOUSING","General Fund Housing","5CHOUSBENADM","Housing Benefits Administration","REV","Revenue","R5771","Benefits Administration","01-EMPLOYEES","Employees","01A","Direct employee expenses","4","Agency Staff - Pay","60400290","202001",25/03/2019 00:00:00,33495,"79980","Training Services","REDACTED DATA","MERITEC LTD","3224622","http://opencorporates.com/companies/gb/3224622","675499571"
"London Borough of Redbridge","http://opendatacommunities.org/doc/london-borough-council/redbridge","1BOTHEROPI&E","Other Operating Income & Expenditure","1CTRADSURDEF","Trading Account Surpluses & Deficits","REV","Revenue","R9252","IT Applications","01-EMPLOYEES","Employees","01A","Direct employee expenses","4","Agency Staff - Pay","60399829","201912",14/03/2019 00:00:00,33000,"20650","Computer Security","REDACTED DATA","INTERCITY MANAGED SERVICES LTD","5180119","http://opencorporates.com/companies/gb/5180119","845064722"
"London Borough of Redbridge","http://opendatacommunities.org/doc/london-borough-council/redbridge","6BADULTSOCIA","Adult Social Care","6CADLEARNDIS","Adults Under 65 with Learning Disabilities","REV","Revenue","R4185","LD - Supported Living","06-TRANSFER","Transfer Payments","06B","Social Services Clients","7066","Supportive Lodgings (Transfer Payments)","91046780","202001",09/04/2019 00:00:00,2296,"64710","Residential Care Homes","REDACTED DATA","SEBOTT SOLUTIONS LTD T/A DIVINE LODGE","5783753","http://opencorporates.com/companies/gb/5783753",""
"London Borough of Redbridge","http://opendatacommunities.org/doc/london-borough-council/redbridge","6BADULTSOCIA","Adult Social Care","6CADLEARNDIS","Adults Under 65 with Learning Disabilities","REV","Revenue","R4185","LD - Supported Living","06-TRANSFER","Transfer Payments","06B","Social Services Clients","7066","Supportive Lodgings (Transfer Payments)","91046780","202001",09/04/2019 00:00:00,4592,"64710","Residential Care Homes","REDACTED DATA","SEBOTT SOLUTIONS LTD T/A DIVINE LODGE","5783753","http://opencorporates.com/companies/gb/5783753",""
"London Borough of Redbridge","http://opendatacommunities.org/doc/london-borough-council/redbridge","6BADULTSOCIA","Adult Social Care","6CADLEARNDIS","Adults Under 65 with Learning Disabilities","REV","Revenue","R4185","LD - Supported Living","06-TRANSFER","Transfer Payments","06B","Social Services Clients","7066","Supportive Lodgings (Transfer Payments)","91046780","202001",09/04/2019 00:00:00,34112,"64710","Residential Care Homes","REDACTED DATA","SEBOTT SOLUTIONS LTD T/A DIVINE LODGE","5783753","http://opencorporates.com/companies/gb/5783753",""
"London Borough of Redbridge","http://opendatacommunities.org/doc/london-borough-council/redbridge","6BADULTSOCIA","Adult Social Care","6CADLEARNDIS","Adults Under 65 with Learning Disabilities","REV","Revenue","R4185","LD - Supported Living","09-INCOME","Income","09C","Customer and Client Receipts","8553","Care Package Charges","91046780","202001",09/04/2019 00:00:00,-163.5,"64710","Residential Care Homes","REDACTED DATA","SEBOTT SOLUTIONS LTD T/A DIVINE LODGE","5783753","http://opencorporates.com/companies/gb/5783753",""
"London Borough of Redbridge","http://opendatacommunities.org/doc/london-borough-council/redbridge","6BADULTSOCIA","Adult Social Care","6CADLEARNDIS","Adults Under 65 with Learning Disabilities","REV","Revenue","R4185","LD - Supported Living","09-INCOME","Income","09C","Customer and Client Receipts","8553","Care Package Charges","91046780","202001",09/04/2019 00:00:00,-81.75,"64710","Residential Care Homes","REDACTED DATA","SEBOTT SOLUTIONS LTD T/A DIVINE LODGE","5783753","http://opencorporates.com/companies/gb/5783753",""
"London Borough of Redbridge","http://opendatacommunities.org/doc/london-borough-council/redbridge","6BADULTSOCIA","Adult Social Care","6CADLEARNDIS","Adults Under 65 with Learning Disabilities","REV","Revenue","R4185","LD - Supported Living","09-INCOME","Income","09C","Customer and Client Receipts","8553","Care Package Charges","91046780","202001",09/04/2019 00:00:00,-1214.57,"64710","Residential Care Homes","REDACTED DATA","SEBOTT SOLUTIONS LTD T/A DIVINE LODGE","5783753","http://opencorporates.com/companies/gb/5783753",""
"London Borough of Redbridge","http://opendatacommunities.org/doc/london-borough-council/redbridge","9BNONBVO","Outside the BVACOP Objective Structure","9CNONBVO","Outside the BVACOP Objective Structure","CAP","Capital","C2170","Temporary Accommodation","99-NONBV","Capital, Balance Sheet and Control","50B","Capital - Contracted Works","9055","External - Consultants Fees","60401801","202001",08/04/2019 00:00:00,32672.71,"12100","Business and Management Consultants","REDACTED DATA","ARCADIS LLP","OC368843","http://opencorporates.com/companies/gb/OC368843","872799950"
"London Borough of Redbridge","http://opendatacommunities.org/doc/london-borough-council/redbridge","9BNONBVO","Outside the BVACOP Objective Structure","9CNONBVO","Outside the BVACOP Objective Structure","BAL","Balance Sheet","B0059","DUMMY VAT ACCOUNT","99-NONBV","Capital, Balance Sheet and Control","50L","Debtors","9359","VAT only invoices","70107611","202001",31/03/2019 00:00:00,36955.05,"47846","Letting Agents","REDACTED DATA","FINEFAIR CONSULTANCY  LTD(NIGHTLY LETS)","4661895","http://opencorporates.com/companies/gb/4661895","809945391"
"London Borough of Redbridge","http://opendatacommunities.org/doc/london-borough-council/redbridge","9BNONBVO","Outside the BVACOP Objective Structure","9CNONBVO","Outside the BVACOP Objective Structure","BAL","Balance Sheet","B0059","DUMMY VAT ACCOUNT","99-NONBV","Capital, Balance Sheet and Control","50L","Debtors","9359","VAT only invoices","70107611","202001",31/03/2019 00:00:00,-36955.05,"47846","Letting Agents","REDACTED DATA","FINEFAIR CONSULTANCY  LTD(NIGHTLY LETS)","4661895","http://opencorporates.com/companies/gb/4661895","809945391"
"London Borough of Redbridge","http://opendatacommunities.org/doc/london-borough-council/redbridge","9BNONBVO","Outside the BVACOP Objective Structure","9CNONBVO","Outside the BVACOP Objective Structure","REV","Revenue","R7705","Fuel Service","03-TRANSPORT","Transport","03A","Direct - transport costs","5006","Diesel Oil","669622","202001",10/04/2019 00:00:00,30730.98,"57580","Petroleum Products - Mnfrs","REDACTED DATA","EMO OIL LIMITED","5067422","http://opencorporates.com/companies/gb/5067422","844283419"
"London Borough of Redbridge","http://opendatacommunities.org/doc/london-borough-council/redbridge","2BENVIRONMEN","Environmental Services","2CWASTECOLLN","Waste Collection","REV","Revenue","R6151","Household Waste","05-THIRD","Third Party Payments","05H","Private contractors","6915","Contractor Payments","60402058","202001",16/04/2019 00:00:00,12783.24,"83380","Waste Disposal Services","REDACTED DATA","MRS ENVIRONMENTAL SERVICES LTD","2175295","http://opencorporates.com/companies/gb/2175295","524394641"
"London Borough of Redbridge","http://opendatacommunities.org/doc/london-borough-council/redbridge","2BENVIRONMEN","Environmental Services","2CWASTECOLLN","Waste Collection","REV","Revenue","R6152","Commercial Waste","05-THIRD","Third Party Payments","05H","Private contractors","6915","Contractor Payments","60402058","202001",16/04/2019 00:00:00,782.03,"83380","Waste Disposal Services","REDACTED DATA","MRS ENVIRONMENTAL SERVICES LTD","2175295","http://opencorporates.com/companies/gb/2175295","524394641"
"London Borough of Redbridge","http://opendatacommunities.org/doc/london-borough-council/redbridge","2BENVIRONMEN","Environmental Services","2CWASTECOLLN","Waste Collection","REV","Revenue","R6154","Bulky Waste Collections","05-THIRD","Third Party Payments","05H","Private contractors","6915","Contractor Payments","60402058","202001",16/04/2019 00:00:00,16880.89,"83380","Waste Disposal Services","REDACTED DATA","MRS ENVIRONMENTAL SERVICES LTD","2175295","http://opencorporates.com/companies/gb/2175295","524394641"
"London Borough of Redbridge","http://opendatacommunities.org/doc/london-borough-council/redbridge","2BENVIRONMEN","Environmental Services","2CWASTECOLLN","Waste Collection","REV","Revenue","R6206","Recycling - Flats","05-THIRD","Third Party Payments","05H","Private contractors","6915","Contractor Payments","60402058","202001",16/04/2019 00:00:00,40.26,"83380","Waste Disposal Services","REDACTED DATA","MRS ENVIRONMENTAL SERVICES LTD","2175295","http://opencorporates.com/companies/gb/2175295","524394641"
"London Borough of Redbridge","http://opendatacommunities.org/doc/london-borough-council/redbridge","4BMANGT&SUPP","Management & Support Services","4CHIGHRDROUT","Highways/Roads (Routine)","REV","Revenue","R7079","Highways and Transportation Management","01-EMPLOYEES","Employees","01A","Direct employee expenses","4","Agency Staff - Pay","3545672","202001",28/03/2019 00:00:00,30303.67,"18632","Civil Engineers","REDACTED DATA","KENSON CONTRACTORS BENINGTON LTD","1314691","http://opencorporates.com/companies/gb/1314691","301629589"
"London Borough of Redbridge","http://opendatacommunities.org/doc/london-borough-council/redbridge","6BADULTSOCIA","Adult Social Care","6CADLEARNDIS","Adults Under 65 with Learning Disabilities","REV","Revenue","R4241","CCG � LD Continuing Care","06-TRANSFER","Transfer Payments","06B","Social Services Clients","7066","Supportive Lodgings (Transfer Payments)","91046707","202001",11/04/2019 00:00:00,35896.32,"64710","Residential Care Homes","REDACTED DATA","TLC CARE HOMES LTD","3193730","http://opencorporates.com/companies/gb/3193730",""
"London Borough of Redbridge","http://opendatacommunities.org/doc/london-borough-council/redbridge","6BADULTSOCIA","Adult Social Care","6CADLEARNDIS","Adults Under 65 with Learning Disabilities","REV","Revenue","R4241","CCG � LD Continuing Care","06-TRANSFER","Transfer Payments","06B","Social Services Clients","7066","Supportive Lodgings (Transfer Payments)","91046707","202001",11/04/2019 00:00:00,157.44,"64710","Residential Care Homes","REDACTED DATA","TLC CARE HOMES LTD","3193730","http://opencorporates.com/companies/gb/3193730",""
"London Borough of Redbridge","http://opendatacommunities.org/doc/london-borough-council/redbridge","9BNONBVO","Outside the BVACOP Objective Structure","9CNONBVO","Outside the BVACOP Objective Structure","REV","Revenue","R5032","Staircase Lighting HRA","02-PREMISES","Premises","02B","Energy costs","4000","Electricity","3545567","202001",27/02/2019 00:00:00,-28.44,"39564","Gas Companies","REDACTED DATA","KENT COUNTY COUNCIL (GAS & ELECTRIC)","",,"204269191"
"London Borough of Redbridge","http://opendatacommunities.org/doc/london-borough-council/redbridge","9BNONBVO","Outside the BVACOP Objective Structure","9CNONBVO","Outside the BVACOP Objective Structure","REV","Revenue","R5032","Staircase Lighting HRA","02-PREMISES","Premises","02B","Energy costs","4000","Electricity","3545567","202001",27/02/2019 00:00:00,2.13,"39564","Gas Companies","REDACTED DATA","KENT COUNTY COUNCIL (GAS & ELECTRIC)","",,"204269191"
"London Borough of Redbridge","http://opendatacommunities.org/doc/london-borough-council/redbridge","9BNONBVO","Outside the BVACOP Objective Structure","9CNONBVO","Outside the BVACOP Objective Structure","REV","Revenue","R5032","Staircase Lighting HRA","02-PREMISES","Premises","02B","Energy costs","4000","Electricity","3545567","202001",14/03/2019 00:00:00,311.19,"39564","Gas Companies","REDACTED DATA","KENT COUNTY COUNCIL (GAS & ELECTRIC)","",,"204269191"
"London Borough of Redbridge","http://opendatacommunities.org/doc/london-borough-council/redbridge","9BNONBVO","Outside the BVACOP Objective Structure","9CNONBVO","Outside the BVACOP Objective Structure","REV","Revenue","R5032","Staircase Lighting HRA","02-PREMISES","Premises","02B","Energy costs","4000","Electricity","3545567","202001",19/03/2019 00:00:00,60.96,"39564","Gas Companies","REDACTED DATA","KENT COUNTY COUNCIL (GAS & ELECTRIC)","",,"204269191"
"London Borough of Redbridge","http://opendatacommunities.org/doc/london-borough-council/redbridge","9BNONBVO","Outside the BVACOP Objective Structure","9CNONBVO","Outside the BVACOP Objective Structure","REV","Revenue","R5032","Staircase Lighting HRA","02-PREMISES","Premises","02B","Energy costs","4000","Electricity","3545567","202001",14/03/2019 00:00:00,264.15,"39564","Gas Companies","REDACTED DATA","KENT COUNTY COUNCIL (GAS & ELECTRIC)","",,"204269191"
"London Borough of Redbridge","http://opendatacommunities.org/doc/london-borough-council/redbridge","9BNONBVO","Outside the BVACOP Objective Structure","9CNONBVO","Outside the BVACOP Objective Structure","REV","Revenue","R5032","Staircase Lighting HRA","02-PREMISES","Premises","02B","Energy costs","4000","Electricity","3545567","202001",18/03/2019 00:00:00,112.39,"39564","Gas Companies","REDACTED DATA","KENT COUNTY COUNCIL (GAS & ELECTRIC)","",,"204269191"
"London Borough of Redbridge","http://opendatacommunities.org/doc/london-borough-council/redbridge","9BNONBVO","Outside the BVACOP Objective Structure","9CNONBVO","Outside the BVACOP Objective Structure","REV","Revenue","R5032","Staircase Lighting HRA","02-PREMISES","Premises","02B","Energy costs","4000","Electricity","3545567","202001",27/02/2019 00:00:00,73.59,"39564","Gas Companies","REDACTED DATA","KENT COUNTY COUNCIL (GAS & ELECTRIC)","",,"204269191"
"London Borough of Redbridge","http://opendatacommunities.org/doc/london-borough-council/redbridge","9BNONBVO","Outside the BVACOP Objective Structure","9CNONBVO","Outside the BVACOP Objective Structure","REV","Revenue","R5032","Staircase Lighting HRA","02-PREMISES","Premises","02B","Energy costs","4000","Electricity","3545567","202001",27/02/2019 00:00:00,321.53,"39564","Gas Companies","REDACTED DATA","KENT COUNTY COUNCIL (GAS & ELECTRIC)","",,"204269191"
"London Borough of Redbridge","http://opendatacommunities.org/doc/london-borough-council/redbridge","9BNONBVO","Outside the BVACOP Objective Structure","9CNONBVO","Outside the BVACOP Objective Structure","REV","Revenue","R5032","Staircase Lighting HRA","02-PREMISES","Premises","02B","Energy costs","4000","Electricity","3545567","202001",27/02/2019 00:00:00,-350.86,"39564","Gas Companies","REDACTED DATA","KENT COUNTY COUNCIL (GAS & ELECTRIC)","",,"204269191"
"London Borough of Redbridge","http://opendatacommunities.org/doc/london-borough-council/redbridge","9BNONBVO","Outside the BVACOP Objective Structure","9CNONBVO","Outside the BVACOP Objective Structure","REV","Revenue","R0026","Collection Fund","05-THIRD","Third Party Payments","05E","Government departments","6752","GLA Council Tax � Precepts","60401561","202001",01/04/2019 00:00:00,3027809.77,"48583","Local Government","REDACTED DATA","GREATER LONDON AUTHORITY","",,""
"London Borough of Redbridge","http://opendatacommunities.org/doc/london-borough-council/redbridge","5BGFHOUSING","General Fund Housing","5CHOMELESS","Homelessness","REV","Revenue","R5630","HAC Temporary Accomodation","05-THIRD","Third Party Payments","05H","Private contractors","6900","Nightly Let Plus Charges","3547061","202001",31/03/2019 00:00:00,1116,"31230","Employment and Recruitment Agencies","REDACTED DATA","ADAM HTT LIMITED T/A ADAM","7718565","http://opencorporates.com/companies/gb/7718565","198573349"
"London Borough of Redbridge","http://opendatacommunities.org/doc/london-borough-council/redbridge","5BGFHOUSING","General Fund Housing","5CHOMELESS","Homelessness","REV","Revenue","R5630","HAC Temporary Accomodation","05-THIRD","Third Party Payments","05H","Private contractors","6900","Nightly Let Plus Charges","3547061","202001",31/03/2019 00:00:00,899,"31230","Employment and Recruitment Agencies","REDACTED DATA","ADAM HTT LIMITED T/A ADAM","7718565","http://opencorporates.com/companies/gb/7718565","198573349"
"London Borough of Redbridge","http://opendatacommunities.org/doc/london-borough-council/redbridge","5BGFHOUSING","General Fund Housing","5CHOMELESS","Homelessness","REV","Revenue","R5630","HAC Temporary Accomodation","05-THIRD","Third Party Payments","05H","Private contractors","6900","Nightly Let Plus Charges","3547061","202001",31/03/2019 00:00:00,958.83,"31230","Employment and Recruitment Agencies","REDACTED DATA","ADAM HTT LIMITED T/A ADAM","7718565","http://opencorporates.com/companies/gb/7718565","198573349"
"London Borough of Redbridge","http://opendatacommunities.org/doc/london-borough-council/redbridge","5BGFHOUSING","General Fund Housing","5CHOMELESS","Homelessness","REV","Revenue","R5630","HAC Temporary Accomodation","05-THIRD","Third Party Payments","05H","Private contractors","6900","Nightly Let Plus Charges","3547061","202001",31/03/2019 00:00:00,1395,"31230","Employment and Recruitment Agencies","REDACTED DATA","ADAM HTT LIMITED T/A ADAM","7718565","http://opencorporates.com/companies/gb/7718565","198573349"
"London Borough of Redbridge","http://opendatacommunities.org/doc/london-borough-council/redbridge","5BGFHOUSING","General Fund Housing","5CHOMELESS","Homelessness","REV","Revenue","R5630","HAC Temporary Accomodation","05-THIRD","Third Party Payments","05H","Private contractors","6900","Nightly Let Plus Charges","3547061","202001",31/03/2019 00:00:00,1395,"31230","Employment and Recruitment Agencies","REDACTED DATA","ADAM HTT LIMITED T/A ADAM","7718565","http://opencorporates.com/companies/gb/7718565","198573349"
"London Borough of Redbridge","http://opendatacommunities.org/doc/london-borough-council/redbridge","5BGFHOUSING","General Fund Housing","5CHOMELESS","Homelessness","REV","Revenue","R5630","HAC Temporary Accomodation","05-THIRD","Third Party Payments","05H","Private contractors","6900","Nightly Let Plus Charges","3547061","202001",31/03/2019 00:00:00,1178,"31230","Employment and Recruitment Agencies","REDACTED DATA","ADAM HTT LIMITED T/A ADAM","7718565","http://opencorporates.com/companies/gb/7718565","198573349"
"London Borough of Redbridge","http://opendatacommunities.org/doc/london-borough-council/redbridge","5BGFHOUSING","General Fund Housing","5CHOMELESS","Homelessness","REV","Revenue","R5630","HAC Temporary Accomodation","05-THIRD","Third Party Payments","05H","Private contractors","6900","Nightly Let Plus Charges","3547061","202001",31/03/2019 00:00:00,930,"31230","Employment and Recruitment Agencies","REDACTED DATA","ADAM HTT LIMITED T/A ADAM","7718565","http://opencorporates.com/companies/gb/7718565","198573349"
"London Borough of Redbridge","http://opendatacommunities.org/doc/london-borough-council/redbridge","5BGFHOUSING","General Fund Housing","5CHOMELESS","Homelessness","REV","Revenue","R5630","HAC Temporary Accomodation","05-THIRD","Third Party Payments","05H","Private contractors","6900","Nightly Let Plus Charges","3547061","202001",31/03/2019 00:00:00,1023,"31230","Employment and Recruitment Agencies","REDACTED DATA","ADAM HTT LIMITED T/A ADAM","7718565","http://opencorporates.com/companies/gb/7718565","198573349"
"London Borough of Redbridge","http://opendatacommunities.org/doc/london-borough-council/redbridge","5BGFHOUSING","General Fund Housing","5CHOMELESS","Homelessness","REV","Revenue","R5630","HAC Temporary Accomodation","05-THIRD","Third Party Payments","05H","Private contractors","6900","Nightly Let Plus Charges","3547061","202001",31/03/2019 00:00:00,797.94,"31230","Employment and Recruitment Agencies","REDACTED DATA","ADAM HTT LIMITED T/A ADAM","7718565","http://opencorporates.com/companies/gb/7718565","198573349"
"London Borough of Redbridge","http://opendatacommunities.org/doc/london-borough-council/redbridge","5BGFHOUSING","General Fund Housing","5CHOMELESS","Homelessness","REV","Revenue","R5630","HAC Temporary Accomodation","05-THIRD","Third Party Payments","05H","Private contractors","6900","Nightly Let Plus Charges","3547061","202001",31/03/2019 00:00:00,797.94,"31230","Employment and Recruitment Agencies","REDACTED DATA","ADAM HTT LIMITED T/A ADAM","7718565","http://opencorporates.com/companies/gb/7718565","198573349"
"London Borough of Redbridge","http://opendatacommunities.org/doc/london-borough-council/redbridge","9BNONBVO","Outside the BVACOP Objective Structure","9CNONBVO","Outside the BVACOP Objective Structure","REV","Revenue","R5032","Staircase Lighting HRA","02-PREMISES","Premises","02B","Energy costs","4000","Electricity","3545567","202001",18/03/2019 00:00:00,61.65,"39564","Gas Companies","REDACTED DATA","KENT COUNTY COUNCIL (GAS & ELECTRIC)","",,"204269191"
"London Borough of Redbridge","http://opendatacommunities.org/doc/london-borough-council/redbridge","9BNONBVO","Outside the BVACOP Objective Structure","9CNONBVO","Outside the BVACOP Objective Structure","REV","Revenue","R5032","Staircase Lighting HRA","02-PREMISES","Premises","02B","Energy costs","4000","Electricity","3545567","202001",18/03/2019 00:00:00,63.9,"39564","Gas Companies","REDACTED DATA","KENT COUNTY COUNCIL (GAS & ELECTRIC)","",,"204269191"
"London Borough of Redbridge","http://opendatacommunities.org/doc/london-borough-council/redbridge","9BNONBVO","Outside the BVACOP Objective Structure","9CNONBVO","Outside the BVACOP Objective Structure","REV","Revenue","R5032","Staircase Lighting HRA","02-PREMISES","Premises","02B","Energy costs","4000","Electricity","3545567","202001",15/03/2019 00:00:00,70.55,"39564","Gas Companies","REDACTED DATA","KENT COUNTY COUNCIL (GAS & ELECTRIC)","",,"204269191"
"London Borough of Redbridge","http://opendatacommunities.org/doc/london-borough-council/redbridge","9BNONBVO","Outside the BVACOP Objective Structure","9CNONBVO","Outside the BVACOP Objective Structure","REV","Revenue","R5032","Staircase Lighting HRA","02-PREMISES","Premises","02B","Energy costs","4000","Electricity","3545567","202001",18/03/2019 00:00:00,54.26,"39564","Gas Companies","REDACTED DATA","KENT COUNTY COUNCIL (GAS & ELECTRIC)","",,"204269191"
"London Borough of Redbridge","http://opendatacommunities.org/doc/london-borough-council/redbridge","9BNONBVO","Outside the BVACOP Objective Structure","9CNONBVO","Outside the BVACOP Objective Structure","REV","Revenue","R5032","Staircase Lighting HRA","02-PREMISES","Premises","02B","Energy costs","4000","Electricity","3545567","202001",19/03/2019 00:00:00,78.82,"39564","Gas Companies","REDACTED DATA","KENT COUNTY COUNCIL (GAS & ELECTRIC)","",,"204269191"
"London Borough of Redbridge","http://opendatacommunities.org/doc/london-borough-council/redbridge","9BNONBVO","Outside the BVACOP Objective Structure","9CNONBVO","Outside the BVACOP Objective Structure","REV","Revenue","R5032","Staircase Lighting HRA","02-PREMISES","Premises","02B","Energy costs","4000","Electricity","3545567","202001",19/03/2019 00:00:00,80.12,"39564","Gas Companies","REDACTED DATA","KENT COUNTY COUNCIL (GAS & ELECTRIC)","",,"204269191"
"London Borough of Redbridge","http://opendatacommunities.org/doc/london-borough-council/redbridge","9BNONBVO","Outside the BVACOP Objective Structure","9CNONBVO","Outside the BVACOP Objective Structure","REV","Revenue","R5032","Staircase Lighting HRA","02-PREMISES","Premises","02B","Energy costs","4000","Electricity","3545567","202001",19/03/2019 00:00:00,71.66,"39564","Gas Companies","REDACTED DATA","KENT COUNTY COUNCIL (GAS & ELECTRIC)","",,"204269191"
"London Borough of Redbridge","http://opendatacommunities.org/doc/london-borough-council/redbridge","9BNONBVO","Outside the BVACOP Objective Structure","9CNONBVO","Outside the BVACOP Objective Structure","REV","Revenue","R5032","Staircase Lighting HRA","02-PREMISES","Premises","02B","Energy costs","4000","Electricity","3545567","202001",18/03/2019 00:00:00,52.62,"39564","Gas Companies","REDACTED DATA","KENT COUNTY COUNCIL (GAS & ELECTRIC)","",,"204269191"
"London Borough of Redbridge","http://opendatacommunities.org/doc/london-borough-council/redbridge","9BNONBVO","Outside the BVACOP Objective Structure","9CNONBVO","Outside the BVACOP Objective Structure","REV","Revenue","R5032","Staircase Lighting HRA","02-PREMISES","Premises","02B","Energy costs","4000","Electricity","3545567","202001",19/03/2019 00:00:00,79.64,"39564","Gas Companies","REDACTED DATA","KENT COUNTY COUNCIL (GAS & ELECTRIC)","",,"204269191"
"London Borough of Redbridge","http://opendatacommunities.org/doc/london-borough-council/redbridge","9BNONBVO","Outside the BVACOP Objective Structure","9CNONBVO","Outside the BVACOP Objective Structure","REV","Revenue","R5032","Staircase Lighting HRA","02-PREMISES","Premises","02B","Energy costs","4000","Electricity","3545567","202001",19/03/2019 00:00:00,89.31,"39564","Gas Companies","REDACTED DATA","KENT COUNTY COUNCIL (GAS & ELECTRIC)","",,"204269191"
"London Borough of Redbridge","http://opendatacommunities.org/doc/london-borough-council/redbridge","9BNONBVO","Outside the BVACOP Objective Structure","9CNONBVO","Outside the BVACOP Objective Structure","REV","Revenue","R5032","Staircase Lighting HRA","02-PREMISES","Premises","02B","Energy costs","4000","Electricity","3545567","202001",18/03/2019 00:00:00,72.03,"39564","Gas Companies","REDACTED DATA","KENT COUNTY COUNCIL (GAS & ELECTRIC)","",,"204269191"
"London Borough of Redbridge","http://opendatacommunities.org/doc/london-borough-council/redbridge","9BNONBVO","Outside the BVACOP Objective Structure","9CNONBVO","Outside the BVACOP Objective Structure","REV","Revenue","R5032","Staircase Lighting HRA","02-PREMISES","Premises","02B","Energy costs","4000","Electricity","3545567","202001",19/03/2019 00:00:00,72.22,"39564","Gas Companies","REDACTED DATA","KENT COUNTY COUNCIL (GAS & ELECTRIC)","",,"204269191"
"London Borough of Redbridge","http://opendatacommunities.org/doc/london-borough-council/redbridge","9BNONBVO","Outside the BVACOP Objective Structure","9CNONBVO","Outside the BVACOP Objective Structure","REV","Revenue","R5032","Staircase Lighting HRA","02-PREMISES","Premises","02B","Energy costs","4000","Electricity","3545567","202001",15/03/2019 00:00:00,58.93,"39564","Gas Companies","REDACTED DATA","KENT COUNTY COUNCIL (GAS & ELECTRIC)","",,"204269191"
"London Borough of Redbridge","http://opendatacommunities.org/doc/london-borough-council/redbridge","9BNONBVO","Outside the BVACOP Objective Structure","9CNONBVO","Outside the BVACOP Objective Structure","REV","Revenue","R5032","Staircase Lighting HRA","02-PREMISES","Premises","02B","Energy costs","4000","Electricity","3545567","202001",20/03/2019 00:00:00,82.06,"39564","Gas Companies","REDACTED DATA","KENT COUNTY COUNCIL (GAS & ELECTRIC)","",,"204269191"
"London Borough of Redbridge","http://opendatacommunities.org/doc/london-borough-council/redbridge","9BNONBVO","Outside the BVACOP Objective Structure","9CNONBVO","Outside the BVACOP Objective Structure","REV","Revenue","R5032","Staircase Lighting HRA","02-PREMISES","Premises","02B","Energy costs","4000","Electricity","3545567","202001",19/03/2019 00:00:00,75.9,"39564","Gas Companies","REDACTED DATA","KENT COUNTY COUNCIL (GAS & ELECTRIC)","",,"204269191"
"London Borough of Redbridge","http://opendatacommunities.org/doc/london-borough-council/redbridge","9BNONBVO","Outside the BVACOP Objective Structure","9CNONBVO","Outside the BVACOP Objective Structure","REV","Revenue","R5032","Staircase Lighting HRA","02-PREMISES","Premises","02B","Energy costs","4000","Electricity","3545567","202001",27/02/2019 00:00:00,-673.04,"39564","Gas Companies","REDACTED DATA","KENT COUNTY COUNCIL (GAS & ELECTRIC)","",,"204269191"
"London Borough of Redbridge","http://opendatacommunities.org/doc/london-borough-council/redbridge","9BNONBVO","Outside the BVACOP Objective Structure","9CNONBVO","Outside the BVACOP Objective Structure","REV","Revenue","R5032","Staircase Lighting HRA","02-PREMISES","Premises","02B","Energy costs","4000","Electricity","3545567","202001",18/03/2019 00:00:00,74.45,"39564","Gas Companies","REDACTED DATA","KENT COUNTY COUNCIL (GAS & ELECTRIC)","",,"204269191"
"London Borough of Redbridge","http://opendatacommunities.org/doc/london-borough-council/redbridge","9BNONBVO","Outside the BVACOP Objective Structure","9CNONBVO","Outside the BVACOP Objective Structure","REV","Revenue","R5032","Staircase Lighting HRA","02-PREMISES","Premises","02B","Energy costs","4000","Electricity","3545567","202001",19/03/2019 00:00:00,60.47,"39564","Gas Companies","REDACTED DATA","KENT COUNTY COUNCIL (GAS & ELECTRIC)","",,"204269191"
"London Borough of Redbridge","http://opendatacommunities.org/doc/london-borough-council/redbridge","9BNONBVO","Outside the BVACOP Objective Structure","9CNONBVO","Outside the BVACOP Objective Structure","REV","Revenue","R5032","Staircase Lighting HRA","02-PREMISES","Premises","02B","Energy costs","4000","Electricity","3545567","202001",27/02/2019 00:00:00,74.56,"39564","Gas Companies","REDACTED DATA","KENT COUNTY COUNCIL (GAS & ELECTRIC)","",,"204269191"
"London Borough of Redbridge","http://opendatacommunities.org/doc/london-borough-council/redbridge","9BNONBVO","Outside the BVACOP Objective Structure","9CNONBVO","Outside the BVACOP Objective Structure","REV","Revenue","R5032","Staircase Lighting HRA","02-PREMISES","Premises","02B","Energy costs","4000","Electricity","3545567","202001",27/02/2019 00:00:00,-178.62,"39564","Gas Companies","REDACTED DATA","KENT COUNTY COUNCIL (GAS & ELECTRIC)","",,"204269191"
"London Borough of Redbridge","http://opendatacommunities.org/doc/london-borough-council/redbridge","9BNONBVO","Outside the BVACOP Objective Structure","9CNONBVO","Outside the BVACOP Objective Structure","REV","Revenue","R5032","Staircase Lighting HRA","02-PREMISES","Premises","02B","Energy costs","4000","Electricity","3545567","202001",21/02/2019 00:00:00,-85.81,"39564","Gas Companies","REDACTED DATA","KENT COUNTY COUNCIL (GAS & ELECTRIC)","",,"204269191"
"London Borough of Redbridge","http://opendatacommunities.org/doc/london-borough-council/redbridge","9BNONBVO","Outside the BVACOP Objective Structure","9CNONBVO","Outside the BVACOP Objective Structure","REV","Revenue","R5032","Staircase Lighting HRA","02-PREMISES","Premises","02B","Energy costs","4000","Electricity","3545567","202001",21/02/2019 00:00:00,-49.68,"39564","Gas Companies","REDACTED DATA","KENT COUNTY COUNCIL (GAS & ELECTRIC)","",,"204269191"
"London Borough of Redbridge","http://opendatacommunities.org/doc/london-borough-council/redbridge","9BNONBVO","Outside the BVACOP Objective Structure","9CNONBVO","Outside the BVACOP Objective Structure","REV","Revenue","R5032","Staircase Lighting HRA","02-PREMISES","Premises","02B","Energy costs","4000","Electricity","3545567","202001",15/03/2019 00:00:00,81.21,"39564","Gas Companies","REDACTED DATA","KENT COUNTY COUNCIL (GAS & ELECTRIC)","",,"204269191"
"London Borough of Redbridge","http://opendatacommunities.org/doc/london-borough-council/redbridge","9BNONBVO","Outside the BVACOP Objective Structure","9CNONBVO","Outside the BVACOP Objective Structure","REV","Revenue","R5032","Staircase Lighting HRA","02-PREMISES","Premises","02B","Energy costs","4000","Electricity","3545567","202001",18/03/2019 00:00:00,995.23,"39564","Gas Companies","REDACTED DATA","KENT COUNTY COUNCIL (GAS & ELECTRIC)","",,"204269191"
"London Borough of Redbridge","http://opendatacommunities.org/doc/london-borough-council/redbridge","9BNONBVO","Outside the BVACOP Objective Structure","9CNONBVO","Outside the BVACOP Objective Structure","REV","Revenue","R5032","Staircase Lighting HRA","02-PREMISES","Premises","02B","Energy costs","4000","Electricity","3545567","202001",18/03/2019 00:00:00,406.43,"39564","Gas Companies","REDACTED DATA","KENT COUNTY COUNCIL (GAS & ELECTRIC)","",,"204269191"
"London Borough of Redbridge","http://opendatacommunities.org/doc/london-borough-council/redbridge","9BNONBVO","Outside the BVACOP Objective Structure","9CNONBVO","Outside the BVACOP Objective Structure","REV","Revenue","R5032","Staircase Lighting HRA","02-PREMISES","Premises","02B","Energy costs","4000","Electricity","3545567","202001",18/03/2019 00:00:00,60.79,"39564","Gas Companies","REDACTED DATA","KENT COUNTY COUNCIL (GAS & ELECTRIC)","",,"204269191"
"London Borough of Redbridge","http://opendatacommunities.org/doc/london-borough-council/redbridge","9BNONBVO","Outside the BVACOP Objective Structure","9CNONBVO","Outside the BVACOP Objective Structure","REV","Revenue","R5032","Staircase Lighting HRA","02-PREMISES","Premises","02B","Energy costs","4000","Electricity","3545567","202001",19/03/2019 00:00:00,75.21,"39564","Gas Companies","REDACTED DATA","KENT COUNTY COUNCIL (GAS & ELECTRIC)","",,"204269191"
"London Borough of Redbridge","http://opendatacommunities.org/doc/london-borough-council/redbridge","9BNONBVO","Outside the BVACOP Objective Structure","9CNONBVO","Outside the BVACOP Objective Structure","REV","Revenue","R5032","Staircase Lighting HRA","02-PREMISES","Premises","02B","Energy costs","4000","Electricity","3545567","202001",18/03/2019 00:00:00,71.63,"39564","Gas Companies","REDACTED DATA","KENT COUNTY COUNCIL (GAS & ELECTRIC)","",,"204269191"
"London Borough of Redbridge","http://opendatacommunities.org/doc/london-borough-council/redbridge","9BNONBVO","Outside the BVACOP Objective Structure","9CNONBVO","Outside the BVACOP Objective Structure","REV","Revenue","R5032","Staircase Lighting HRA","02-PREMISES","Premises","02B","Energy costs","4000","Electricity","3545567","202001",15/03/2019 00:00:00,72.42,"39564","Gas Companies","REDACTED DATA","KENT COUNTY COUNCIL (GAS & ELECTRIC)","",,"204269191"
"London Borough of Redbridge","http://opendatacommunities.org/doc/london-borough-council/redbridge","9BNONBVO","Outside the BVACOP Objective Structure","9CNONBVO","Outside the BVACOP Objective Structure","REV","Revenue","R5032","Staircase Lighting HRA","02-PREMISES","Premises","02B","Energy costs","4000","Electricity","3545567","202001",18/03/2019 00:00:00,75.59,"39564","Gas Companies","REDACTED DATA","KENT COUNTY COUNCIL (GAS & ELECTRIC)","",,"204269191"
"London Borough of Redbridge","http://opendatacommunities.org/doc/london-borough-council/redbridge","9BNONBVO","Outside the BVACOP Objective Structure","9CNONBVO","Outside the BVACOP Objective Structure","REV","Revenue","R5032","Staircase Lighting HRA","02-PREMISES","Premises","02B","Energy costs","4000","Electricity","3545567","202001",15/03/2019 00:00:00,81.35,"39564","Gas Companies","REDACTED DATA","KENT COUNTY COUNCIL (GAS & ELECTRIC)","",,"204269191"
"London Borough of Redbridge","http://opendatacommunities.org/doc/london-borough-council/redbridge","9BNONBVO","Outside the BVACOP Objective Structure","9CNONBVO","Outside the BVACOP Objective Structure","REV","Revenue","R5032","Staircase Lighting HRA","02-PREMISES","Premises","02B","Energy costs","4000","Electricity","3545567","202001",15/03/2019 00:00:00,67.85,"39564","Gas Companies","REDACTED DATA","KENT COUNTY COUNCIL (GAS & ELECTRIC)","",,"204269191"
"London Borough of Redbridge","http://opendatacommunities.org/doc/london-borough-council/redbridge","9BNONBVO","Outside the BVACOP Objective Structure","9CNONBVO","Outside the BVACOP Objective Structure","REV","Revenue","R5032","Staircase Lighting HRA","02-PREMISES","Premises","02B","Energy costs","4000","Electricity","3545567","202001",19/03/2019 00:00:00,54.88,"39564","Gas Companies","REDACTED DATA","KENT COUNTY COUNCIL (GAS & ELECTRIC)","",,"204269191"
"London Borough of Redbridge","http://opendatacommunities.org/doc/london-borough-council/redbridge","9BNONBVO","Outside the BVACOP Objective Structure","9CNONBVO","Outside the BVACOP Objective Structure","REV","Revenue","R5032","Staircase Lighting HRA","02-PREMISES","Premises","02B","Energy costs","4000","Electricity","3545567","202001",14/03/2019 00:00:00,151.86,"39564","Gas Companies","REDACTED DATA","KENT COUNTY COUNCIL (GAS & ELECTRIC)","",,"204269191"
"London Borough of Redbridge","http://opendatacommunities.org/doc/london-borough-council/redbridge","9BNONBVO","Outside the BVACOP Objective Structure","9CNONBVO","Outside the BVACOP Objective Structure","REV","Revenue","R5032","Staircase Lighting HRA","02-PREMISES","Premises","02B","Energy costs","4000","Electricity","3545567","202001",19/03/2019 00:00:00,56.67,"39564","Gas Companies","REDACTED DATA","KENT COUNTY COUNCIL (GAS & ELECTRIC)","",,"204269191"
"London Borough of Redbridge","http://opendatacommunities.org/doc/london-borough-council/redbridge","9BNONBVO","Outside the BVACOP Objective Structure","9CNONBVO","Outside the BVACOP Objective Structure","REV","Revenue","R5032","Staircase Lighting HRA","02-PREMISES","Premises","02B","Energy costs","4000","Electricity","3545567","202001",18/03/2019 00:00:00,57.64,"39564","Gas Companies","REDACTED DATA","KENT COUNTY COUNCIL (GAS & ELECTRIC)","",,"204269191"
"London Borough of Redbridge","http://opendatacommunities.org/doc/london-borough-council/redbridge","9BNONBVO","Outside the BVACOP Objective Structure","9CNONBVO","Outside the BVACOP Objective Structure","REV","Revenue","R5032","Staircase Lighting HRA","02-PREMISES","Premises","02B","Energy costs","4000","Electricity","3545567","202001",19/03/2019 00:00:00,63.39,"39564","Gas Companies","REDACTED DATA","KENT COUNTY COUNCIL (GAS & ELECTRIC)","",,"204269191"
"London Borough of Redbridge","http://opendatacommunities.org/doc/london-borough-council/redbridge","9BNONBVO","Outside the BVACOP Objective Structure","9CNONBVO","Outside the BVACOP Objective Structure","REV","Revenue","R5032","Staircase Lighting HRA","02-PREMISES","Premises","02B","Energy costs","4000","Electricity","3545567","202001",18/03/2019 00:00:00,72.12,"39564","Gas Companies","REDACTED DATA","KENT COUNTY COUNCIL (GAS & ELECTRIC)","",,"204269191"
"London Borough of Redbridge","http://opendatacommunities.org/doc/london-borough-council/redbridge","9BNONBVO","Outside the BVACOP Objective Structure","9CNONBVO","Outside the BVACOP Objective Structure","REV","Revenue","R5032","Staircase Lighting HRA","02-PREMISES","Premises","02B","Energy costs","4000","Electricity","3545567","202001",19/03/2019 00:00:00,69.04,"39564","Gas Companies","REDACTED DATA","KENT COUNTY COUNCIL (GAS & ELECTRIC)","",,"204269191"
"London Borough of Redbridge","http://opendatacommunities.org/doc/london-borough-council/redbridge","9BNONBVO","Outside the BVACOP Objective Structure","9CNONBVO","Outside the BVACOP Objective Structure","REV","Revenue","R5032","Staircase Lighting HRA","02-PREMISES","Premises","02B","Energy costs","4000","Electricity","3545567","202001",18/03/2019 00:00:00,63.53,"39564","Gas Companies","REDACTED DATA","KENT COUNTY COUNCIL (GAS & ELECTRIC)","",,"204269191"
"London Borough of Redbridge","http://opendatacommunities.org/doc/london-borough-council/redbridge","9BNONBVO","Outside the BVACOP Objective Structure","9CNONBVO","Outside the BVACOP Objective Structure","REV","Revenue","R5032","Staircase Lighting HRA","02-PREMISES","Premises","02B","Energy costs","4000","Electricity","3545567","202001",15/03/2019 00:00:00,1027.73,"39564","Gas Companies","REDACTED DATA","KENT COUNTY COUNCIL (GAS & ELECTRIC)","",,"204269191"
"London Borough of Redbridge","http://opendatacommunities.org/doc/london-borough-council/redbridge","9BNONBVO","Outside the BVACOP Objective Structure","9CNONBVO","Outside the BVACOP Objective Structure","REV","Revenue","R5032","Staircase Lighting HRA","02-PREMISES","Premises","02B","Energy costs","4000","Electricity","3545567","202001",19/03/2019 00:00:00,86.92,"39564","Gas Companies","REDACTED DATA","KENT COUNTY COUNCIL (GAS & ELECTRIC)","",,"204269191"
"London Borough of Redbridge","http://opendatacommunities.org/doc/london-borough-council/redbridge","9BNONBVO","Outside the BVACOP Objective Structure","9CNONBVO","Outside the BVACOP Objective Structure","REV","Revenue","R5032","Staircase Lighting HRA","02-PREMISES","Premises","02B","Energy costs","4000","Electricity","3545567","202001",19/03/2019 00:00:00,72.53,"39564","Gas Companies","REDACTED DATA","KENT COUNTY COUNCIL (GAS & ELECTRIC)","",,"204269191"
"London Borough of Redbridge","http://opendatacommunities.org/doc/london-borough-council/redbridge","9BNONBVO","Outside the BVACOP Objective Structure","9CNONBVO","Outside the BVACOP Objective Structure","REV","Revenue","R5032","Staircase Lighting HRA","02-PREMISES","Premises","02B","Energy costs","4000","Electricity","3545567","202001",19/03/2019 00:00:00,72.08,"39564","Gas Companies","REDACTED DATA","KENT COUNTY COUNCIL (GAS & ELECTRIC)","",,"204269191"
"London Borough of Redbridge","http://opendatacommunities.org/doc/london-borough-council/redbridge","9BNONBVO","Outside the BVACOP Objective Structure","9CNONBVO","Outside the BVACOP Objective Structure","REV","Revenue","R5032","Staircase Lighting HRA","02-PREMISES","Premises","02B","Energy costs","4000","Electricity","3545567","202001",18/03/2019 00:00:00,72.93,"39564","Gas Companies","REDACTED DATA","KENT COUNTY COUNCIL (GAS & ELECTRIC)","",,"204269191"
"London Borough of Redbridge","http://opendatacommunities.org/doc/london-borough-council/redbridge","9BNONBVO","Outside the BVACOP Objective Structure","9CNONBVO","Outside the BVACOP Objective Structure","REV","Revenue","R5032","Staircase Lighting HRA","02-PREMISES","Premises","02B","Energy costs","4000","Electricity","3545567","202001",19/03/2019 00:00:00,74.32,"39564","Gas Companies","REDACTED DATA","KENT COUNTY COUNCIL (GAS & ELECTRIC)","",,"204269191"
"London Borough of Redbridge","http://opendatacommunities.org/doc/london-borough-council/redbridge","9BNONBVO","Outside the BVACOP Objective Structure","9CNONBVO","Outside the BVACOP Objective Structure","REV","Revenue","R5032","Staircase Lighting HRA","02-PREMISES","Premises","02B","Energy costs","4000","Electricity","3545567","202001",18/03/2019 00:00:00,58.65,"39564","Gas Companies","REDACTED DATA","KENT COUNTY COUNCIL (GAS & ELECTRIC)","",,"204269191"
"London Borough of Redbridge","http://opendatacommunities.org/doc/london-borough-council/redbridge","9BNONBVO","Outside the BVACOP Objective Structure","9CNONBVO","Outside the BVACOP Objective Structure","REV","Revenue","R5032","Staircase Lighting HRA","02-PREMISES","Premises","02B","Energy costs","4000","Electricity","3545567","202001",18/03/2019 00:00:00,60.2,"39564","Gas Companies","REDACTED DATA","KENT COUNTY COUNCIL (GAS & ELECTRIC)","",,"204269191"
"London Borough of Redbridge","http://opendatacommunities.org/doc/london-borough-council/redbridge","9BNONBVO","Outside the BVACOP Objective Structure","9CNONBVO","Outside the BVACOP Objective Structure","REV","Revenue","R5032","Staircase Lighting HRA","02-PREMISES","Premises","02B","Energy costs","4000","Electricity","3545567","202001",18/03/2019 00:00:00,66.04,"39564","Gas Companies","REDACTED DATA","KENT COUNTY COUNCIL (GAS & ELECTRIC)","",,"204269191"
"London Borough of Redbridge","http://opendatacommunities.org/doc/london-borough-council/redbridge","9BNONBVO","Outside the BVACOP Objective Structure","9CNONBVO","Outside the BVACOP Objective Structure","REV","Revenue","R5032","Staircase Lighting HRA","02-PREMISES","Premises","02B","Energy costs","4000","Electricity","3545567","202001",15/03/2019 00:00:00,72.41,"39564","Gas Companies","REDACTED DATA","KENT COUNTY COUNCIL (GAS & ELECTRIC)","",,"204269191"
"London Borough of Redbridge","http://opendatacommunities.org/doc/london-borough-council/redbridge","9BNONBVO","Outside the BVACOP Objective Structure","9CNONBVO","Outside the BVACOP Objective Structure","REV","Revenue","R5032","Staircase Lighting HRA","02-PREMISES","Premises","02B","Energy costs","4000","Electricity","3545567","202001",07/03/2019 00:00:00,-116.17,"39564","Gas Companies","REDACTED DATA","KENT COUNTY COUNCIL (GAS & ELECTRIC)","",,"204269191"
"London Borough of Redbridge","http://opendatacommunities.org/doc/london-borough-council/redbridge","9BNONBVO","Outside the BVACOP Objective Structure","9CNONBVO","Outside the BVACOP Objective Structure","REV","Revenue","R5032","Staircase Lighting HRA","02-PREMISES","Premises","02B","Energy costs","4000","Electricity","3545567","202001",18/03/2019 00:00:00,100.31,"39564","Gas Companies","REDACTED DATA","KENT COUNTY COUNCIL (GAS & ELECTRIC)","",,"204269191"
"London Borough of Redbridge","http://opendatacommunities.org/doc/london-borough-council/redbridge","9BNONBVO","Outside the BVACOP Objective Structure","9CNONBVO","Outside the BVACOP Objective Structure","REV","Revenue","R5032","Staircase Lighting HRA","02-PREMISES","Premises","02B","Energy costs","4000","Electricity","3545567","202001",19/03/2019 00:00:00,78.8,"39564","Gas Companies","REDACTED DATA","KENT COUNTY COUNCIL (GAS & ELECTRIC)","",,"204269191"
"London Borough of Redbridge","http://opendatacommunities.org/doc/london-borough-council/redbridge","9BNONBVO","Outside the BVACOP Objective Structure","9CNONBVO","Outside the BVACOP Objective Structure","REV","Revenue","R5032","Staircase Lighting HRA","02-PREMISES","Premises","02B","Energy costs","4000","Electricity","3545567","202001",18/03/2019 00:00:00,62.99,"39564","Gas Companies","REDACTED DATA","KENT COUNTY COUNCIL (GAS & ELECTRIC)","",,"204269191"
"London Borough of Redbridge","http://opendatacommunities.org/doc/london-borough-council/redbridge","9BNONBVO","Outside the BVACOP Objective Structure","9CNONBVO","Outside the BVACOP Objective Structure","REV","Revenue","R5032","Staircase Lighting HRA","02-PREMISES","Premises","02B","Energy costs","4000","Electricity","3545567","202001",15/03/2019 00:00:00,53.11,"39564","Gas Companies","REDACTED DATA","KENT COUNTY COUNCIL (GAS & ELECTRIC)","",,"204269191"
"London Borough of Redbridge","http://opendatacommunities.org/doc/london-borough-council/redbridge","9BNONBVO","Outside the BVACOP Objective Structure","9CNONBVO","Outside the BVACOP Objective Structure","REV","Revenue","R5032","Staircase Lighting HRA","02-PREMISES","Premises","02B","Energy costs","4000","Electricity","3545567","202001",19/03/2019 00:00:00,74.3,"39564","Gas Companies","REDACTED DATA","KENT COUNTY COUNCIL (GAS & ELECTRIC)","",,"204269191"
"London Borough of Redbridge","http://opendatacommunities.org/doc/london-borough-council/redbridge","9BNONBVO","Outside the BVACOP Objective Structure","9CNONBVO","Outside the BVACOP Objective Structure","REV","Revenue","R5032","Staircase Lighting HRA","02-PREMISES","Premises","02B","Energy costs","4000","Electricity","3545567","202001",19/03/2019 00:00:00,80.44,"39564","Gas Companies","REDACTED DATA","KENT COUNTY COUNCIL (GAS & ELECTRIC)","",,"204269191"
"London Borough of Redbridge","http://opendatacommunities.org/doc/london-borough-council/redbridge","9BNONBVO","Outside the BVACOP Objective Structure","9CNONBVO","Outside the BVACOP Objective Structure","REV","Revenue","R5032","Staircase Lighting HRA","02-PREMISES","Premises","02B","Energy costs","4000","Electricity","3545567","202001",19/03/2019 00:00:00,71.91,"39564","Gas Companies","REDACTED DATA","KENT COUNTY COUNCIL (GAS & ELECTRIC)","",,"204269191"
"London Borough of Redbridge","http://opendatacommunities.org/doc/london-borough-council/redbridge","9BNONBVO","Outside the BVACOP Objective Structure","9CNONBVO","Outside the BVACOP Objective Structure","REV","Revenue","R5032","Staircase Lighting HRA","02-PREMISES","Premises","02B","Energy costs","4000","Electricity","3545567","202001",15/03/2019 00:00:00,55.58,"39564","Gas Companies","REDACTED DATA","KENT COUNTY COUNCIL (GAS & ELECTRIC)","",,"204269191"
"London Borough of Redbridge","http://opendatacommunities.org/doc/london-borough-council/redbridge","9BNONBVO","Outside the BVACOP Objective Structure","9CNONBVO","Outside the BVACOP Objective Structure","REV","Revenue","R5032","Staircase Lighting HRA","02-PREMISES","Premises","02B","Energy costs","4000","Electricity","3545567","202001",18/03/2019 00:00:00,83.9,"39564","Gas Companies","REDACTED DATA","KENT COUNTY COUNCIL (GAS & ELECTRIC)","",,"204269191"
"London Borough of Redbridge","http://opendatacommunities.org/doc/london-borough-council/redbridge","9BNONBVO","Outside the BVACOP Objective Structure","9CNONBVO","Outside the BVACOP Objective Structure","REV","Revenue","R5032","Staircase Lighting HRA","02-PREMISES","Premises","02B","Energy costs","4000","Electricity","3545567","202001",19/03/2019 00:00:00,76.67,"39564","Gas Companies","REDACTED DATA","KENT COUNTY COUNCIL (GAS & ELECTRIC)","",,"204269191"
"London Borough of Redbridge","http://opendatacommunities.org/doc/london-borough-council/redbridge","9BNONBVO","Outside the BVACOP Objective Structure","9CNONBVO","Outside the BVACOP Objective Structure","REV","Revenue","R5032","Staircase Lighting HRA","02-PREMISES","Premises","02B","Energy costs","4000","Electricity","3545567","202001",19/03/2019 00:00:00,49.5,"39564","Gas Companies","REDACTED DATA","KENT COUNTY COUNCIL (GAS & ELECTRIC)","",,"204269191"
"London Borough of Redbridge","http://opendatacommunities.org/doc/london-borough-council/redbridge","9BNONBVO","Outside the BVACOP Objective Structure","9CNONBVO","Outside the BVACOP Objective Structure","REV","Revenue","R5032","Staircase Lighting HRA","02-PREMISES","Premises","02B","Energy costs","4000","Electricity","3545567","202001",20/03/2019 00:00:00,61.14,"39564","Gas Companies","REDACTED DATA","KENT COUNTY COUNCIL (GAS & ELECTRIC)","",,"204269191"
"London Borough of Redbridge","http://opendatacommunities.org/doc/london-borough-council/redbridge","9BNONBVO","Outside the BVACOP Objective Structure","9CNONBVO","Outside the BVACOP Objective Structure","REV","Revenue","R5032","Staircase Lighting HRA","02-PREMISES","Premises","02B","Energy costs","4000","Electricity","3545567","202001",19/03/2019 00:00:00,87.67,"39564","Gas Companies","REDACTED DATA","KENT COUNTY COUNCIL (GAS & ELECTRIC)","",,"204269191"
"London Borough of Redbridge","http://opendatacommunities.org/doc/london-borough-council/redbridge","9BNONBVO","Outside the BVACOP Objective Structure","9CNONBVO","Outside the BVACOP Objective Structure","REV","Revenue","R5032","Staircase Lighting HRA","02-PREMISES","Premises","02B","Energy costs","4000","Electricity","3545567","202001",18/03/2019 00:00:00,74.16,"39564","Gas Companies","REDACTED DATA","KENT COUNTY COUNCIL (GAS & ELECTRIC)","",,"204269191"
"London Borough of Redbridge","http://opendatacommunities.org/doc/london-borough-council/redbridge","9BNONBVO","Outside the BVACOP Objective Structure","9CNONBVO","Outside the BVACOP Objective Structure","REV","Revenue","R5032","Staircase Lighting HRA","02-PREMISES","Premises","02B","Energy costs","4000","Electricity","3545567","202001",18/03/2019 00:00:00,105.59,"39564","Gas Companies","REDACTED DATA","KENT COUNTY COUNCIL (GAS & ELECTRIC)","",,"204269191"
"London Borough of Redbridge","http://opendatacommunities.org/doc/london-borough-council/redbridge","9BNONBVO","Outside the BVACOP Objective Structure","9CNONBVO","Outside the BVACOP Objective Structure","REV","Revenue","R5032","Staircase Lighting HRA","02-PREMISES","Premises","02B","Energy costs","4000","Electricity","3545567","202001",19/03/2019 00:00:00,59.57,"39564","Gas Companies","REDACTED DATA","KENT COUNTY COUNCIL (GAS & ELECTRIC)","",,"204269191"
"London Borough of Redbridge","http://opendatacommunities.org/doc/london-borough-council/redbridge","9BNONBVO","Outside the BVACOP Objective Structure","9CNONBVO","Outside the BVACOP Objective Structure","REV","Revenue","R5032","Staircase Lighting HRA","02-PREMISES","Premises","02B","Energy costs","4000","Electricity","3545567","202001",19/03/2019 00:00:00,69.47,"39564","Gas Companies","REDACTED DATA","KENT COUNTY COUNCIL (GAS & ELECTRIC)","",,"204269191"
"London Borough of Redbridge","http://opendatacommunities.org/doc/london-borough-council/redbridge","9BNONBVO","Outside the BVACOP Objective Structure","9CNONBVO","Outside the BVACOP Objective Structure","REV","Revenue","R5032","Staircase Lighting HRA","02-PREMISES","Premises","02B","Energy costs","4000","Electricity","3545567","202001",15/03/2019 00:00:00,152.85,"39564","Gas Companies","REDACTED DATA","KENT COUNTY COUNCIL (GAS & ELECTRIC)","",,"204269191"
"London Borough of Redbridge","http://opendatacommunities.org/doc/london-borough-council/redbridge","9BNONBVO","Outside the BVACOP Objective Structure","9CNONBVO","Outside the BVACOP Objective Structure","REV","Revenue","R5032","Staircase Lighting HRA","02-PREMISES","Premises","02B","Energy costs","4000","Electricity","3545567","202001",27/02/2019 00:00:00,70.3,"39564","Gas Companies","REDACTED DATA","KENT COUNTY COUNCIL (GAS & ELECTRIC)","",,"204269191"
"London Borough of Redbridge","http://opendatacommunities.org/doc/london-borough-council/redbridge","9BNONBVO","Outside the BVACOP Objective Structure","9CNONBVO","Outside the BVACOP Objective Structure","REV","Revenue","R5032","Staircase Lighting HRA","02-PREMISES","Premises","02B","Energy costs","4000","Electricity","3545567","202001",27/02/2019 00:00:00,79.34,"39564","Gas Companies","REDACTED DATA","KENT COUNTY COUNCIL (GAS & ELECTRIC)","",,"204269191"
"London Borough of Redbridge","http://opendatacommunities.org/doc/london-borough-council/redbridge","9BNONBVO","Outside the BVACOP Objective Structure","9CNONBVO","Outside the BVACOP Objective Structure","REV","Revenue","R5032","Staircase Lighting HRA","02-PREMISES","Premises","02B","Energy costs","4000","Electricity","3545567","202001",28/02/2019 00:00:00,96.25,"39564","Gas Companies","REDACTED DATA","KENT COUNTY COUNCIL (GAS & ELECTRIC)","",,"204269191"
"London Borough of Redbridge","http://opendatacommunities.org/doc/london-borough-council/redbridge","9BNONBVO","Outside the BVACOP Objective Structure","9CNONBVO","Outside the BVACOP Objective Structure","REV","Revenue","R5032","Staircase Lighting HRA","02-PREMISES","Premises","02B","Energy costs","4000","Electricity","3545567","202001",20/03/2019 00:00:00,44.84,"39564","Gas Companies","REDACTED DATA","KENT COUNTY COUNCIL (GAS & ELECTRIC)","",,"204269191"
"London Borough of Redbridge","http://opendatacommunities.org/doc/london-borough-council/redbridge","9BNONBVO","Outside the BVACOP Objective Structure","9CNONBVO","Outside the BVACOP Objective Structure","REV","Revenue","R5032","Staircase Lighting HRA","02-PREMISES","Premises","02B","Energy costs","4000","Electricity","3545567","202001",18/03/2019 00:00:00,67.13,"39564","Gas Companies","REDACTED DATA","KENT COUNTY COUNCIL (GAS & ELECTRIC)","",,"204269191"
"London Borough of Redbridge","http://opendatacommunities.org/doc/london-borough-council/redbridge","9BNONBVO","Outside the BVACOP Objective Structure","9CNONBVO","Outside the BVACOP Objective Structure","REV","Revenue","R5032","Staircase Lighting HRA","02-PREMISES","Premises","02B","Energy costs","4000","Electricity","3545567","202001",19/03/2019 00:00:00,61.47,"39564","Gas Companies","REDACTED DATA","KENT COUNTY COUNCIL (GAS & ELECTRIC)","",,"204269191"
"London Borough of Redbridge","http://opendatacommunities.org/doc/london-borough-council/redbridge","9BNONBVO","Outside the BVACOP Objective Structure","9CNONBVO","Outside the BVACOP Objective Structure","REV","Revenue","R5032","Staircase Lighting HRA","02-PREMISES","Premises","02B","Energy costs","4000","Electricity","3545567","202001",15/03/2019 00:00:00,171.84,"39564","Gas Companies","REDACTED DATA","KENT COUNTY COUNCIL (GAS & ELECTRIC)","",,"204269191"
"London Borough of Redbridge","http://opendatacommunities.org/doc/london-borough-council/redbridge","9BNONBVO","Outside the BVACOP Objective Structure","9CNONBVO","Outside the BVACOP Objective Structure","REV","Revenue","R5032","Staircase Lighting HRA","02-PREMISES","Premises","02B","Energy costs","4000","Electricity","3545567","202001",14/03/2019 00:00:00,328.85,"39564","Gas Companies","REDACTED DATA","KENT COUNTY COUNCIL (GAS & ELECTRIC)","",,"204269191"
"London Borough of Redbridge","http://opendatacommunities.org/doc/london-borough-council/redbridge","9BNONBVO","Outside the BVACOP Objective Structure","9CNONBVO","Outside the BVACOP Objective Structure","REV","Revenue","R5032","Staircase Lighting HRA","02-PREMISES","Premises","02B","Energy costs","4000","Electricity","3545567","202001",14/03/2019 00:00:00,137.05,"39564","Gas Companies","REDACTED DATA","KENT COUNTY COUNCIL (GAS & ELECTRIC)","",,"204269191"
"London Borough of Redbridge","http://opendatacommunities.org/doc/london-borough-council/redbridge","9BNONBVO","Outside the BVACOP Objective Structure","9CNONBVO","Outside the BVACOP Objective Structure","REV","Revenue","R5032","Staircase Lighting HRA","02-PREMISES","Premises","02B","Energy costs","4000","Electricity","3545567","202001",14/03/2019 00:00:00,2178.05,"39564","Gas Companies","REDACTED DATA","KENT COUNTY COUNCIL (GAS & ELECTRIC)","",,"204269191"
"London Borough of Redbridge","http://opendatacommunities.org/doc/london-borough-council/redbridge","9BNONBVO","Outside the BVACOP Objective Structure","9CNONBVO","Outside the BVACOP Objective Structure","REV","Revenue","R5032","Staircase Lighting HRA","02-PREMISES","Premises","02B","Energy costs","4000","Electricity","3545567","202001",28/02/2019 00:00:00,-184.07,"39564","Gas Companies","REDACTED DATA","KENT COUNTY COUNCIL (GAS & ELECTRIC)","",,"204269191"
"London Borough of Redbridge","http://opendatacommunities.org/doc/london-borough-council/redbridge","9BNONBVO","Outside the BVACOP Objective Structure","9CNONBVO","Outside the BVACOP Objective Structure","REV","Revenue","R5032","Staircase Lighting HRA","02-PREMISES","Premises","02B","Energy costs","4000","Electricity","3545567","202001",07/03/2019 00:00:00,67.1,"39564","Gas Companies","REDACTED DATA","KENT COUNTY COUNCIL (GAS & ELECTRIC)","",,"204269191"
"London Borough of Redbridge","http://opendatacommunities.org/doc/london-borough-council/redbridge","9BNONBVO","Outside the BVACOP Objective Structure","9CNONBVO","Outside the BVACOP Objective Structure","REV","Revenue","R5032","Staircase Lighting HRA","02-PREMISES","Premises","02B","Energy costs","4000","Electricity","3545567","202001",15/03/2019 00:00:00,63.81,"39564","Gas Companies","REDACTED DATA","KENT COUNTY COUNCIL (GAS & ELECTRIC)","",,"204269191"
"London Borough of Redbridge","http://opendatacommunities.org/doc/london-borough-council/redbridge","9BNONBVO","Outside the BVACOP Objective Structure","9CNONBVO","Outside the BVACOP Objective Structure","REV","Revenue","R5032","Staircase Lighting HRA","02-PREMISES","Premises","02B","Energy costs","4000","Electricity","3545567","202001",14/03/2019 00:00:00,351.04,"39564","Gas Companies","REDACTED DATA","KENT COUNTY COUNCIL (GAS & ELECTRIC)","",,"204269191"
"London Borough of Redbridge","http://opendatacommunities.org/doc/london-borough-council/redbridge","9BNONBVO","Outside the BVACOP Objective Structure","9CNONBVO","Outside the BVACOP Objective Structure","REV","Revenue","R5032","Staircase Lighting HRA","02-PREMISES","Premises","02B","Energy costs","4000","Electricity","3545567","202001",19/03/2019 00:00:00,56.56,"39564","Gas Companies","REDACTED DATA","KENT COUNTY COUNCIL (GAS & ELECTRIC)","",,"204269191"
"London Borough of Redbridge","http://opendatacommunities.org/doc/london-borough-council/redbridge","9BNONBVO","Outside the BVACOP Objective Structure","9CNONBVO","Outside the BVACOP Objective Structure","REV","Revenue","R5032","Staircase Lighting HRA","02-PREMISES","Premises","02B","Energy costs","4000","Electricity","3545567","202001",18/03/2019 00:00:00,51.64,"39564","Gas Companies","REDACTED DATA","KENT COUNTY COUNCIL (GAS & ELECTRIC)","",,"204269191"
"London Borough of Redbridge","http://opendatacommunities.org/doc/london-borough-council/redbridge","9BNONBVO","Outside the BVACOP Objective Structure","9CNONBVO","Outside the BVACOP Objective Structure","REV","Revenue","R5032","Staircase Lighting HRA","02-PREMISES","Premises","02B","Energy costs","4000","Electricity","3545567","202001",19/03/2019 00:00:00,69.99,"39564","Gas Companies","REDACTED DATA","KENT COUNTY COUNCIL (GAS & ELECTRIC)","",,"204269191"
"London Borough of Redbridge","http://opendatacommunities.org/doc/london-borough-council/redbridge","9BNONBVO","Outside the BVACOP Objective Structure","9CNONBVO","Outside the BVACOP Objective Structure","REV","Revenue","R5032","Staircase Lighting HRA","02-PREMISES","Premises","02B","Energy costs","4000","Electricity","3545567","202001",18/03/2019 00:00:00,87.32,"39564","Gas Companies","REDACTED DATA","KENT COUNTY COUNCIL (GAS & ELECTRIC)","",,"204269191"
"London Borough of Redbridge","http://opendatacommunities.org/doc/london-borough-council/redbridge","9BNONBVO","Outside the BVACOP Objective Structure","9CNONBVO","Outside the BVACOP Objective Structure","REV","Revenue","R5032","Staircase Lighting HRA","02-PREMISES","Premises","02B","Energy costs","4000","Electricity","3545567","202001",27/02/2019 00:00:00,-74.94,"39564","Gas Companies","REDACTED DATA","KENT COUNTY COUNCIL (GAS & ELECTRIC)","",,"204269191"
"London Borough of Redbridge","http://opendatacommunities.org/doc/london-borough-council/redbridge","9BNONBVO","Outside the BVACOP Objective Structure","9CNONBVO","Outside the BVACOP Objective Structure","REV","Revenue","R5032","Staircase Lighting HRA","02-PREMISES","Premises","02B","Energy costs","4000","Electricity","3545567","202001",15/03/2019 00:00:00,82.17,"39564","Gas Companies","REDACTED DATA","KENT COUNTY COUNCIL (GAS & ELECTRIC)","",,"204269191"
"London Borough of Redbridge","http://opendatacommunities.org/doc/london-borough-council/redbridge","9BNONBVO","Outside the BVACOP Objective Structure","9CNONBVO","Outside the BVACOP Objective Structure","REV","Revenue","R5032","Staircase Lighting HRA","02-PREMISES","Premises","02B","Energy costs","4000","Electricity","3545567","202001",19/03/2019 00:00:00,61.48,"39564","Gas Companies","REDACTED DATA","KENT COUNTY COUNCIL (GAS & ELECTRIC)","",,"204269191"
"London Borough of Redbridge","http://opendatacommunities.org/doc/london-borough-council/redbridge","9BNONBVO","Outside the BVACOP Objective Structure","9CNONBVO","Outside the BVACOP Objective Structure","REV","Revenue","R5032","Staircase Lighting HRA","02-PREMISES","Premises","02B","Energy costs","4000","Electricity","3545567","202001",19/03/2019 00:00:00,86.96,"39564","Gas Companies","REDACTED DATA","KENT COUNTY COUNCIL (GAS & ELECTRIC)","",,"204269191"
"London Borough of Redbridge","http://opendatacommunities.org/doc/london-borough-council/redbridge","9BNONBVO","Outside the BVACOP Objective Structure","9CNONBVO","Outside the BVACOP Objective Structure","REV","Revenue","R5032","Staircase Lighting HRA","02-PREMISES","Premises","02B","Energy costs","4000","Electricity","3545567","202001",18/03/2019 00:00:00,71.62,"39564","Gas Companies","REDACTED DATA","KENT COUNTY COUNCIL (GAS & ELECTRIC)","",,"204269191"
"London Borough of Redbridge","http://opendatacommunities.org/doc/london-borough-council/redbridge","9BNONBVO","Outside the BVACOP Objective Structure","9CNONBVO","Outside the BVACOP Objective Structure","REV","Revenue","R5032","Staircase Lighting HRA","02-PREMISES","Premises","02B","Energy costs","4000","Electricity","3545567","202001",19/03/2019 00:00:00,58.16,"39564","Gas Companies","REDACTED DATA","KENT COUNTY COUNCIL (GAS & ELECTRIC)","",,"204269191"
"London Borough of Redbridge","http://opendatacommunities.org/doc/london-borough-council/redbridge","9BNONBVO","Outside the BVACOP Objective Structure","9CNONBVO","Outside the BVACOP Objective Structure","REV","Revenue","R5032","Staircase Lighting HRA","02-PREMISES","Premises","02B","Energy costs","4000","Electricity","3545567","202001",19/03/2019 00:00:00,62.04,"39564","Gas Companies","REDACTED DATA","KENT COUNTY COUNCIL (GAS & ELECTRIC)","",,"204269191"
"London Borough of Redbridge","http://opendatacommunities.org/doc/london-borough-council/redbridge","9BNONBVO","Outside the BVACOP Objective Structure","9CNONBVO","Outside the BVACOP Objective Structure","REV","Revenue","R5032","Staircase Lighting HRA","02-PREMISES","Premises","02B","Energy costs","4000","Electricity","3545567","202001",19/03/2019 00:00:00,45.44,"39564","Gas Companies","REDACTED DATA","KENT COUNTY COUNCIL (GAS & ELECTRIC)","",,"204269191"
"London Borough of Redbridge","http://opendatacommunities.org/doc/london-borough-council/redbridge","9BNONBVO","Outside the BVACOP Objective Structure","9CNONBVO","Outside the BVACOP Objective Structure","REV","Revenue","R5032","Staircase Lighting HRA","02-PREMISES","Premises","02B","Energy costs","4000","Electricity","3545567","202001",15/03/2019 00:00:00,77.96,"39564","Gas Companies","REDACTED DATA","KENT COUNTY COUNCIL (GAS & ELECTRIC)","",,"204269191"
"London Borough of Redbridge","http://opendatacommunities.org/doc/london-borough-council/redbridge","9BNONBVO","Outside the BVACOP Objective Structure","9CNONBVO","Outside the BVACOP Objective Structure","REV","Revenue","R5032","Staircase Lighting HRA","02-PREMISES","Premises","02B","Energy costs","4000","Electricity","3545567","202001",14/03/2019 00:00:00,2704.56,"39564","Gas Companies","REDACTED DATA","KENT COUNTY COUNCIL (GAS & ELECTRIC)","",,"204269191"
"London Borough of Redbridge","http://opendatacommunities.org/doc/london-borough-council/redbridge","9BNONBVO","Outside the BVACOP Objective Structure","9CNONBVO","Outside the BVACOP Objective Structure","REV","Revenue","R5032","Staircase Lighting HRA","02-PREMISES","Premises","02B","Energy costs","4000","Electricity","3545567","202001",20/03/2019 00:00:00,-306.23,"39564","Gas Companies","REDACTED DATA","KENT COUNTY COUNCIL (GAS & ELECTRIC)","",,"204269191"
"London Borough of Redbridge","http://opendatacommunities.org/doc/london-borough-council/redbridge","9BNONBVO","Outside the BVACOP Objective Structure","9CNONBVO","Outside the BVACOP Objective Structure","REV","Revenue","R5032","Staircase Lighting HRA","02-PREMISES","Premises","02B","Energy costs","4000","Electricity","3545567","202001",20/03/2019 00:00:00,-216.24,"39564","Gas Companies","REDACTED DATA","KENT COUNTY COUNCIL (GAS & ELECTRIC)","",,"204269191"
"London Borough of Redbridge","http://opendatacommunities.org/doc/london-borough-council/redbridge","9BNONBVO","Outside the BVACOP Objective Structure","9CNONBVO","Outside the BVACOP Objective Structure","REV","Revenue","R5032","Staircase Lighting HRA","02-PREMISES","Premises","02B","Energy costs","4000","Electricity","3545567","202001",18/03/2019 00:00:00,563.55,"39564","Gas Companies","REDACTED DATA","KENT COUNTY COUNCIL (GAS & ELECTRIC)","",,"204269191"
"London Borough of Redbridge","http://opendatacommunities.org/doc/london-borough-council/redbridge","9BNONBVO","Outside the BVACOP Objective Structure","9CNONBVO","Outside the BVACOP Objective Structure","REV","Revenue","R5032","Staircase Lighting HRA","02-PREMISES","Premises","02B","Energy costs","4000","Electricity","3545567","202001",21/02/2019 00:00:00,430.87,"39564","Gas Companies","REDACTED DATA","KENT COUNTY COUNCIL (GAS & ELECTRIC)","",,"204269191"
"London Borough of Redbridge","http://opendatacommunities.org/doc/london-borough-council/redbridge","9BNONBVO","Outside the BVACOP Objective Structure","9CNONBVO","Outside the BVACOP Objective Structure","REV","Revenue","R5032","Staircase Lighting HRA","02-PREMISES","Premises","02B","Energy costs","4000","Electricity","3545567","202001",21/02/2019 00:00:00,138.77,"39564","Gas Companies","REDACTED DATA","KENT COUNTY COUNCIL (GAS & ELECTRIC)","",,"204269191"
"London Borough of Redbridge","http://opendatacommunities.org/doc/london-borough-council/redbridge","9BNONBVO","Outside the BVACOP Objective Structure","9CNONBVO","Outside the BVACOP Objective Structure","REV","Revenue","R5032","Staircase Lighting HRA","02-PREMISES","Premises","02B","Energy costs","4000","Electricity","3545567","202001",14/03/2019 00:00:00,99.31,"39564","Gas Companies","REDACTED DATA","KENT COUNTY COUNCIL (GAS & ELECTRIC)","",,"204269191"
"London Borough of Redbridge","http://opendatacommunities.org/doc/london-borough-council/redbridge","9BNONBVO","Outside the BVACOP Objective Structure","9CNONBVO","Outside the BVACOP Objective Structure","REV","Revenue","R5032","Staircase Lighting HRA","02-PREMISES","Premises","02B","Energy costs","4000","Electricity","3545567","202001",14/03/2019 00:00:00,124.52,"39564","Gas Companies","REDACTED DATA","KENT COUNTY COUNCIL (GAS & ELECTRIC)","",,"204269191"
"London Borough of Redbridge","http://opendatacommunities.org/doc/london-borough-council/redbridge","9BNONBVO","Outside the BVACOP Objective Structure","9CNONBVO","Outside the BVACOP Objective Structure","REV","Revenue","R5032","Staircase Lighting HRA","02-PREMISES","Premises","02B","Energy costs","4000","Electricity","3545567","202001",15/03/2019 00:00:00,39.95,"39564","Gas Companies","REDACTED DATA","KENT COUNTY COUNCIL (GAS & ELECTRIC)","",,"204269191"
"London Borough of Redbridge","http://opendatacommunities.org/doc/london-borough-council/redbridge","9BNONBVO","Outside the BVACOP Objective Structure","9CNONBVO","Outside the BVACOP Objective Structure","REV","Revenue","R5032","Staircase Lighting HRA","02-PREMISES","Premises","02B","Energy costs","4000","Electricity","3545567","202001",27/02/2019 00:00:00,178.29,"39564","Gas Companies","REDACTED DATA","KENT COUNTY COUNCIL (GAS & ELECTRIC)","",,"204269191"
"London Borough of Redbridge","http://opendatacommunities.org/doc/london-borough-council/redbridge","9BNONBVO","Outside the BVACOP Objective Structure","9CNONBVO","Outside the BVACOP Objective Structure","REV","Revenue","R5032","Staircase Lighting HRA","02-PREMISES","Premises","02B","Energy costs","4000","Electricity","3545567","202001",27/02/2019 00:00:00,-529.27,"39564","Gas Companies","REDACTED DATA","KENT COUNTY COUNCIL (GAS & ELECTRIC)","",,"204269191"
"London Borough of Redbridge","http://opendatacommunities.org/doc/london-borough-council/redbridge","9BNONBVO","Outside the BVACOP Objective Structure","9CNONBVO","Outside the BVACOP Objective Structure","REV","Revenue","R5032","Staircase Lighting HRA","02-PREMISES","Premises","02B","Energy costs","4000","Electricity","3545567","202001",27/02/2019 00:00:00,-27.08,"39564","Gas Companies","REDACTED DATA","KENT COUNTY COUNCIL (GAS & ELECTRIC)","",,"204269191"
"London Borough of Redbridge","http://opendatacommunities.org/doc/london-borough-council/redbridge","9BNONBVO","Outside the BVACOP Objective Structure","9CNONBVO","Outside the BVACOP Objective Structure","REV","Revenue","R5032","Staircase Lighting HRA","02-PREMISES","Premises","02B","Energy costs","4000","Electricity","3545567","202001",18/03/2019 00:00:00,48.97,"39564","Gas Companies","REDACTED DATA","KENT COUNTY COUNCIL (GAS & ELECTRIC)","",,"204269191"
"London Borough of Redbridge","http://opendatacommunities.org/doc/london-borough-council/redbridge","9BNONBVO","Outside the BVACOP Objective Structure","9CNONBVO","Outside the BVACOP Objective Structure","REV","Revenue","R5032","Staircase Lighting HRA","02-PREMISES","Premises","02B","Energy costs","4000","Electricity","3545567","202001",18/03/2019 00:00:00,93.86,"39564","Gas Companies","REDACTED DATA","KENT COUNTY COUNCIL (GAS & ELECTRIC)","",,"204269191"
"London Borough of Redbridge","http://opendatacommunities.org/doc/london-borough-council/redbridge","9BNONBVO","Outside the BVACOP Objective Structure","9CNONBVO","Outside the BVACOP Objective Structure","REV","Revenue","R5032","Staircase Lighting HRA","02-PREMISES","Premises","02B","Energy costs","4000","Electricity","3545567","202001",19/03/2019 00:00:00,59.37,"39564","Gas Companies","REDACTED DATA","KENT COUNTY COUNCIL (GAS & ELECTRIC)","",,"204269191"
"London Borough of Redbridge","http://opendatacommunities.org/doc/london-borough-council/redbridge","9BNONBVO","Outside the BVACOP Objective Structure","9CNONBVO","Outside the BVACOP Objective Structure","REV","Revenue","R5032","Staircase Lighting HRA","02-PREMISES","Premises","02B","Energy costs","4000","Electricity","3545567","202001",14/03/2019 00:00:00,423.73,"39564","Gas Companies","REDACTED DATA","KENT COUNTY COUNCIL (GAS & ELECTRIC)","",,"204269191"
"London Borough of Redbridge","http://opendatacommunities.org/doc/london-borough-council/redbridge","9BNONBVO","Outside the BVACOP Objective Structure","9CNONBVO","Outside the BVACOP Objective Structure","REV","Revenue","R5032","Staircase Lighting HRA","02-PREMISES","Premises","02B","Energy costs","4000","Electricity","3545567","202001",13/03/2019 00:00:00,2551.64,"39564","Gas Companies","REDACTED DATA","KENT COUNTY COUNCIL (GAS & ELECTRIC)","",,"204269191"
"London Borough of Redbridge","http://opendatacommunities.org/doc/london-borough-council/redbridge","9BNONBVO","Outside the BVACOP Objective Structure","9CNONBVO","Outside the BVACOP Objective Structure","REV","Revenue","R5032","Staircase Lighting HRA","02-PREMISES","Premises","02B","Energy costs","4000","Electricity","3545567","202001",19/03/2019 00:00:00,63,"39564","Gas Companies","REDACTED DATA","KENT COUNTY COUNCIL (GAS & ELECTRIC)","",,"204269191"
"London Borough of Redbridge","http://opendatacommunities.org/doc/london-borough-council/redbridge","9BNONBVO","Outside the BVACOP Objective Structure","9CNONBVO","Outside the BVACOP Objective Structure","REV","Revenue","R5032","Staircase Lighting HRA","02-PREMISES","Premises","02B","Energy costs","4000","Electricity","3545567","202001",27/02/2019 00:00:00,-204.74,"39564","Gas Companies","REDACTED DATA","KENT COUNTY COUNCIL (GAS & ELECTRIC)","",,"204269191"
"London Borough of Redbridge","http://opendatacommunities.org/doc/london-borough-council/redbridge","9BNONBVO","Outside the BVACOP Objective Structure","9CNONBVO","Outside the BVACOP Objective Structure","REV","Revenue","R5032","Staircase Lighting HRA","02-PREMISES","Premises","02B","Energy costs","4000","Electricity","3545567","202001",18/03/2019 00:00:00,82.17,"39564","Gas Companies","REDACTED DATA","KENT COUNTY COUNCIL (GAS & ELECTRIC)","",,"204269191"
"London Borough of Redbridge","http://opendatacommunities.org/doc/london-borough-council/redbridge","9BNONBVO","Outside the BVACOP Objective Structure","9CNONBVO","Outside the BVACOP Objective Structure","REV","Revenue","R5032","Staircase Lighting HRA","02-PREMISES","Premises","02B","Energy costs","4000","Electricity","3545567","202001",18/03/2019 00:00:00,74.25,"39564","Gas Companies","REDACTED DATA","KENT COUNTY COUNCIL (GAS & ELECTRIC)","",,"204269191"
"London Borough of Redbridge","http://opendatacommunities.org/doc/london-borough-council/redbridge","9BNONBVO","Outside the BVACOP Objective Structure","9CNONBVO","Outside the BVACOP Objective Structure","REV","Revenue","R5032","Staircase Lighting HRA","02-PREMISES","Premises","02B","Energy costs","4000","Electricity","3545567","202001",19/03/2019 00:00:00,77.97,"39564","Gas Companies","REDACTED DATA","KENT COUNTY COUNCIL (GAS & ELECTRIC)","",,"204269191"
"London Borough of Redbridge","http://opendatacommunities.org/doc/london-borough-council/redbridge","9BNONBVO","Outside the BVACOP Objective Structure","9CNONBVO","Outside the BVACOP Objective Structure","REV","Revenue","R5032","Staircase Lighting HRA","02-PREMISES","Premises","02B","Energy costs","4000","Electricity","3545567","202001",19/03/2019 00:00:00,75.04,"39564","Gas Companies","REDACTED DATA","KENT COUNTY COUNCIL (GAS & ELECTRIC)","",,"204269191"
"London Borough of Redbridge","http://opendatacommunities.org/doc/london-borough-council/redbridge","9BNONBVO","Outside the BVACOP Objective Structure","9CNONBVO","Outside the BVACOP Objective Structure","REV","Revenue","R5032","Staircase Lighting HRA","02-PREMISES","Premises","02B","Energy costs","4000","Electricity","3545567","202001",19/03/2019 00:00:00,86.81,"39564","Gas Companies","REDACTED DATA","KENT COUNTY COUNCIL (GAS & ELECTRIC)","",,"204269191"
"London Borough of Redbridge","http://opendatacommunities.org/doc/london-borough-council/redbridge","9BNONBVO","Outside the BVACOP Objective Structure","9CNONBVO","Outside the BVACOP Objective Structure","REV","Revenue","R5032","Staircase Lighting HRA","02-PREMISES","Premises","02B","Energy costs","4000","Electricity","3545567","202001",18/03/2019 00:00:00,80,"39564","Gas Companies","REDACTED DATA","KENT COUNTY COUNCIL (GAS & ELECTRIC)","",,"204269191"
"London Borough of Redbridge","http://opendatacommunities.org/doc/london-borough-council/redbridge","9BNONBVO","Outside the BVACOP Objective Structure","9CNONBVO","Outside the BVACOP Objective Structure","REV","Revenue","R5032","Staircase Lighting HRA","02-PREMISES","Premises","02B","Energy costs","4000","Electricity","3545567","202001",15/03/2019 00:00:00,89.97,"39564","Gas Companies","REDACTED DATA","KENT COUNTY COUNCIL (GAS & ELECTRIC)","",,"204269191"
"London Borough of Redbridge","http://opendatacommunities.org/doc/london-borough-council/redbridge","9BNONBVO","Outside the BVACOP Objective Structure","9CNONBVO","Outside the BVACOP Objective Structure","REV","Revenue","R5032","Staircase Lighting HRA","02-PREMISES","Premises","02B","Energy costs","4000","Electricity","3545567","202001",19/03/2019 00:00:00,95.96,"39564","Gas Companies","REDACTED DATA","KENT COUNTY COUNCIL (GAS & ELECTRIC)","",,"204269191"
"London Borough of Redbridge","http://opendatacommunities.org/doc/london-borough-council/redbridge","9BNONBVO","Outside the BVACOP Objective Structure","9CNONBVO","Outside the BVACOP Objective Structure","REV","Revenue","R5032","Staircase Lighting HRA","02-PREMISES","Premises","02B","Energy costs","4000","Electricity","3545567","202001",15/03/2019 00:00:00,87,"39564","Gas Companies","REDACTED DATA","KENT COUNTY COUNCIL (GAS & ELECTRIC)","",,"204269191"
"London Borough of Redbridge","http://opendatacommunities.org/doc/london-borough-council/redbridge","9BNONBVO","Outside the BVACOP Objective Structure","9CNONBVO","Outside the BVACOP Objective Structure","REV","Revenue","R5032","Staircase Lighting HRA","02-PREMISES","Premises","02B","Energy costs","4000","Electricity","3545567","202001",19/03/2019 00:00:00,53.68,"39564","Gas Companies","REDACTED DATA","KENT COUNTY COUNCIL (GAS & ELECTRIC)","",,"204269191"
"London Borough of Redbridge","http://opendatacommunities.org/doc/london-borough-council/redbridge","9BNONBVO","Outside the BVACOP Objective Structure","9CNONBVO","Outside the BVACOP Objective Structure","REV","Revenue","R5032","Staircase Lighting HRA","02-PREMISES","Premises","02B","Energy costs","4000","Electricity","3545567","202001",19/03/2019 00:00:00,59.5,"39564","Gas Companies","REDACTED DATA","KENT COUNTY COUNCIL (GAS & ELECTRIC)","",,"204269191"
"London Borough of Redbridge","http://opendatacommunities.org/doc/london-borough-council/redbridge","9BNONBVO","Outside the BVACOP Objective Structure","9CNONBVO","Outside the BVACOP Objective Structure","REV","Revenue","R5032","Staircase Lighting HRA","02-PREMISES","Premises","02B","Energy costs","4000","Electricity","3545567","202001",18/03/2019 00:00:00,62.54,"39564","Gas Companies","REDACTED DATA","KENT COUNTY COUNCIL (GAS & ELECTRIC)","",,"204269191"
"London Borough of Redbridge","http://opendatacommunities.org/doc/london-borough-council/redbridge","9BNONBVO","Outside the BVACOP Objective Structure","9CNONBVO","Outside the BVACOP Objective Structure","REV","Revenue","R5032","Staircase Lighting HRA","02-PREMISES","Premises","02B","Energy costs","4000","Electricity","3545567","202001",14/03/2019 00:00:00,1092.69,"39564","Gas Companies","REDACTED DATA","KENT COUNTY COUNCIL (GAS & ELECTRIC)","",,"204269191"
"London Borough of Redbridge","http://opendatacommunities.org/doc/london-borough-council/redbridge","9BNONBVO","Outside the BVACOP Objective Structure","9CNONBVO","Outside the BVACOP Objective Structure","REV","Revenue","R5032","Staircase Lighting HRA","02-PREMISES","Premises","02B","Energy costs","4000","Electricity","3545567","202001",18/03/2019 00:00:00,74.03,"39564","Gas Companies","REDACTED DATA","KENT COUNTY COUNCIL (GAS & ELECTRIC)","",,"204269191"
"London Borough of Redbridge","http://opendatacommunities.org/doc/london-borough-council/redbridge","9BNONBVO","Outside the BVACOP Objective Structure","9CNONBVO","Outside the BVACOP Objective Structure","REV","Revenue","R5032","Staircase Lighting HRA","02-PREMISES","Premises","02B","Energy costs","4000","Electricity","3545567","202001",18/03/2019 00:00:00,98.46,"39564","Gas Companies","REDACTED DATA","KENT COUNTY COUNCIL (GAS & ELECTRIC)","",,"204269191"
"London Borough of Redbridge","http://opendatacommunities.org/doc/london-borough-council/redbridge","9BNONBVO","Outside the BVACOP Objective Structure","9CNONBVO","Outside the BVACOP Objective Structure","REV","Revenue","R5032","Staircase Lighting HRA","02-PREMISES","Premises","02B","Energy costs","4000","Electricity","3545567","202001",19/03/2019 00:00:00,66.92,"39564","Gas Companies","REDACTED DATA","KENT COUNTY COUNCIL (GAS & ELECTRIC)","",,"204269191"
"London Borough of Redbridge","http://opendatacommunities.org/doc/london-borough-council/redbridge","9BNONBVO","Outside the BVACOP Objective Structure","9CNONBVO","Outside the BVACOP Objective Structure","REV","Revenue","R5032","Staircase Lighting HRA","02-PREMISES","Premises","02B","Energy costs","4000","Electricity","3545567","202001",18/03/2019 00:00:00,90.73,"39564","Gas Companies","REDACTED DATA","KENT COUNTY COUNCIL (GAS & ELECTRIC)","",,"204269191"
"London Borough of Redbridge","http://opendatacommunities.org/doc/london-borough-council/redbridge","9BNONBVO","Outside the BVACOP Objective Structure","9CNONBVO","Outside the BVACOP Objective Structure","REV","Revenue","R5032","Staircase Lighting HRA","02-PREMISES","Premises","02B","Energy costs","4000","Electricity","3545567","202001",18/03/2019 00:00:00,61.55,"39564","Gas Companies","REDACTED DATA","KENT COUNTY COUNCIL (GAS & ELECTRIC)","",,"204269191"
"London Borough of Redbridge","http://opendatacommunities.org/doc/london-borough-council/redbridge","9BNONBVO","Outside the BVACOP Objective Structure","9CNONBVO","Outside the BVACOP Objective Structure","REV","Revenue","R5032","Staircase Lighting HRA","02-PREMISES","Premises","02B","Energy costs","4000","Electricity","3545567","202001",14/03/2019 00:00:00,164.41,"39564","Gas Companies","REDACTED DATA","KENT COUNTY COUNCIL (GAS & ELECTRIC)","",,"204269191"
"London Borough of Redbridge","http://opendatacommunities.org/doc/london-borough-council/redbridge","9BNONBVO","Outside the BVACOP Objective Structure","9CNONBVO","Outside the BVACOP Objective Structure","REV","Revenue","R5032","Staircase Lighting HRA","02-PREMISES","Premises","02B","Energy costs","4000","Electricity","3545567","202001",14/03/2019 00:00:00,158.84,"39564","Gas Companies","REDACTED DATA","KENT COUNTY COUNCIL (GAS & ELECTRIC)","",,"204269191"
"London Borough of Redbridge","http://opendatacommunities.org/doc/london-borough-council/redbridge","9BNONBVO","Outside the BVACOP Objective Structure","9CNONBVO","Outside the BVACOP Objective Structure","REV","Revenue","R5032","Staircase Lighting HRA","02-PREMISES","Premises","02B","Energy costs","4000","Electricity","3545567","202001",15/03/2019 00:00:00,80.91,"39564","Gas Companies","REDACTED DATA","KENT COUNTY COUNCIL (GAS & ELECTRIC)","",,"204269191"
"London Borough of Redbridge","http://opendatacommunities.org/doc/london-borough-council/redbridge","9BNONBVO","Outside the BVACOP Objective Structure","9CNONBVO","Outside the BVACOP Objective Structure","REV","Revenue","R5032","Staircase Lighting HRA","02-PREMISES","Premises","02B","Energy costs","4000","Electricity","3545567","202001",18/03/2019 00:00:00,43.1,"39564","Gas Companies","REDACTED DATA","KENT COUNTY COUNCIL (GAS & ELECTRIC)","",,"204269191"
"London Borough of Redbridge","http://opendatacommunities.org/doc/london-borough-council/redbridge","9BNONBVO","Outside the BVACOP Objective Structure","9CNONBVO","Outside the BVACOP Objective Structure","REV","Revenue","R5032","Staircase Lighting HRA","02-PREMISES","Premises","02B","Energy costs","4000","Electricity","3545567","202001",27/02/2019 00:00:00,-54.33,"39564","Gas Companies","REDACTED DATA","KENT COUNTY COUNCIL (GAS & ELECTRIC)","",,"204269191"
"London Borough of Redbridge","http://opendatacommunities.org/doc/london-borough-council/redbridge","9BNONBVO","Outside the BVACOP Objective Structure","9CNONBVO","Outside the BVACOP Objective Structure","REV","Revenue","R5032","Staircase Lighting HRA","02-PREMISES","Premises","02B","Energy costs","4000","Electricity","3545567","202001",27/02/2019 00:00:00,25.26,"39564","Gas Companies","REDACTED DATA","KENT COUNTY COUNCIL (GAS & ELECTRIC)","",,"204269191"
"London Borough of Redbridge","http://opendatacommunities.org/doc/london-borough-council/redbridge","9BNONBVO","Outside the BVACOP Objective Structure","9CNONBVO","Outside the BVACOP Objective Structure","REV","Revenue","R5032","Staircase Lighting HRA","02-PREMISES","Premises","02B","Energy costs","4000","Electricity","3545567","202001",27/02/2019 00:00:00,-82.93,"39564","Gas Companies","REDACTED DATA","KENT COUNTY COUNCIL (GAS & ELECTRIC)","",,"204269191"
"London Borough of Redbridge","http://opendatacommunities.org/doc/london-borough-council/redbridge","9BNONBVO","Outside the BVACOP Objective Structure","9CNONBVO","Outside the BVACOP Objective Structure","REV","Revenue","R5032","Staircase Lighting HRA","02-PREMISES","Premises","02B","Energy costs","4000","Electricity","3545567","202001",15/03/2019 00:00:00,71.27,"39564","Gas Companies","REDACTED DATA","KENT COUNTY COUNCIL (GAS & ELECTRIC)","",,"204269191"
"London Borough of Redbridge","http://opendatacommunities.org/doc/london-borough-council/redbridge","9BNONBVO","Outside the BVACOP Objective Structure","9CNONBVO","Outside the BVACOP Objective Structure","REV","Revenue","R5032","Staircase Lighting HRA","02-PREMISES","Premises","02B","Energy costs","4000","Electricity","3545567","202001",19/03/2019 00:00:00,54,"39564","Gas Companies","REDACTED DATA","KENT COUNTY COUNCIL (GAS & ELECTRIC)","",,"204269191"
"London Borough of Redbridge","http://opendatacommunities.org/doc/london-borough-council/redbridge","9BNONBVO","Outside the BVACOP Objective Structure","9CNONBVO","Outside the BVACOP Objective Structure","REV","Revenue","R5032","Staircase Lighting HRA","02-PREMISES","Premises","02B","Energy costs","4000","Electricity","3545567","202001",18/03/2019 00:00:00,58.73,"39564","Gas Companies","REDACTED DATA","KENT COUNTY COUNCIL (GAS & ELECTRIC)","",,"204269191"
"London Borough of Redbridge","http://opendatacommunities.org/doc/london-borough-council/redbridge","9BNONBVO","Outside the BVACOP Objective Structure","9CNONBVO","Outside the BVACOP Objective Structure","REV","Revenue","R5032","Staircase Lighting HRA","02-PREMISES","Premises","02B","Energy costs","4000","Electricity","3545567","202001",19/03/2019 00:00:00,86.26,"39564","Gas Companies","REDACTED DATA","KENT COUNTY COUNCIL (GAS & ELECTRIC)","",,"204269191"
"London Borough of Redbridge","http://opendatacommunities.org/doc/london-borough-council/redbridge","9BNONBVO","Outside the BVACOP Objective Structure","9CNONBVO","Outside the BVACOP Objective Structure","REV","Revenue","R5032","Staircase Lighting HRA","02-PREMISES","Premises","02B","Energy costs","4000","Electricity","3545567","202001",19/03/2019 00:00:00,92.87,"39564","Gas Companies","REDACTED DATA","KENT COUNTY COUNCIL (GAS & ELECTRIC)","",,"204269191"
"London Borough of Redbridge","http://opendatacommunities.org/doc/london-borough-council/redbridge","9BNONBVO","Outside the BVACOP Objective Structure","9CNONBVO","Outside the BVACOP Objective Structure","REV","Revenue","R5032","Staircase Lighting HRA","02-PREMISES","Premises","02B","Energy costs","4000","Electricity","3545567","202001",15/03/2019 00:00:00,77.43,"39564","Gas Companies","REDACTED DATA","KENT COUNTY COUNCIL (GAS & ELECTRIC)","",,"204269191"
"London Borough of Redbridge","http://opendatacommunities.org/doc/london-borough-council/redbridge","9BNONBVO","Outside the BVACOP Objective Structure","9CNONBVO","Outside the BVACOP Objective Structure","REV","Revenue","R5032","Staircase Lighting HRA","02-PREMISES","Premises","02B","Energy costs","4000","Electricity","3545567","202001",18/03/2019 00:00:00,87.37,"39564","Gas Companies","REDACTED DATA","KENT COUNTY COUNCIL (GAS & ELECTRIC)","",,"204269191"
"London Borough of Redbridge","http://opendatacommunities.org/doc/london-borough-council/redbridge","9BNONBVO","Outside the BVACOP Objective Structure","9CNONBVO","Outside the BVACOP Objective Structure","REV","Revenue","R5032","Staircase Lighting HRA","02-PREMISES","Premises","02B","Energy costs","4000","Electricity","3545567","202001",15/03/2019 00:00:00,146.1,"39564","Gas Companies","REDACTED DATA","KENT COUNTY COUNCIL (GAS & ELECTRIC)","",,"204269191"
"London Borough of Redbridge","http://opendatacommunities.org/doc/london-borough-council/redbridge","9BNONBVO","Outside the BVACOP Objective Structure","9CNONBVO","Outside the BVACOP Objective Structure","REV","Revenue","R5032","Staircase Lighting HRA","02-PREMISES","Premises","02B","Energy costs","4000","Electricity","3545567","202001",19/03/2019 00:00:00,73.78,"39564","Gas Companies","REDACTED DATA","KENT COUNTY COUNCIL (GAS & ELECTRIC)","",,"204269191"
"London Borough of Redbridge","http://opendatacommunities.org/doc/london-borough-council/redbridge","9BNONBVO","Outside the BVACOP Objective Structure","9CNONBVO","Outside the BVACOP Objective Structure","REV","Revenue","R5032","Staircase Lighting HRA","02-PREMISES","Premises","02B","Energy costs","4000","Electricity","3545567","202001",19/03/2019 00:00:00,66.64,"39564","Gas Companies","REDACTED DATA","KENT COUNTY COUNCIL (GAS & ELECTRIC)","",,"204269191"
"London Borough of Redbridge","http://opendatacommunities.org/doc/london-borough-council/redbridge","9BNONBVO","Outside the BVACOP Objective Structure","9CNONBVO","Outside the BVACOP Objective Structure","REV","Revenue","R5032","Staircase Lighting HRA","02-PREMISES","Premises","02B","Energy costs","4000","Electricity","3545567","202001",15/03/2019 00:00:00,127.65,"39564","Gas Companies","REDACTED DATA","KENT COUNTY COUNCIL (GAS & ELECTRIC)","",,"204269191"
"London Borough of Redbridge","http://opendatacommunities.org/doc/london-borough-council/redbridge","9BNONBVO","Outside the BVACOP Objective Structure","9CNONBVO","Outside the BVACOP Objective Structure","REV","Revenue","R5032","Staircase Lighting HRA","02-PREMISES","Premises","02B","Energy costs","4000","Electricity","3545567","202001",14/03/2019 00:00:00,1308.21,"39564","Gas Companies","REDACTED DATA","KENT COUNTY COUNCIL (GAS & ELECTRIC)","",,"204269191"
"London Borough of Redbridge","http://opendatacommunities.org/doc/london-borough-council/redbridge","9BNONBVO","Outside the BVACOP Objective Structure","9CNONBVO","Outside the BVACOP Objective Structure","REV","Revenue","R5032","Staircase Lighting HRA","02-PREMISES","Premises","02B","Energy costs","4000","Electricity","3545567","202001",19/03/2019 00:00:00,50.18,"39564","Gas Companies","REDACTED DATA","KENT COUNTY COUNCIL (GAS & ELECTRIC)","",,"204269191"
"London Borough of Redbridge","http://opendatacommunities.org/doc/london-borough-council/redbridge","9BNONBVO","Outside the BVACOP Objective Structure","9CNONBVO","Outside the BVACOP Objective Structure","REV","Revenue","R5032","Staircase Lighting HRA","02-PREMISES","Premises","02B","Energy costs","4000","Electricity","3545567","202001",15/03/2019 00:00:00,66.79,"39564","Gas Companies","REDACTED DATA","KENT COUNTY COUNCIL (GAS & ELECTRIC)","",,"204269191"
"London Borough of Redbridge","http://opendatacommunities.org/doc/london-borough-council/redbridge","9BNONBVO","Outside the BVACOP Objective Structure","9CNONBVO","Outside the BVACOP Objective Structure","REV","Revenue","R5032","Staircase Lighting HRA","02-PREMISES","Premises","02B","Energy costs","4000","Electricity","3545567","202001",27/02/2019 00:00:00,48.18,"39564","Gas Companies","REDACTED DATA","KENT COUNTY COUNCIL (GAS & ELECTRIC)","",,"204269191"
"London Borough of Redbridge","http://opendatacommunities.org/doc/london-borough-council/redbridge","9BNONBVO","Outside the BVACOP Objective Structure","9CNONBVO","Outside the BVACOP Objective Structure","REV","Revenue","R5032","Staircase Lighting HRA","02-PREMISES","Premises","02B","Energy costs","4000","Electricity","3545567","202001",27/02/2019 00:00:00,24.01,"39564","Gas Companies","REDACTED DATA","KENT COUNTY COUNCIL (GAS & ELECTRIC)","",,"204269191"
"London Borough of Redbridge","http://opendatacommunities.org/doc/london-borough-council/redbridge","9BNONBVO","Outside the BVACOP Objective Structure","9CNONBVO","Outside the BVACOP Objective Structure","REV","Revenue","R5032","Staircase Lighting HRA","02-PREMISES","Premises","02B","Energy costs","4000","Electricity","3545567","202001",19/03/2019 00:00:00,52.98,"39564","Gas Companies","REDACTED DATA","KENT COUNTY COUNCIL (GAS & ELECTRIC)","",,"204269191"
"London Borough of Redbridge","http://opendatacommunities.org/doc/london-borough-council/redbridge","9BNONBVO","Outside the BVACOP Objective Structure","9CNONBVO","Outside the BVACOP Objective Structure","REV","Revenue","R5032","Staircase Lighting HRA","02-PREMISES","Premises","02B","Energy costs","4000","Electricity","3545567","202001",15/03/2019 00:00:00,49.81,"39564","Gas Companies","REDACTED DATA","KENT COUNTY COUNCIL (GAS & ELECTRIC)","",,"204269191"
"London Borough of Redbridge","http://opendatacommunities.org/doc/london-borough-council/redbridge","9BNONBVO","Outside the BVACOP Objective Structure","9CNONBVO","Outside the BVACOP Objective Structure","REV","Revenue","R5032","Staircase Lighting HRA","02-PREMISES","Premises","02B","Energy costs","4000","Electricity","3545567","202001",18/03/2019 00:00:00,62.24,"39564","Gas Companies","REDACTED DATA","KENT COUNTY COUNCIL (GAS & ELECTRIC)","",,"204269191"
"London Borough of Redbridge","http://opendatacommunities.org/doc/london-borough-council/redbridge","9BNONBVO","Outside the BVACOP Objective Structure","9CNONBVO","Outside the BVACOP Objective Structure","REV","Revenue","R5032","Staircase Lighting HRA","02-PREMISES","Premises","02B","Energy costs","4000","Electricity","3545567","202001",19/03/2019 00:00:00,81.98,"39564","Gas Companies","REDACTED DATA","KENT COUNTY COUNCIL (GAS & ELECTRIC)","",,"204269191"
"London Borough of Redbridge","http://opendatacommunities.org/doc/london-borough-council/redbridge","9BNONBVO","Outside the BVACOP Objective Structure","9CNONBVO","Outside the BVACOP Objective Structure","REV","Revenue","R5032","Staircase Lighting HRA","02-PREMISES","Premises","02B","Energy costs","4000","Electricity","3545567","202001",18/03/2019 00:00:00,1404.47,"39564","Gas Companies","REDACTED DATA","KENT COUNTY COUNCIL (GAS & ELECTRIC)","",,"204269191"
"London Borough of Redbridge","http://opendatacommunities.org/doc/london-borough-council/redbridge","9BNONBVO","Outside the BVACOP Objective Structure","9CNONBVO","Outside the BVACOP Objective Structure","REV","Revenue","R5032","Staircase Lighting HRA","02-PREMISES","Premises","02B","Energy costs","4000","Electricity","3545567","202001",15/03/2019 00:00:00,57.43,"39564","Gas Companies","REDACTED DATA","KENT COUNTY COUNCIL (GAS & ELECTRIC)","",,"204269191"
"London Borough of Redbridge","http://opendatacommunities.org/doc/london-borough-council/redbridge","9BNONBVO","Outside the BVACOP Objective Structure","9CNONBVO","Outside the BVACOP Objective Structure","REV","Revenue","R5032","Staircase Lighting HRA","02-PREMISES","Premises","02B","Energy costs","4000","Electricity","3545567","202001",27/02/2019 00:00:00,-321.53,"39564","Gas Companies","REDACTED DATA","KENT COUNTY COUNCIL (GAS & ELECTRIC)","",,"204269191"
"London Borough of Redbridge","http://opendatacommunities.org/doc/london-borough-council/redbridge","9BNONBVO","Outside the BVACOP Objective Structure","9CNONBVO","Outside the BVACOP Objective Structure","REV","Revenue","R5032","Staircase Lighting HRA","02-PREMISES","Premises","02B","Energy costs","4000","Electricity","3545567","202001",18/03/2019 00:00:00,43.87,"39564","Gas Companies","REDACTED DATA","KENT COUNTY COUNCIL (GAS & ELECTRIC)","",,"204269191"
"London Borough of Redbridge","http://opendatacommunities.org/doc/london-borough-council/redbridge","9BNONBVO","Outside the BVACOP Objective Structure","9CNONBVO","Outside the BVACOP Objective Structure","REV","Revenue","R5032","Staircase Lighting HRA","02-PREMISES","Premises","02B","Energy costs","4000","Electricity","3545567","202001",15/03/2019 00:00:00,72.12,"39564","Gas Companies","REDACTED DATA","KENT COUNTY COUNCIL (GAS & ELECTRIC)","",,"204269191"
"London Borough of Redbridge","http://opendatacommunities.org/doc/london-borough-council/redbridge","9BNONBVO","Outside the BVACOP Objective Structure","9CNONBVO","Outside the BVACOP Objective Structure","REV","Revenue","R5032","Staircase Lighting HRA","02-PREMISES","Premises","02B","Energy costs","4000","Electricity","3545567","202001",19/03/2019 00:00:00,82.7,"39564","Gas Companies","REDACTED DATA","KENT COUNTY COUNCIL (GAS & ELECTRIC)","",,"204269191"
"London Borough of Redbridge","http://opendatacommunities.org/doc/london-borough-council/redbridge","9BNONBVO","Outside the BVACOP Objective Structure","9CNONBVO","Outside the BVACOP Objective Structure","REV","Revenue","R5032","Staircase Lighting HRA","02-PREMISES","Premises","02B","Energy costs","4000","Electricity","3545567","202001",15/03/2019 00:00:00,54.99,"39564","Gas Companies","REDACTED DATA","KENT COUNTY COUNCIL (GAS & ELECTRIC)","",,"204269191"
"London Borough of Redbridge","http://opendatacommunities.org/doc/london-borough-council/redbridge","9BNONBVO","Outside the BVACOP Objective Structure","9CNONBVO","Outside the BVACOP Objective Structure","REV","Revenue","R5032","Staircase Lighting HRA","02-PREMISES","Premises","02B","Energy costs","4000","Electricity","3545567","202001",18/03/2019 00:00:00,89.29,"39564","Gas Companies","REDACTED DATA","KENT COUNTY COUNCIL (GAS & ELECTRIC)","",,"204269191"
"London Borough of Redbridge","http://opendatacommunities.org/doc/london-borough-council/redbridge","9BNONBVO","Outside the BVACOP Objective Structure","9CNONBVO","Outside the BVACOP Objective Structure","REV","Revenue","R5032","Staircase Lighting HRA","02-PREMISES","Premises","02B","Energy costs","4000","Electricity","3545567","202001",14/03/2019 00:00:00,2214.75,"39564","Gas Companies","REDACTED DATA","KENT COUNTY COUNCIL (GAS & ELECTRIC)","",,"204269191"
"London Borough of Redbridge","http://opendatacommunities.org/doc/london-borough-council/redbridge","9BNONBVO","Outside the BVACOP Objective Structure","9CNONBVO","Outside the BVACOP Objective Structure","REV","Revenue","R5032","Staircase Lighting HRA","02-PREMISES","Premises","02B","Energy costs","4000","Electricity","3545567","202001",14/03/2019 00:00:00,197.83,"39564","Gas Companies","REDACTED DATA","KENT COUNTY COUNCIL (GAS & ELECTRIC)","",,"204269191"
"London Borough of Redbridge","http://opendatacommunities.org/doc/london-borough-council/redbridge","9BNONBVO","Outside the BVACOP Objective Structure","9CNONBVO","Outside the BVACOP Objective Structure","REV","Revenue","R5032","Staircase Lighting HRA","02-PREMISES","Premises","02B","Energy costs","4000","Electricity","3545567","202001",15/03/2019 00:00:00,81.83,"39564","Gas Companies","REDACTED DATA","KENT COUNTY COUNCIL (GAS & ELECTRIC)","",,"204269191"
"London Borough of Redbridge","http://opendatacommunities.org/doc/london-borough-council/redbridge","9BNONBVO","Outside the BVACOP Objective Structure","9CNONBVO","Outside the BVACOP Objective Structure","REV","Revenue","R5032","Staircase Lighting HRA","02-PREMISES","Premises","02B","Energy costs","4000","Electricity","3545567","202001",18/03/2019 00:00:00,46.84,"39564","Gas Companies","REDACTED DATA","KENT COUNTY COUNCIL (GAS & ELECTRIC)","",,"204269191"
"London Borough of Redbridge","http://opendatacommunities.org/doc/london-borough-council/redbridge","9BNONBVO","Outside the BVACOP Objective Structure","9CNONBVO","Outside the BVACOP Objective Structure","REV","Revenue","R5032","Staircase Lighting HRA","02-PREMISES","Premises","02B","Energy costs","4000","Electricity","3545567","202001",14/03/2019 00:00:00,235.18,"39564","Gas Companies","REDACTED DATA","KENT COUNTY COUNCIL (GAS & ELECTRIC)","",,"204269191"
"London Borough of Redbridge","http://opendatacommunities.org/doc/london-borough-council/redbridge","9BNONBVO","Outside the BVACOP Objective Structure","9CNONBVO","Outside the BVACOP Objective Structure","REV","Revenue","R5032","Staircase Lighting HRA","02-PREMISES","Premises","02B","Energy costs","4000","Electricity","3545567","202001",18/03/2019 00:00:00,130.05,"39564","Gas Companies","REDACTED DATA","KENT COUNTY COUNCIL (GAS & ELECTRIC)","",,"204269191"
"London Borough of Redbridge","http://opendatacommunities.org/doc/london-borough-council/redbridge","9BNONBVO","Outside the BVACOP Objective Structure","9CNONBVO","Outside the BVACOP Objective Structure","REV","Revenue","R5032","Staircase Lighting HRA","02-PREMISES","Premises","02B","Energy costs","4000","Electricity","3545567","202001",19/03/2019 00:00:00,2501.24,"39564","Gas Companies","REDACTED DATA","KENT COUNTY COUNCIL (GAS & ELECTRIC)","",,"204269191"
"London Borough of Redbridge","http://opendatacommunities.org/doc/london-borough-council/redbridge","9BNONBVO","Outside the BVACOP Objective Structure","9CNONBVO","Outside the BVACOP Objective Structure","REV","Revenue","R5032","Staircase Lighting HRA","02-PREMISES","Premises","02B","Energy costs","4000","Electricity","3545567","202001",19/03/2019 00:00:00,125.52,"39564","Gas Companies","REDACTED DATA","KENT COUNTY COUNCIL (GAS & ELECTRIC)","",,"204269191"
"London Borough of Redbridge","http://opendatacommunities.org/doc/london-borough-council/redbridge","9BNONBVO","Outside the BVACOP Objective Structure","9CNONBVO","Outside the BVACOP Objective Structure","REV","Revenue","R5032","Staircase Lighting HRA","02-PREMISES","Premises","02B","Energy costs","4000","Electricity","3545567","202001",21/02/2019 00:00:00,145.26,"39564","Gas Companies","REDACTED DATA","KENT COUNTY COUNCIL (GAS & ELECTRIC)","",,"204269191"
"London Borough of Redbridge","http://opendatacommunities.org/doc/london-borough-council/redbridge","9BNONBVO","Outside the BVACOP Objective Structure","9CNONBVO","Outside the BVACOP Objective Structure","REV","Revenue","R5032","Staircase Lighting HRA","02-PREMISES","Premises","02B","Energy costs","4000","Electricity","3545567","202001",21/02/2019 00:00:00,48.4,"39564","Gas Companies","REDACTED DATA","KENT COUNTY COUNCIL (GAS & ELECTRIC)","",,"204269191"
"London Borough of Redbridge","http://opendatacommunities.org/doc/london-borough-council/redbridge","9BNONBVO","Outside the BVACOP Objective Structure","9CNONBVO","Outside the BVACOP Objective Structure","REV","Revenue","R5032","Staircase Lighting HRA","02-PREMISES","Premises","02B","Energy costs","4000","Electricity","3545567","202001",21/02/2019 00:00:00,83.81,"39564","Gas Companies","REDACTED DATA","KENT COUNTY COUNCIL (GAS & ELECTRIC)","",,"204269191"
"London Borough of Redbridge","http://opendatacommunities.org/doc/london-borough-council/redbridge","9BNONBVO","Outside the BVACOP Objective Structure","9CNONBVO","Outside the BVACOP Objective Structure","REV","Revenue","R5032","Staircase Lighting HRA","02-PREMISES","Premises","02B","Energy costs","4000","Electricity","3545567","202001",18/03/2019 00:00:00,87.81,"39564","Gas Companies","REDACTED DATA","KENT COUNTY COUNCIL (GAS & ELECTRIC)","",,"204269191"
"London Borough of Redbridge","http://opendatacommunities.org/doc/london-borough-council/redbridge","9BNONBVO","Outside the BVACOP Objective Structure","9CNONBVO","Outside the BVACOP Objective Structure","REV","Revenue","R5032","Staircase Lighting HRA","02-PREMISES","Premises","02B","Energy costs","4000","Electricity","3545567","202001",27/02/2019 00:00:00,69.2,"39564","Gas Companies","REDACTED DATA","KENT COUNTY COUNCIL (GAS & ELECTRIC)","",,"204269191"
"London Borough of Redbridge","http://opendatacommunities.org/doc/london-borough-council/redbridge","9BNONBVO","Outside the BVACOP Objective Structure","9CNONBVO","Outside the BVACOP Objective Structure","REV","Revenue","R5032","Staircase Lighting HRA","02-PREMISES","Premises","02B","Energy costs","4000","Electricity","3545567","202001",27/02/2019 00:00:00,35.96,"39564","Gas Companies","REDACTED DATA","KENT COUNTY COUNCIL (GAS & ELECTRIC)","",,"204269191"
"London Borough of Redbridge","http://opendatacommunities.org/doc/london-borough-council/redbridge","9BNONBVO","Outside the BVACOP Objective Structure","9CNONBVO","Outside the BVACOP Objective Structure","REV","Revenue","R5032","Staircase Lighting HRA","02-PREMISES","Premises","02B","Energy costs","4000","Electricity","3545567","202001",27/02/2019 00:00:00,529.27,"39564","Gas Companies","REDACTED DATA","KENT COUNTY COUNCIL (GAS & ELECTRIC)","",,"204269191"
"London Borough of Redbridge","http://opendatacommunities.org/doc/london-borough-council/redbridge","9BNONBVO","Outside the BVACOP Objective Structure","9CNONBVO","Outside the BVACOP Objective Structure","REV","Revenue","R5032","Staircase Lighting HRA","02-PREMISES","Premises","02B","Energy costs","4000","Electricity","3545567","202001",15/03/2019 00:00:00,104.08,"39564","Gas Companies","REDACTED DATA","KENT COUNTY COUNCIL (GAS & ELECTRIC)","",,"204269191"
"London Borough of Redbridge","http://opendatacommunities.org/doc/london-borough-council/redbridge","9BNONBVO","Outside the BVACOP Objective Structure","9CNONBVO","Outside the BVACOP Objective Structure","REV","Revenue","R5032","Staircase Lighting HRA","02-PREMISES","Premises","02B","Energy costs","4000","Electricity","3545567","202001",19/03/2019 00:00:00,89.65,"39564","Gas Companies","REDACTED DATA","KENT COUNTY COUNCIL (GAS & ELECTRIC)","",,"204269191"
"London Borough of Redbridge","http://opendatacommunities.org/doc/london-borough-council/redbridge","9BNONBVO","Outside the BVACOP Objective Structure","9CNONBVO","Outside the BVACOP Objective Structure","REV","Revenue","R5032","Staircase Lighting HRA","02-PREMISES","Premises","02B","Energy costs","4000","Electricity","3545567","202001",18/03/2019 00:00:00,81.24,"39564","Gas Companies","REDACTED DATA","KENT COUNTY COUNCIL (GAS & ELECTRIC)","",,"204269191"
"London Borough of Redbridge","http://opendatacommunities.org/doc/london-borough-council/redbridge","9BNONBVO","Outside the BVACOP Objective Structure","9CNONBVO","Outside the BVACOP Objective Structure","REV","Revenue","R5032","Staircase Lighting HRA","02-PREMISES","Premises","02B","Energy costs","4000","Electricity","3545567","202001",27/02/2019 00:00:00,-84.03,"39564","Gas Companies","REDACTED DATA","KENT COUNTY COUNCIL (GAS & ELECTRIC)","",,"204269191"
"London Borough of Redbridge","http://opendatacommunities.org/doc/london-borough-council/redbridge","9BNONBVO","Outside the BVACOP Objective Structure","9CNONBVO","Outside the BVACOP Objective Structure","REV","Revenue","R5032","Staircase Lighting HRA","02-PREMISES","Premises","02B","Energy costs","4000","Electricity","3545567","202001",19/03/2019 00:00:00,89.27,"39564","Gas Companies","REDACTED DATA","KENT COUNTY COUNCIL (GAS & ELECTRIC)","",,"204269191"
"London Borough of Redbridge","http://opendatacommunities.org/doc/london-borough-council/redbridge","9BNONBVO","Outside the BVACOP Objective Structure","9CNONBVO","Outside the BVACOP Objective Structure","REV","Revenue","R5114","Shu HRA Expenses","02-PREMISES","Premises","02B","Energy costs","4000","Electricity","3545567","202001",13/03/2019 00:00:00,582.58,"39564","Gas Companies","REDACTED DATA","KENT COUNTY COUNCIL (GAS & ELECTRIC)","",,"204269191"
"London Borough of Redbridge","http://opendatacommunities.org/doc/london-borough-council/redbridge","9BNONBVO","Outside the BVACOP Objective Structure","9CNONBVO","Outside the BVACOP Objective Structure","REV","Revenue","R5114","Shu HRA Expenses","02-PREMISES","Premises","02B","Energy costs","4000","Electricity","3545567","202001",15/03/2019 00:00:00,152.48,"39564","Gas Companies","REDACTED DATA","KENT COUNTY COUNCIL (GAS & ELECTRIC)","",,"204269191"
"London Borough of Redbridge","http://opendatacommunities.org/doc/london-borough-council/redbridge","9BNONBVO","Outside the BVACOP Objective Structure","9CNONBVO","Outside the BVACOP Objective Structure","REV","Revenue","R5114","Shu HRA Expenses","02-PREMISES","Premises","02B","Energy costs","4000","Electricity","3545567","202001",25/02/2019 00:00:00,150.67,"39564","Gas Companies","REDACTED DATA","KENT COUNTY COUNCIL (GAS & ELECTRIC)","",,"204269191"
"London Borough of Redbridge","http://opendatacommunities.org/doc/london-borough-council/redbridge","9BNONBVO","Outside the BVACOP Objective Structure","9CNONBVO","Outside the BVACOP Objective Structure","REV","Revenue","R5114","Shu HRA Expenses","02-PREMISES","Premises","02B","Energy costs","4000","Electricity","3545567","202001",25/02/2019 00:00:00,754.35,"39564","Gas Companies","REDACTED DATA","KENT COUNTY COUNCIL (GAS & ELECTRIC)","",,"204269191"
"London Borough of Redbridge","http://opendatacommunities.org/doc/london-borough-council/redbridge","9BNONBVO","Outside the BVACOP Objective Structure","9CNONBVO","Outside the BVACOP Objective Structure","REV","Revenue","R5211","Orchard and Manford Office Costs","02-PREMISES","Premises","02B","Energy costs","4000","Electricity","3545567","202001",13/03/2019 00:00:00,1557.21,"39564","Gas Companies","REDACTED DATA","KENT COUNTY COUNCIL (GAS & ELECTRIC)","",,"204269191"
"London Borough of Redbridge","http://opendatacommunities.org/doc/london-borough-council/redbridge","3BLEACENTFND","LEA Centrally Held School Funds","3CNONSCH","Non Schools","REV","Revenue","R3258","ISS Paid School Meals","05-THIRD","Third Party Payments","05A","Independent units within the council","6513","Agency & Contracted Services","70107304","202001",05/04/2019 00:00:00,35904.09,"16270","Catering Schools","REDACTED DATA","ISS CATERHOUSE - ISS MEDICLEAN LTD(EDUCATION CATERING CASH COLLECTIONS)","1659837","http://opencorporates.com/companies/gb/1659837",""
"London Borough of Redbridge","http://opendatacommunities.org/doc/london-borough-council/redbridge","5BGFHOUSING","General Fund Housing","5CHOUSBENADM","Housing Benefits Administration","REV","Revenue","R5771","Benefits Administration","04-SUPPLIES","Supplies And Services","04F","Communications and computing","5853","Computer Software","60401917","202001",28/02/2019 00:00:00,14929,"12100","Business and Management Consultants","REDACTED DATA","POLICY IN PRACTICE LTD","7042993","http://opencorporates.com/companies/gb/7042993","983828759"
"London Borough of Redbridge","http://opendatacommunities.org/doc/london-borough-council/redbridge","9BNONBVO","Outside the BVACOP Objective Structure","9CNONBVO","Outside the BVACOP Objective Structure","REV","Revenue","R5223","Income Recovery Team (HRA)","04-SUPPLIES","Supplies And Services","04E","Services","5754","Consultancy","60401917","202001",28/02/2019 00:00:00,14929,"12100","Business and Management Consultants","REDACTED DATA","POLICY IN PRACTICE LTD","7042993","http://opencorporates.com/companies/gb/7042993","983828759"
"London Borough of Redbridge","http://opendatacommunities.org/doc/london-borough-council/redbridge","1BCENTRALPUB","Central Services to the Public","1CTRADSURDEF","Trading Account Surpluses & Deficits","REV","Revenue","R3976","Local London Work and Health Programme (ESF)","04-SUPPLIES","Supplies And Services","04H","Grants and subscriptions","5955","Fees","60400140","201912",22/03/2019 00:00:00,29800,"31235","Employment Service","REDACTED DATA","MAXIMUS PEOPLE SERVICES LTD","3752300","http://opencorporates.com/companies/gb/3752300","585594190"
"London Borough of Redbridge","http://opendatacommunities.org/doc/london-borough-council/redbridge","1BOTHEROPI&E","Other Operating Income & Expenditure","1CTRADSURDEF","Trading Account Surpluses & Deficits","REV","Revenue","R9252","IT Applications","04-SUPPLIES","Supplies And Services","04F","Communications and computing","5851","Computer Equipment - Purchases","60402347","202001",03/04/2019 00:00:00,29010.62,"57614","Photocopiers","REDACTED DATA","CANON UK LTD","1264300","http://opencorporates.com/companies/gb/1264300","523797128"
"London Borough of Redbridge","http://opendatacommunities.org/doc/london-borough-council/redbridge","6BSOCIALSERV","Social Services","6CCHILCOMSNG","Children's Services - Commissioning & Social Work","REV","Revenue","R2192","CQF - Practice Education","01-EMPLOYEES","Employees","01B","Indirect employee expenses","2403","External Training","60400963","202001",28/02/2019 00:00:00,34200,"81491","Universities and Medical Schools","REDACTED DATA","UNIVERSITY OF EAST LONDON","",,"506471361"
"London Borough of Redbridge","http://opendatacommunities.org/doc/london-borough-council/redbridge","9BNONBVO","Outside the BVACOP Objective Structure","9CNONBVO","Outside the BVACOP Objective Structure","CAP","Capital","C2107","Environmental Works","99-NONBV","Capital, Balance Sheet and Control","50E","Capital - Contract Payments","9150","Main Contract","60399588","202001",08/03/2019 00:00:00,27913.71,"11400","Building Services","REDACTED DATA","LAWTECH GROUP LTD","5301280","http://opencorporates.com/companies/gb/5301280","852048141"
"London Borough of Redbridge","http://opendatacommunities.org/doc/london-borough-council/redbridge","9BNONBVO","Outside the BVACOP Objective Structure","9CNONBVO","Outside the BVACOP Objective Structure","BAL","Balance Sheet","B2001","Insurance Fund","99-NONBV","Capital, Balance Sheet and Control","50K","Current Assets","9314","Advance To MMI","70107461","202001",10/04/2019 00:00:00,33464.62,"45415","Insurance - Other","REDACTED DATA","ZURICH MUNICIPAL","",,""
"London Borough of Redbridge","http://opendatacommunities.org/doc/london-borough-council/redbridge","9BNONBVO","Outside the BVACOP Objective Structure","9CNONBVO","Outside the BVACOP Objective Structure","REV","Revenue","R0056","Loans Fund - Revenue Exp","09-INCOME","Income","09D","Interest","8703","Interest On Temporary Investments","70107461","202001",10/04/2019 00:00:00,-44.59,"45415","Insurance - Other","REDACTED DATA","ZURICH MUNICIPAL","",,""
"London Borough of Redbridge","http://opendatacommunities.org/doc/london-borough-council/redbridge","9BNONBVO","Outside the BVACOP Objective Structure","9CNONBVO","Outside the BVACOP Objective Structure","BAL","Balance Sheet","B0059","DUMMY VAT ACCOUNT","99-NONBV","Capital, Balance Sheet and Control","50L","Debtors","9359","VAT only invoices","70107175","202001",28/02/2019 00:00:00,32823.6,"47846","Letting Agents","REDACTED DATA","FINEFAIR CONSULTANCY  LTD(NIGHTLY LETS)","4661895","http://opencorporates.com/companies/gb/4661895","809945391"
"London Borough of Redbridge","http://opendatacommunities.org/doc/london-borough-council/redbridge","5BGFHOUSING","General Fund Housing","5CHOMELESS","Homelessness","REV","Revenue","R5630","HAC Temporary Accomodation","05-THIRD","Third Party Payments","05H","Private contractors","6900","Nightly Let Plus Charges","3547061","202001",31/03/2019 00:00:00,797.94,"31230","Employment and Recruitment Agencies","REDACTED DATA","ADAM HTT LIMITED T/A ADAM","7718565","http://opencorporates.com/companies/gb/7718565","198573349"
"London Borough of Redbridge","http://opendatacommunities.org/doc/london-borough-council/redbridge","5BGFHOUSING","General Fund Housing","5CHOMELESS","Homelessness","REV","Revenue","R5630","HAC Temporary Accomodation","05-THIRD","Third Party Payments","05H","Private contractors","6900","Nightly Let Plus Charges","3547061","202001",31/03/2019 00:00:00,1178,"31230","Employment and Recruitment Agencies","REDACTED DATA","ADAM HTT LIMITED T/A ADAM","7718565","http://opencorporates.com/companies/gb/7718565","198573349"
"London Borough of Redbridge","http://opendatacommunities.org/doc/london-borough-council/redbridge","5BGFHOUSING","General Fund Housing","5CHOMELESS","Homelessness","REV","Revenue","R5630","HAC Temporary Accomodation","05-THIRD","Third Party Payments","05H","Private contractors","6900","Nightly Let Plus Charges","3547061","202001",31/03/2019 00:00:00,1798,"31230","Employment and Recruitment Agencies","REDACTED DATA","ADAM HTT LIMITED T/A ADAM","7718565","http://opencorporates.com/companies/gb/7718565","198573349"
"London Borough of Redbridge","http://opendatacommunities.org/doc/london-borough-council/redbridge","5BGFHOUSING","General Fund Housing","5CHOMELESS","Homelessness","REV","Revenue","R5630","HAC Temporary Accomodation","05-THIRD","Third Party Payments","05H","Private contractors","6900","Nightly Let Plus Charges","3547061","202001",22/03/2019 00:00:00,1050,"31230","Employment and Recruitment Agencies","REDACTED DATA","ADAM HTT LIMITED T/A ADAM","7718565","http://opencorporates.com/companies/gb/7718565","198573349"
"London Borough of Redbridge","http://opendatacommunities.org/doc/london-borough-council/redbridge","5BGFHOUSING","General Fund Housing","5CHOMELESS","Homelessness","REV","Revenue","R5630","HAC Temporary Accomodation","05-THIRD","Third Party Payments","05H","Private contractors","6900","Nightly Let Plus Charges","3547061","202001",22/03/2019 00:00:00,-1085,"31230","Employment and Recruitment Agencies","REDACTED DATA","ADAM HTT LIMITED T/A ADAM","7718565","http://opencorporates.com/companies/gb/7718565","198573349"
"London Borough of Redbridge","http://opendatacommunities.org/doc/london-borough-council/redbridge","5BGFHOUSING","General Fund Housing","5CHOMELESS","Homelessness","REV","Revenue","R5630","HAC Temporary Accomodation","05-THIRD","Third Party Payments","05H","Private contractors","6900","Nightly Let Plus Charges","3547061","202001",31/03/2019 00:00:00,797.94,"31230","Employment and Recruitment Agencies","REDACTED DATA","ADAM HTT LIMITED T/A ADAM","7718565","http://opencorporates.com/companies/gb/7718565","198573349"
"London Borough of Redbridge","http://opendatacommunities.org/doc/london-borough-council/redbridge","5BGFHOUSING","General Fund Housing","5CHOMELESS","Homelessness","REV","Revenue","R5630","HAC Temporary Accomodation","05-THIRD","Third Party Payments","05H","Private contractors","6900","Nightly Let Plus Charges","3547061","202001",31/03/2019 00:00:00,1240,"31230","Employment and Recruitment Agencies","REDACTED DATA","ADAM HTT LIMITED T/A ADAM","7718565","http://opencorporates.com/companies/gb/7718565","198573349"
"London Borough of Redbridge","http://opendatacommunities.org/doc/london-borough-council/redbridge","5BGFHOUSING","General Fund Housing","5CHOMELESS","Homelessness","REV","Revenue","R5630","HAC Temporary Accomodation","05-THIRD","Third Party Payments","05H","Private contractors","6900","Nightly Let Plus Charges","3547061","202001",31/03/2019 00:00:00,930,"31230","Employment and Recruitment Agencies","REDACTED DATA","ADAM HTT LIMITED T/A ADAM","7718565","http://opencorporates.com/companies/gb/7718565","198573349"
"London Borough of Redbridge","http://opendatacommunities.org/doc/london-borough-council/redbridge","5BGFHOUSING","General Fund Housing","5CHOMELESS","Homelessness","REV","Revenue","R5630","HAC Temporary Accomodation","05-THIRD","Third Party Payments","05H","Private contractors","6900","Nightly Let Plus Charges","3547061","202001",31/03/2019 00:00:00,1116,"31230","Employment and Recruitment Agencies","REDACTED DATA","ADAM HTT LIMITED T/A ADAM","7718565","http://opencorporates.com/companies/gb/7718565","198573349"
"London Borough of Redbridge","http://opendatacommunities.org/doc/london-borough-council/redbridge","5BGFHOUSING","General Fund Housing","5CHOMELESS","Homelessness","REV","Revenue","R5630","HAC Temporary Accomodation","05-THIRD","Third Party Payments","05H","Private contractors","6900","Nightly Let Plus Charges","3547061","202001",31/03/2019 00:00:00,1878.6,"31230","Employment and Recruitment Agencies","REDACTED DATA","ADAM HTT LIMITED T/A ADAM","7718565","http://opencorporates.com/companies/gb/7718565","198573349"
"London Borough of Redbridge","http://opendatacommunities.org/doc/london-borough-council/redbridge","5BGFHOUSING","General Fund Housing","5CHOMELESS","Homelessness","REV","Revenue","R5630","HAC Temporary Accomodation","05-THIRD","Third Party Payments","05H","Private contractors","6900","Nightly Let Plus Charges","3547061","202001",31/03/2019 00:00:00,1060.51,"31230","Employment and Recruitment Agencies","REDACTED DATA","ADAM HTT LIMITED T/A ADAM","7718565","http://opencorporates.com/companies/gb/7718565","198573349"
"London Borough of Redbridge","http://opendatacommunities.org/doc/london-borough-council/redbridge","5BGFHOUSING","General Fund Housing","5CHOMELESS","Homelessness","REV","Revenue","R5630","HAC Temporary Accomodation","05-THIRD","Third Party Payments","05H","Private contractors","6900","Nightly Let Plus Charges","3547061","202001",31/03/2019 00:00:00,930,"31230","Employment and Recruitment Agencies","REDACTED DATA","ADAM HTT LIMITED T/A ADAM","7718565","http://opencorporates.com/companies/gb/7718565","198573349"
"London Borough of Redbridge","http://opendatacommunities.org/doc/london-borough-council/redbridge","5BGFHOUSING","General Fund Housing","5CHOMELESS","Homelessness","REV","Revenue","R5630","HAC Temporary Accomodation","05-THIRD","Third Party Payments","05H","Private contractors","6900","Nightly Let Plus Charges","3547061","202001",31/03/2019 00:00:00,930,"31230","Employment and Recruitment Agencies","REDACTED DATA","ADAM HTT LIMITED T/A ADAM","7718565","http://opencorporates.com/companies/gb/7718565","198573349"
"London Borough of Redbridge","http://opendatacommunities.org/doc/london-borough-council/redbridge","5BGFHOUSING","General Fund Housing","5CHOMELESS","Homelessness","REV","Revenue","R5630","HAC Temporary Accomodation","05-THIRD","Third Party Payments","05H","Private contractors","6900","Nightly Let Plus Charges","3547061","202001",31/03/2019 00:00:00,930,"31230","Employment and Recruitment Agencies","REDACTED DATA","ADAM HTT LIMITED T/A ADAM","7718565","http://opencorporates.com/companies/gb/7718565","198573349"
"London Borough of Redbridge","http://opendatacommunities.org/doc/london-borough-council/redbridge","5BGFHOUSING","General Fund Housing","5CHOMELESS","Homelessness","REV","Revenue","R5630","HAC Temporary Accomodation","05-THIRD","Third Party Payments","05H","Private contractors","6900","Nightly Let Plus Charges","3547061","202001",31/03/2019 00:00:00,1302,"31230","Employment and Recruitment Agencies","REDACTED DATA","ADAM HTT LIMITED T/A ADAM","7718565","http://opencorporates.com/companies/gb/7718565","198573349"
"London Borough of Redbridge","http://opendatacommunities.org/doc/london-borough-council/redbridge","5BGFHOUSING","General Fund Housing","5CHOMELESS","Homelessness","REV","Revenue","R5630","HAC Temporary Accomodation","05-THIRD","Third Party Payments","05H","Private contractors","6900","Nightly Let Plus Charges","3547061","202001",31/03/2019 00:00:00,1705,"31230","Employment and Recruitment Agencies","REDACTED DATA","ADAM HTT LIMITED T/A ADAM","7718565","http://opencorporates.com/companies/gb/7718565","198573349"
"London Borough of Redbridge","http://opendatacommunities.org/doc/london-borough-council/redbridge","5BGFHOUSING","General Fund Housing","5CHOMELESS","Homelessness","REV","Revenue","R5630","HAC Temporary Accomodation","05-THIRD","Third Party Payments","05H","Private contractors","6900","Nightly Let Plus Charges","3547061","202001",31/03/2019 00:00:00,1395,"31230","Employment and Recruitment Agencies","REDACTED DATA","ADAM HTT LIMITED T/A ADAM","7718565","http://opencorporates.com/companies/gb/7718565","198573349"
"London Borough of Redbridge","http://opendatacommunities.org/doc/london-borough-council/redbridge","5BGFHOUSING","General Fund Housing","5CHOMELESS","Homelessness","REV","Revenue","R5630","HAC Temporary Accomodation","05-THIRD","Third Party Payments","05H","Private contractors","6900","Nightly Let Plus Charges","3547061","202001",31/03/2019 00:00:00,1240,"31230","Employment and Recruitment Agencies","REDACTED DATA","ADAM HTT LIMITED T/A ADAM","7718565","http://opencorporates.com/companies/gb/7718565","198573349"
"London Borough of Redbridge","http://opendatacommunities.org/doc/london-borough-council/redbridge","5BGFHOUSING","General Fund Housing","5CHOMELESS","Homelessness","REV","Revenue","R5630","HAC Temporary Accomodation","05-THIRD","Third Party Payments","05H","Private contractors","6900","Nightly Let Plus Charges","3547061","202001",31/03/2019 00:00:00,2015,"31230","Employment and Recruitment Agencies","REDACTED DATA","ADAM HTT LIMITED T/A ADAM","7718565","http://opencorporates.com/companies/gb/7718565","198573349"
"London Borough of Redbridge","http://opendatacommunities.org/doc/london-borough-council/redbridge","5BGFHOUSING","General Fund Housing","5CHOMELESS","Homelessness","REV","Revenue","R5630","HAC Temporary Accomodation","05-THIRD","Third Party Payments","05H","Private contractors","6900","Nightly Let Plus Charges","3547061","202001",31/03/2019 00:00:00,1705,"31230","Employment and Recruitment Agencies","REDACTED DATA","ADAM HTT LIMITED T/A ADAM","7718565","http://opencorporates.com/companies/gb/7718565","198573349"
"London Borough of Redbridge","http://opendatacommunities.org/doc/london-borough-council/redbridge","5BGFHOUSING","General Fund Housing","5CHOMELESS","Homelessness","REV","Revenue","R5630","HAC Temporary Accomodation","05-THIRD","Third Party Payments","05H","Private contractors","6900","Nightly Let Plus Charges","3547061","202001",31/03/2019 00:00:00,1834.27,"31230","Employment and Recruitment Agencies","REDACTED DATA","ADAM HTT LIMITED T/A ADAM","7718565","http://opencorporates.com/companies/gb/7718565","198573349"
"London Borough of Redbridge","http://opendatacommunities.org/doc/london-borough-council/redbridge","5BGFHOUSING","General Fund Housing","5CHOMELESS","Homelessness","REV","Revenue","R5630","HAC Temporary Accomodation","05-THIRD","Third Party Payments","05H","Private contractors","6900","Nightly Let Plus Charges","3547061","202001",13/03/2019 00:00:00,-1395,"31230","Employment and Recruitment Agencies","REDACTED DATA","ADAM HTT LIMITED T/A ADAM","7718565","http://opencorporates.com/companies/gb/7718565","198573349"
"London Borough of Redbridge","http://opendatacommunities.org/doc/london-borough-council/redbridge","9BNONBVO","Outside the BVACOP Objective Structure","9CNONBVO","Outside the BVACOP Objective Structure","BAL","Balance Sheet","B0059","DUMMY VAT ACCOUNT","99-NONBV","Capital, Balance Sheet and Control","50L","Debtors","9359","VAT only invoices","70107175","202001",28/02/2019 00:00:00,-32823.6,"47846","Letting Agents","REDACTED DATA","FINEFAIR CONSULTANCY  LTD(NIGHTLY LETS)","4661895","http://opencorporates.com/companies/gb/4661895","809945391"
"London Borough of Redbridge","http://opendatacommunities.org/doc/london-borough-council/redbridge","1BOTHEROPI&E","Other Operating Income & Expenditure","1CTRADSURDEF","Trading Account Surpluses & Deficits","REV","Revenue","R9579","Predisposal Management","04-SUPPLIES","Supplies And Services","04H","Grants and subscriptions","5954","Professional Fees","60401318","202001",05/04/2019 00:00:00,27250,"47846","Letting Agents","REDACTED DATA","STRETTONS LTD","268552","http://opencorporates.com/companies/gb/268552",""
"London Borough of Redbridge","http://opendatacommunities.org/doc/london-borough-council/redbridge","1BOTHEROPI&E","Other Operating Income & Expenditure","1CTRADSURDEF","Trading Account Surpluses & Deficits","REV","Revenue","R9160","Strategic IT","04-SUPPLIES","Supplies And Services","04E","Services","5754","Consultancy","3546471","202001",26/03/2019 00:00:00,15150,"31230","Employment and Recruitment Agencies","REDACTED DATA","ADAM HTT LIMITED T/A ADAM","7718565","http://opencorporates.com/companies/gb/7718565","198573349"
"London Borough of Redbridge","http://opendatacommunities.org/doc/london-borough-council/redbridge","6BADULTSOCIA","Adult Social Care","6COLDINCMENT","Older People (65 or over) incl. Older Mentally Ill","REV","Revenue","R4376","Carer Contract","05-THIRD","Third Party Payments","05F","Voluntary associations","6800","Voluntary Organisations","91046197","202001",01/04/2019 00:00:00,32660.29,"17020","Charities and Voluntary Organisations","REDACTED DATA","REDBRIDGE RESPITE CARE ASSOC.","2551338","http://opencorporates.com/companies/gb/2551338",""
"London Borough of Redbridge","http://opendatacommunities.org/doc/london-borough-council/redbridge","9BNONBVO","Outside the BVACOP Objective Structure","9CNONBVO","Outside the BVACOP Objective Structure","CAP","Capital","C2105","Communal","99-NONBV","Capital, Balance Sheet and Control","50E","Capital - Contract Payments","9150","Main Contract","60401809","202001",04/03/2019 00:00:00,26172.42,"21555","Construction Contractors - General","REDACTED DATA","A&E ELKINS LIMITED","846751","http://opencorporates.com/companies/gb/846751","205472976"
"London Borough of Redbridge","http://opendatacommunities.org/doc/london-borough-council/redbridge","9BNONBVO","Outside the BVACOP Objective Structure","9CNONBVO","Outside the BVACOP Objective Structure","REV","Revenue","R0030","Levies","05-THIRD","Third Party Payments","05B","Joint authorities","6602","London Pension Fund Authority","60401562","202001",01/04/2019 00:00:00,31056.2,"48583","Local Government","REDACTED DATA","GREATER LONDON AUTHORITY","",,""
"London Borough of Redbridge","http://opendatacommunities.org/doc/london-borough-council/redbridge","6BADULTSOCIA","Adult Social Care","6COLDINCMENT","Older People (65 or over) incl. Older Mentally Ill","REV","Revenue","R4385","OP Nursing","05-THIRD","Third Party Payments","05H","Private contractors","6909","Nursing Homes","91052646","202001",17/04/2019 00:00:00,-1550.55,"64710","Residential Care Homes","REDACTED DATA","SPRINGFIELD (BONDCARE LONDON LIMITED)","10649160","http://opencorporates.com/companies/gb/10649160",""
"London Borough of Redbridge","http://opendatacommunities.org/doc/london-borough-council/redbridge","6BADULTSOCIA","Adult Social Care","6COLDINCMENT","Older People (65 or over) incl. Older Mentally Ill","REV","Revenue","R4385","OP Nursing","05-THIRD","Third Party Payments","05H","Private contractors","6909","Nursing Homes","91052646","202001",17/04/2019 00:00:00,3163.14,"64710","Residential Care Homes","REDACTED DATA","SPRINGFIELD (BONDCARE LONDON LIMITED)","10649160","http://opencorporates.com/companies/gb/10649160",""
"London Borough of Redbridge","http://opendatacommunities.org/doc/london-borough-council/redbridge","6BADULTSOCIA","Adult Social Care","6COLDINCMENT","Older People (65 or over) incl. Older Mentally Ill","REV","Revenue","R4385","OP Nursing","05-THIRD","Third Party Payments","05H","Private contractors","6909","Nursing Homes","91052646","202001",17/04/2019 00:00:00,516.85,"64710","Residential Care Homes","REDACTED DATA","SPRINGFIELD (BONDCARE LONDON LIMITED)","10649160","http://opencorporates.com/companies/gb/10649160",""
"London Borough of Redbridge","http://opendatacommunities.org/doc/london-borough-council/redbridge","6BADULTSOCIA","Adult Social Care","6COLDINCMENT","Older People (65 or over) incl. Older Mentally Ill","REV","Revenue","R4385","OP Nursing","09-INCOME","Income","09C","Customer and Client Receipts","8557","Nursing Home Charges","91052646","202001",17/04/2019 00:00:00,794.16,"64710","Residential Care Homes","REDACTED DATA","SPRINGFIELD (BONDCARE LONDON LIMITED)","10649160","http://opencorporates.com/companies/gb/10649160",""
"London Borough of Redbridge","http://opendatacommunities.org/doc/london-borough-council/redbridge","6BADULTSOCIA","Adult Social Care","6COLDINCMENT","Older People (65 or over) incl. Older Mentally Ill","REV","Revenue","R4385","OP Nursing","09-INCOME","Income","09C","Customer and Client Receipts","8557","Nursing Home Charges","91052646","202001",17/04/2019 00:00:00,13198.18,"64710","Residential Care Homes","REDACTED DATA","SPRINGFIELD (BONDCARE LONDON LIMITED)","10649160","http://opencorporates.com/companies/gb/10649160",""
"London Borough of Redbridge","http://opendatacommunities.org/doc/london-borough-council/redbridge","6BADULTSOCIA","Adult Social Care","6COLDINCMENT","Older People (65 or over) incl. Older Mentally Ill","REV","Revenue","R4385","OP Nursing","09-INCOME","Income","09C","Customer and Client Receipts","8557","Nursing Home Charges","91052646","202001",17/04/2019 00:00:00,961.86,"64710","Residential Care Homes","REDACTED DATA","SPRINGFIELD (BONDCARE LONDON LIMITED)","10649160","http://opencorporates.com/companies/gb/10649160",""
"London Borough of Redbridge","http://opendatacommunities.org/doc/london-borough-council/redbridge","6BADULTSOCIA","Adult Social Care","6COLDINCMENT","Older People (65 or over) incl. Older Mentally Ill","REV","Revenue","R4385","OP Nursing","09-INCOME","Income","09C","Customer and Client Receipts","8557","Nursing Home Charges","91052646","202001",17/04/2019 00:00:00,302.54,"64710","Residential Care Homes","REDACTED DATA","SPRINGFIELD (BONDCARE LONDON LIMITED)","10649160","http://opencorporates.com/companies/gb/10649160",""
"London Borough of Redbridge","http://opendatacommunities.org/doc/london-borough-council/redbridge","6BADULTSOCIA","Adult Social Care","6COLDINCMENT","Older People (65 or over) incl. Older Mentally Ill","REV","Revenue","R4385","OP Nursing","09-INCOME","Income","09C","Customer and Client Receipts","8557","Nursing Home Charges","91052646","202001",17/04/2019 00:00:00,13500.72,"64710","Residential Care Homes","REDACTED DATA","SPRINGFIELD (BONDCARE LONDON LIMITED)","10649160","http://opencorporates.com/companies/gb/10649160",""
"London Borough of Redbridge","http://opendatacommunities.org/doc/london-borough-council/redbridge","3BINDSCHFUND","Individual School Funds","3CFACILIMPRO","Facilitating School Improvement","REV","Revenue","R3433","Research & Data","04-SUPPLIES","Supplies And Services","04H","Grants and subscriptions","5956","Subscriptions","60402331","202001",01/04/2019 00:00:00,25567.66,"24080","Database Services","REDACTED DATA","FFT EDUCATION  LTD","3685684","http://opencorporates.com/companies/gb/3685684","737999848"
"London Borough of Redbridge","http://opendatacommunities.org/doc/london-borough-council/redbridge","9BNONBVO","Outside the BVACOP Objective Structure","9CNONBVO","Outside the BVACOP Objective Structure","BAL","Balance Sheet","B0340","NNDR Hainualt Business Improvement District","99-NONBV","Capital, Balance Sheet and Control","50Q","Other Balances & Reserves","9912","Personal Account - Creditor","70107513","202001",17/04/2019 00:00:00,25129.45,"11905","Business Centres","REDACTED DATA","HAINAULT BUSINESS PARK","5804216","http://opencorporates.com/companies/gb/5804216",""
"London Borough of Redbridge","http://opendatacommunities.org/doc/london-borough-council/redbridge","9BNONBVO","Outside the BVACOP Objective Structure","9CNONBVO","Outside the BVACOP Objective Structure","CAP","Capital","C1722","Investment for Street Cleansing Strategy","99-NONBV","Capital, Balance Sheet and Control","50E","Capital - Contract Payments","9150","Main Contract","60399239","202001",13/03/2019 00:00:00,25008,"21760","Container Mnfrs","REDACTED DATA","EGBERT H TAYLOR & COMPANY LIMITED","718441","http://opencorporates.com/companies/gb/718441","695267487"
"London Borough of Redbridge","http://opendatacommunities.org/doc/london-borough-council/redbridge","3BNONSCHFUND","Non-School Funding","6CCHILLOOKED","Children Looked After","REV","Revenue","R2238","Looked After Children Placements LA","05-THIRD","Third Party Payments","05H","Private contractors","6907","Private Homes","60400656","202001",01/04/2019 00:00:00,29571.43,"64710","Residential Care Homes","REDACTED DATA","ESLAND NORTH LTD","4181878","http://opencorporates.com/companies/gb/4181878",""
"London Borough of Redbridge","http://opendatacommunities.org/doc/london-borough-council/redbridge","2BENVIRONMEN","Environmental Services","2CCOMSAFCRIM","Community Safety (Crime Reduction)","REV","Revenue","R6753","CCTV","05-THIRD","Third Party Payments","05H","Private contractors","6915","Contractor Payments","60401769","202001",12/04/2019 00:00:00,24598.59,"11700","Burglar and Intruder Alarm Systems","REDACTED DATA","OPENVIEW SECURITY SOLUTIONS LTD","3376202","http://opencorporates.com/companies/gb/3376202","696815967"
"London Borough of Redbridge","http://opendatacommunities.org/doc/london-borough-council/redbridge","6BADULTSOCIA","Adult Social Care","6CADLEARNDIS","Adults Under 65 with Learning Disabilities","REV","Revenue","R4188","LD - Residential Care","05-THIRD","Third Party Payments","05F","Voluntary associations","6802","Residential Homes","91046860","202001",10/04/2019 00:00:00,28720,"64710","Residential Care Homes","REDACTED DATA","BASCHURCH CARE LTD","8426932","http://opencorporates.com/companies/gb/8426932",""
"London Borough of Redbridge","http://opendatacommunities.org/doc/london-borough-council/redbridge","3BLEACENTFND","LEA Centrally Held School Funds","3CNONSCH","Non Schools","REV","Revenue","R2010","Spec Transport LEA","03-TRANSPORT","Transport","03A","Direct - transport costs","5207","School Support - Contractors (Children Services)","60401191","202001",31/03/2019 00:00:00,23179.8,"90038","Expenses","REDACTED DATA","HATS GROUP LTD","3135655","http://opencorporates.com/companies/gb/3135655","681217833"
"London Borough of Redbridge","http://opendatacommunities.org/doc/london-borough-council/redbridge","6BADULTSOCIA","Adult Social Care","6CADMENHLTH","Adults Under 65 with Mental Health Needs","REV","Revenue","R4190","MH - Residential Care","05-THIRD","Third Party Payments","05F","Voluntary associations","6802","Residential Homes","91052304","202001",17/04/2019 00:00:00,-1649.96,"17020","Charities and Voluntary Organisations","REDACTED DATA","RNID T/AS ACTION ON HEARING LOSS (SERVICES)","454169","http://opencorporates.com/companies/gb/454169","564524337"
"London Borough of Redbridge","http://opendatacommunities.org/doc/london-borough-council/redbridge","6BADULTSOCIA","Adult Social Care","6CADMENHLTH","Adults Under 65 with Mental Health Needs","REV","Revenue","R4190","MH - Residential Care","05-THIRD","Third Party Payments","05F","Voluntary associations","6802","Residential Homes","91052304","202001",17/04/2019 00:00:00,1643.15,"17020","Charities and Voluntary Organisations","REDACTED DATA","RNID T/AS ACTION ON HEARING LOSS (SERVICES)","454169","http://opencorporates.com/companies/gb/454169","564524337"
"London Borough of Redbridge","http://opendatacommunities.org/doc/london-borough-council/redbridge","6BADULTSOCIA","Adult Social Care","6CADMENHLTH","Adults Under 65 with Mental Health Needs","REV","Revenue","R4190","MH - Residential Care","05-THIRD","Third Party Payments","05F","Voluntary associations","6802","Residential Homes","91052304","202001",17/04/2019 00:00:00,10056.06,"17020","Charities and Voluntary Organisations","REDACTED DATA","RNID T/AS ACTION ON HEARING LOSS (SERVICES)","454169","http://opencorporates.com/companies/gb/454169","564524337"
"London Borough of Redbridge","http://opendatacommunities.org/doc/london-borough-council/redbridge","6BADULTSOCIA","Adult Social Care","6CADMENHLTH","Adults Under 65 with Mental Health Needs","REV","Revenue","R4190","MH - Residential Care","05-THIRD","Third Party Payments","05F","Voluntary associations","6802","Residential Homes","91052304","202001",17/04/2019 00:00:00,17135.71,"17020","Charities and Voluntary Organisations","REDACTED DATA","RNID T/AS ACTION ON HEARING LOSS (SERVICES)","454169","http://opencorporates.com/companies/gb/454169","564524337"
"London Borough of Redbridge","http://opendatacommunities.org/doc/london-borough-council/redbridge","3BNONSCHFUND","Non-School Funding","3CNONSCH","Non Schools","REV","Revenue","R3962","Early Years - 3 and 4 Year Olds","05-THIRD","Third Party Payments","05A","Independent units within the council","6517","Non-Maintained Schools","3548609","202001",29/04/2019 00:00:00,26860.5,"59760","Playgroups, Nurseries and Creches","REDACTED DATA","BELMONT DAY NURSERY","5331750","http://opencorporates.com/companies/gb/5331750",""
"London Borough of Redbridge","http://opendatacommunities.org/doc/london-borough-council/redbridge","3BNONSCHFUND","Non-School Funding","3CNONSCH","Non Schools","REV","Revenue","R3962","Early Years - 3 and 4 Year Olds","05-THIRD","Third Party Payments","05A","Independent units within the council","6517","Non-Maintained Schools","3545310","202001",01/04/2019 00:00:00,26860.5,"59760","Playgroups, Nurseries and Creches","REDACTED DATA","BELMONT DAY NURSERY","5331750","http://opencorporates.com/companies/gb/5331750",""
"London Borough of Redbridge","http://opendatacommunities.org/doc/london-borough-council/redbridge","6BSOCIALSERV","Social Services","6CCHILLOOKED","Children Looked After","REV","Revenue","R2135","SEN and CD short breaks- commissioned","05-THIRD","Third Party Payments","05H","Private contractors","6903","Respite Care Block Contracts","60401993","202001",16/04/2019 00:00:00,26829,"17020","Charities and Voluntary Organisations","REDACTED DATA","ELHAP","",,""
"London Borough of Redbridge","http://opendatacommunities.org/doc/london-borough-council/redbridge","9BNONBVO","Outside the BVACOP Objective Structure","9CNONBVO","Outside the BVACOP Objective Structure","CAP","Capital","C1053","IT Modernisation-End Point Computing Refresh (CAPITAL)","99-NONBV","Capital, Balance Sheet and Control","50B","Capital - Contracted Works","9094","ICT","60399003","201912",11/03/2019 00:00:00,22356,"20703","Computer Systems and Software","REDACTED DATA","STONE COMPUTERS","2658501","http://opencorporates.com/companies/gb/2658501","747878857"
"London Borough of Redbridge","http://opendatacommunities.org/doc/london-borough-council/redbridge","3BLEACENTFND","LEA Centrally Held School Funds","3CNONSCH","Non Schools","REV","Revenue","R2234","Colleges and ISP Top up fees","05-THIRD","Third Party Payments","05G","Other establishments","7433","OOB Post 16 Top Up","60400359","201912",25/03/2019 00:00:00,26779.17,"20342","Colleges - Higher Education","REDACTED DATA","TOWER HAMLETS COLLEGE OF FURTHER EDUCATION (NEW CITY COLLEGE)","UPIN106556","http://opencorporates.com/companies/gb/UPIN106556","115105466"
"London Borough of Redbridge","http://opendatacommunities.org/doc/london-borough-council/redbridge","3BNONSCHFUND","Non-School Funding","3CNONSCH","Non Schools","REV","Revenue","R3962","Early Years - 3 and 4 Year Olds","05-THIRD","Third Party Payments","05A","Independent units within the council","6517","Non-Maintained Schools","3548636","202001",29/04/2019 00:00:00,26124.51,"53088","Nurseries and Creches","REDACTED DATA","A.M.A.B LIMITED - GREENLANE NURSERY & PRE-SCHOOL","3499061","http://opencorporates.com/companies/gb/3499061",""
"London Borough of Redbridge","http://opendatacommunities.org/doc/london-borough-council/redbridge","3BNONSCHFUND","Non-School Funding","3CNONSCH","Non Schools","REV","Revenue","R3962","Early Years - 3 and 4 Year Olds","05-THIRD","Third Party Payments","05A","Independent units within the council","6517","Non-Maintained Schools","3545337","202001",01/04/2019 00:00:00,26124.5,"53088","Nurseries and Creches","REDACTED DATA","A.M.A.B LIMITED - GREENLANE NURSERY & PRE-SCHOOL","3499061","http://opencorporates.com/companies/gb/3499061",""
"London Borough of Redbridge","http://opendatacommunities.org/doc/london-borough-council/redbridge","9BNONBVO","Outside the BVACOP Objective Structure","9CNONBVO","Outside the BVACOP Objective Structure","CAP","Capital","C1053","IT Modernisation-End Point Computing Refresh (CAPITAL)","99-NONBV","Capital, Balance Sheet and Control","50B","Capital - Contracted Works","9094","ICT","60399629","201912",15/03/2019 00:00:00,21157.5,"20703","Computer Systems and Software","REDACTED DATA","STONE COMPUTERS","2658501","http://opencorporates.com/companies/gb/2658501","747878857"
"London Borough of Redbridge","http://opendatacommunities.org/doc/london-borough-council/redbridge","1BCENTRALPUB","Central Services to the Public","1CTRADSURDEF","Trading Account Surpluses & Deficits","REV","Revenue","R3976","Local London Work and Health Programme (ESF)","04-SUPPLIES","Supplies And Services","04H","Grants and subscriptions","5955","Fees","60401270","202001",05/04/2019 00:00:00,20860,"31235","Employment Service","REDACTED DATA","MAXIMUS PEOPLE SERVICES LTD","3752300","http://opencorporates.com/companies/gb/3752300","585594190"
"London Borough of Redbridge","http://opendatacommunities.org/doc/london-borough-council/redbridge","1BCENTRALPUB","Central Services to the Public","1CTRADSURDEF","Trading Account Surpluses & Deficits","REV","Revenue","R3976","Local London Work and Health Programme (ESF)","04-SUPPLIES","Supplies And Services","04H","Grants and subscriptions","5955","Fees","60399647","201912",18/03/2019 00:00:00,20860,"31235","Employment Service","REDACTED DATA","MAXIMUS PEOPLE SERVICES LTD","3752300","http://opencorporates.com/companies/gb/3752300","585594190"
"London Borough of Redbridge","http://opendatacommunities.org/doc/london-borough-council/redbridge","9BNONBVO","Outside the BVACOP Objective Structure","9CNONBVO","Outside the BVACOP Objective Structure","REV","Revenue","R7705","Fuel Service","03-TRANSPORT","Transport","03A","Direct - transport costs","5006","Diesel Oil","669525","202001",03/04/2019 00:00:00,20361.02,"57580","Petroleum Products - Mnfrs","REDACTED DATA","EMO OIL LIMITED","5067422","http://opencorporates.com/companies/gb/5067422","844283419"
"London Borough of Redbridge","http://opendatacommunities.org/doc/london-borough-council/redbridge","1BOTHEROPI&E","Other Operating Income & Expenditure","1CTRADSURDEF","Trading Account Surpluses & Deficits","REV","Revenue","R9252","IT Applications","04-SUPPLIES","Supplies And Services","04F","Communications and computing","5853","Computer Software","60400995","202001",01/04/2019 00:00:00,20303.05,"20703","Computer Systems and Software","REDACTED DATA","PHOENIX SOFTWARE LTD","2548628","http://opencorporates.com/companies/gb/2548628","755349015"
"London Borough of Redbridge","http://opendatacommunities.org/doc/london-borough-council/redbridge","3BLEACENTFND","LEA Centrally Held School Funds","3CNONSCH","Non Schools","REV","Revenue","R2004","SEN and CD Res Placements DSG","05-THIRD","Third Party Payments","05H","Private contractors","6906","Independent Schools","60400028","201912",21/03/2019 00:00:00,20159,"67860","Schools - Independent and Preparatory","REDACTED DATA","TRANSITIONAL CARE LTD T/A TCES GROUP","3872464","http://opencorporates.com/companies/gb/3872464","756871975"
"London Borough of Redbridge","http://opendatacommunities.org/doc/london-borough-council/redbridge","6BADULTSOCIA","Adult Social Care","6CADLEARNDIS","Adults Under 65 with Learning Disabilities","REV","Revenue","R4188","LD - Residential Care","05-THIRD","Third Party Payments","05F","Voluntary associations","6802","Residential Homes","91045752","202001",19/03/2019 00:00:00,23920.48,"64710","Residential Care Homes","REDACTED DATA","CLEARWATER CARE (HACKNEY) LTD","5084728","http://opencorporates.com/companies/gb/5084728",""
"London Borough of Redbridge","http://opendatacommunities.org/doc/london-borough-council/redbridge","3BINDSCHFUND","Individual School Funds","3CDELSECOND","Delegated Individual Secondary School Budgets","REV","Revenue","S2072","TRINITY : Field Studies","04-SUPPLIES","Supplies And Services","04K","Miscellaneous expenses","6221","Educational Visits","60402376","202001",22/03/2019 00:00:00,23911,"17020","Charities and Voluntary Organisations","REDACTED DATA","FIELD STUDIES COUNCIL LTD","412621","http://opencorporates.com/companies/gb/412621","239278825"
"London Borough of Redbridge","http://opendatacommunities.org/doc/london-borough-council/redbridge","3BNONSCHFUND","Non-School Funding","6CCHILLOOKED","Children Looked After","REV","Revenue","R2238","Looked After Children Placements LA","05-THIRD","Third Party Payments","05H","Private contractors","6907","Private Homes","60401223","202001",01/04/2019 00:00:00,23485.71,"64710","Residential Care Homes","REDACTED DATA","BRYN MELYN CARE LTD","6442752","http://opencorporates.com/companies/gb/6442752",""
"London Borough of Redbridge","http://opendatacommunities.org/doc/london-borough-council/redbridge","3BNONSCHFUND","Non-School Funding","3CNONSCH","Non Schools","REV","Revenue","R3962","Early Years - 3 and 4 Year Olds","05-THIRD","Third Party Payments","05A","Independent units within the council","6517","Non-Maintained Schools","3545326","202001",01/04/2019 00:00:00,23334.8,"59760","Playgroups, Nurseries and Creches","REDACTED DATA","SELECT ENTERPRISES(S/EAST) LTD - KIDS INC NURSERIES (CLARKS)","2988507","http://opencorporates.com/companies/gb/2988507",""
"London Borough of Redbridge","http://opendatacommunities.org/doc/london-borough-council/redbridge","3BNONSCHFUND","Non-School Funding","3CNONSCH","Non Schools","REV","Revenue","R3962","Early Years - 3 and 4 Year Olds","05-THIRD","Third Party Payments","05A","Independent units within the council","6517","Non-Maintained Schools","3548625","202001",29/04/2019 00:00:00,23334.8,"59760","Playgroups, Nurseries and Creches","REDACTED DATA","SELECT ENTERPRISES(S/EAST) LTD - KIDS INC NURSERIES (CLARKS)","2988507","http://opencorporates.com/companies/gb/2988507",""
"London Borough of Redbridge","http://opendatacommunities.org/doc/london-borough-council/redbridge","3BNONSCHFUND","Non-School Funding","3CNONSCH","Non Schools","REV","Revenue","R3962","Early Years - 3 and 4 Year Olds","05-THIRD","Third Party Payments","05A","Independent units within the council","6517","Non-Maintained Schools","3548655","202001",29/04/2019 00:00:00,23282.63,"59760","Playgroups, Nurseries and Creches","REDACTED DATA","PEDAGOGY AURAS UK LTD T/A BARLEY LANE PRESCHOLL & AFTER SCHOOL","7181677","http://opencorporates.com/companies/gb/7181677",""
"London Borough of Redbridge","http://opendatacommunities.org/doc/london-borough-council/redbridge","3BNONSCHFUND","Non-School Funding","3CNONSCH","Non Schools","REV","Revenue","R3962","Early Years - 3 and 4 Year Olds","05-THIRD","Third Party Payments","05A","Independent units within the council","6517","Non-Maintained Schools","3545356","202001",01/04/2019 00:00:00,23282.63,"59760","Playgroups, Nurseries and Creches","REDACTED DATA","PEDAGOGY AURAS UK LTD T/A BARLEY LANE PRESCHOLL & AFTER SCHOOL","7181677","http://opencorporates.com/companies/gb/7181677",""
"London Borough of Redbridge","http://opendatacommunities.org/doc/london-borough-council/redbridge","3BNONSCHFUND","Non-School Funding","3CNONSCH","Non Schools","REV","Revenue","R3962","Early Years - 3 and 4 Year Olds","05-THIRD","Third Party Payments","05A","Independent units within the council","6517","Non-Maintained Schools","3545379","202001",01/04/2019 00:00:00,23261.48,"59760","Playgroups, Nurseries and Creches","REDACTED DATA","TAMBA DAY NURSERY LTD CHADWELL HEATH","",,""
"London Borough of Redbridge","http://opendatacommunities.org/doc/london-borough-council/redbridge","3BNONSCHFUND","Non-School Funding","3CNONSCH","Non Schools","REV","Revenue","R3962","Early Years - 3 and 4 Year Olds","05-THIRD","Third Party Payments","05A","Independent units within the council","6517","Non-Maintained Schools","3548678","202001",29/04/2019 00:00:00,23261.48,"59760","Playgroups, Nurseries and Creches","REDACTED DATA","TAMBA DAY NURSERY LTD CHADWELL HEATH","",,""
"London Borough of Redbridge","http://opendatacommunities.org/doc/london-borough-council/redbridge","9BNONBVO","Outside the BVACOP Objective Structure","9CNONBVO","Outside the BVACOP Objective Structure","CAP","Capital","C1782","Housing Delivery Subsequent Schemes","99-NONBV","Capital, Balance Sheet and Control","50D","Capital - Site Surveys","9120","Land/Site Surveys","60393709","202001",14/01/2019 00:00:00,18970,"61896","Property and Estate Management","REDACTED DATA","ARTELIA PROJECTS UK LIMTED","3913368","http://opencorporates.com/companies/gb/3913368","745151542"
"London Borough of Redbridge","http://opendatacommunities.org/doc/london-borough-council/redbridge","9BNONBVO","Outside the BVACOP Objective Structure","9CNONBVO","Outside the BVACOP Objective Structure","CAP","Capital","C1053","IT Modernisation-End Point Computing Refresh (CAPITAL)","99-NONBV","Capital, Balance Sheet and Control","50B","Capital - Contracted Works","9094","ICT","60401470","202001",08/04/2019 00:00:00,18648,"20703","Computer Systems and Software","REDACTED DATA","STONE COMPUTERS","2658501","http://opencorporates.com/companies/gb/2658501","747878857"
"London Borough of Redbridge","http://opendatacommunities.org/doc/london-borough-council/redbridge","6BADULTSOCIA","Adult Social Care","6CADLEARNDIS","Adults Under 65 with Learning Disabilities","REV","Revenue","R4185","LD - Supported Living","06-TRANSFER","Transfer Payments","06B","Social Services Clients","7066","Supportive Lodgings (Transfer Payments)","91046711","202001",27/03/2019 00:00:00,22247.97,"17020","Charities and Voluntary Organisations","REDACTED DATA","MENCAP","550457","http://opencorporates.com/companies/gb/550457","233010136"
"London Borough of Redbridge","http://opendatacommunities.org/doc/london-borough-council/redbridge","6BPUBHEALTH","Public Health","6CMISCPHSERV","Miscellaneous Public Health Services","REV","Revenue","R4828","Dental Public Health","05-THIRD","Third Party Payments","05D","Health authorities","6704","NELFT","60396632","202001",25/06/2018 00:00:00,22191.39,"42200","Health Authorities","REDACTED DATA","KENT COMMUNITY HEALTH NHS TRUST","",,"654440093"
"London Borough of Redbridge","http://opendatacommunities.org/doc/london-borough-council/redbridge","3BINDSCHFUND","Individual School Funds","3CNONSCH","Non Schools","REV","Revenue","R2001","Secondary Schools SEN Top Up Fees","05-THIRD","Third Party Payments","05G","Other establishments","7430","LBR Pre 16 Top Up","3549783","202001",30/04/2019 00:00:00,22148.39,"67981","Schools - Local Authority","REDACTED DATA","LOXFORD SCHOOL TRUST LTD","8743560","http://opencorporates.com/companies/gb/8743560","246546447"
"London Borough of Redbridge","http://opendatacommunities.org/doc/london-borough-council/redbridge","3BINDSCHFUND","Individual School Funds","3CNONSCH","Non Schools","REV","Revenue","R2001","Secondary Schools SEN Top Up Fees","05-THIRD","Third Party Payments","05G","Other establishments","7430","LBR Pre 16 Top Up","3545296","202001",25/03/2019 00:00:00,22148.39,"67981","Schools - Local Authority","REDACTED DATA","LOXFORD SCHOOL TRUST LTD","8743560","http://opencorporates.com/companies/gb/8743560","246546447"
"London Borough of Redbridge","http://opendatacommunities.org/doc/london-borough-council/redbridge","6BSOCIALSERV","Social Services","6CCHILLOOKED","Children Looked After","REV","Revenue","R2135","SEN and CD short breaks- commissioned","05-THIRD","Third Party Payments","05H","Private contractors","6903","Respite Care Block Contracts","60401992","202001",16/04/2019 00:00:00,22125,"17020","Charities and Voluntary Organisations","REDACTED DATA","ELHAP","",,""
"London Borough of Redbridge","http://opendatacommunities.org/doc/london-borough-council/redbridge","1BOTHEROPI&E","Other Operating Income & Expenditure","1CTRADSURDEF","Trading Account Surpluses & Deficits","REV","Revenue","R9252","IT Applications","04-SUPPLIES","Supplies And Services","04F","Communications and computing","5853","Computer Software","60398977","201912",11/03/2019 00:00:00,18413.12,"20703","Computer Systems and Software","REDACTED DATA","PHOENIX SOFTWARE LTD","2548628","http://opencorporates.com/companies/gb/2548628","755349015"
"London Borough of Redbridge","http://opendatacommunities.org/doc/london-borough-council/redbridge","6BPUBHEALTH","Public Health","6CSUBSTANCEM","Substance Misuse","REV","Revenue","R4815","Drug Misuse - Adults","04-SUPPLIES","Supplies And Services","04K","Miscellaneous expenses","6235","Medical Requisites","60402097","202001",17/04/2019 00:00:00,22086.97,"79980","Training Services","REDACTED DATA","WESTMINSTER DRUG PROJECT LTD","2807934","http://opencorporates.com/companies/gb/2807934",""
"London Borough of Redbridge","http://opendatacommunities.org/doc/london-borough-council/redbridge","1BCENTRALPUB","Central Services to the Public","1CTRADSURDEF","Trading Account Surpluses & Deficits","REV","Revenue","R3976","Local London Work and Health Programme (ESF)","04-SUPPLIES","Supplies And Services","04H","Grants and subscriptions","5955","Fees","60399029","201912",11/03/2019 00:00:00,17880,"31235","Employment Service","REDACTED DATA","MAXIMUS PEOPLE SERVICES LTD","3752300","http://opencorporates.com/companies/gb/3752300","585594190"
"London Borough of Redbridge","http://opendatacommunities.org/doc/london-borough-council/redbridge","1BOTHEROPI&E","Other Operating Income & Expenditure","1CTRADSURDEF","Trading Account Surpluses & Deficits","REV","Revenue","R9152","Operational Accounting","01-EMPLOYEES","Employees","01A","Direct employee expenses","4","Agency Staff - Pay","60401005","202001",03/04/2019 00:00:00,17850,"1961","Advertising - Agencies","REDACTED DATA","PENNA PLC (PENNA COMMUNICATIONS)","1912150","http://opencorporates.com/companies/gb/1912150","605849719"
"London Borough of Redbridge","http://opendatacommunities.org/doc/london-borough-council/redbridge","6BADULTSOCIA","Adult Social Care","6CADLEARNDIS","Adults Under 65 with Learning Disabilities","REV","Revenue","R4188","LD - Residential Care","05-THIRD","Third Party Payments","05F","Voluntary associations","6802","Residential Homes","91052402","202001",17/04/2019 00:00:00,32193.72,"67860","Schools - Independent and Preparatory","REDACTED DATA","ACORN NORFOLK LTD T/AS ACORN PARK SCHOOL","7448673","http://opencorporates.com/companies/gb/7448673",""
"London Borough of Redbridge","http://opendatacommunities.org/doc/london-borough-council/redbridge","6BADULTSOCIA","Adult Social Care","6CADLEARNDIS","Adults Under 65 with Learning Disabilities","REV","Revenue","R4188","LD - Residential Care","05-THIRD","Third Party Payments","05F","Voluntary associations","6802","Residential Homes","91052402","202001",17/04/2019 00:00:00,-15781.23,"67860","Schools - Independent and Preparatory","REDACTED DATA","ACORN NORFOLK LTD T/AS ACORN PARK SCHOOL","7448673","http://opencorporates.com/companies/gb/7448673",""
"London Borough of Redbridge","http://opendatacommunities.org/doc/london-borough-council/redbridge","6BADULTSOCIA","Adult Social Care","6CADLEARNDIS","Adults Under 65 with Learning Disabilities","REV","Revenue","R4188","LD - Residential Care","05-THIRD","Third Party Payments","05F","Voluntary associations","6802","Residential Homes","91052402","202001",17/04/2019 00:00:00,5260.41,"67860","Schools - Independent and Preparatory","REDACTED DATA","ACORN NORFOLK LTD T/AS ACORN PARK SCHOOL","7448673","http://opencorporates.com/companies/gb/7448673",""
"London Borough of Redbridge","http://opendatacommunities.org/doc/london-borough-council/redbridge","6BADULTSOCIA","Adult Social Care","6CADLEARNDIS","Adults Under 65 with Learning Disabilities","REV","Revenue","R4188","LD - Residential Care","09-INCOME","Income","09C","Customer and Client Receipts","8555","Accommodation Charges","91052402","202001",17/04/2019 00:00:00,-621.3,"67860","Schools - Independent and Preparatory","REDACTED DATA","ACORN NORFOLK LTD T/AS ACORN PARK SCHOOL","7448673","http://opencorporates.com/companies/gb/7448673",""
"London Borough of Redbridge","http://opendatacommunities.org/doc/london-borough-council/redbridge","6BADULTSOCIA","Adult Social Care","6CADLEARNDIS","Adults Under 65 with Learning Disabilities","REV","Revenue","R4188","LD - Residential Care","09-INCOME","Income","09C","Customer and Client Receipts","8555","Accommodation Charges","91052402","202001",17/04/2019 00:00:00,-102.25,"67860","Schools - Independent and Preparatory","REDACTED DATA","ACORN NORFOLK LTD T/AS ACORN PARK SCHOOL","7448673","http://opencorporates.com/companies/gb/7448673",""
"London Borough of Redbridge","http://opendatacommunities.org/doc/london-borough-council/redbridge","6BADULTSOCIA","Adult Social Care","6CADLEARNDIS","Adults Under 65 with Learning Disabilities","REV","Revenue","R4188","LD - Residential Care","09-INCOME","Income","09C","Customer and Client Receipts","8555","Accommodation Charges","91052402","202001",17/04/2019 00:00:00,306.75,"67860","Schools - Independent and Preparatory","REDACTED DATA","ACORN NORFOLK LTD T/AS ACORN PARK SCHOOL","7448673","http://opencorporates.com/companies/gb/7448673",""
"London Borough of Redbridge","http://opendatacommunities.org/doc/london-borough-council/redbridge","3BNONSCHFUND","Non-School Funding","3CNONSCH","Non Schools","REV","Revenue","R3962","Early Years - 3 and 4 Year Olds","05-THIRD","Third Party Payments","05A","Independent units within the council","6517","Non-Maintained Schools","3548666","202001",29/04/2019 00:00:00,21150,"59760","Playgroups, Nurseries and Creches","REDACTED DATA","DAY NURSERY LIETUTIS LTD","8367692","http://opencorporates.com/companies/gb/8367692",""
"London Borough of Redbridge","http://opendatacommunities.org/doc/london-borough-council/redbridge","3BNONSCHFUND","Non-School Funding","3CNONSCH","Non Schools","REV","Revenue","R3962","Early Years - 3 and 4 Year Olds","05-THIRD","Third Party Payments","05A","Independent units within the council","6517","Non-Maintained Schools","3545367","202001",01/04/2019 00:00:00,21150,"59760","Playgroups, Nurseries and Creches","REDACTED DATA","DAY NURSERY LIETUTIS LTD","8367692","http://opencorporates.com/companies/gb/8367692",""
"London Borough of Redbridge","http://opendatacommunities.org/doc/london-borough-council/redbridge","6BADULTSOCIA","Adult Social Care","6CADLEARNDIS","Adults Under 65 with Learning Disabilities","REV","Revenue","R4188","LD - Residential Care","05-THIRD","Third Party Payments","05F","Voluntary associations","6802","Residential Homes","91046190","202001",27/03/2019 00:00:00,20832.76,"68200","Schools - Special","REDACTED DATA","OVERLEY HALL SCHOOL LTD","",,""
"London Borough of Redbridge","http://opendatacommunities.org/doc/london-borough-council/redbridge","9BNONBVO","Outside the BVACOP Objective Structure","9CNONBVO","Outside the BVACOP Objective Structure","REV","Revenue","R5132","Repairs and Maintenance - Other","02-PREMISES","Premises","02A","Repairs, alteration and maintenance of buildings","3027","Miscellaneous Maintenance","60400808","202001",25/03/2019 00:00:00,17328,"9321","Boilers - Servicing, Replacements and Repairs","REDACTED DATA","ATLAS MAINTENANCE SERVICES LTD","8203263","http://opencorporates.com/companies/gb/8203263","313820630"
"London Borough of Redbridge","http://opendatacommunities.org/doc/london-borough-council/redbridge","3BNONSCHFUND","Non-School Funding","3CNONSCH","Non Schools","REV","Revenue","R3962","Early Years - 3 and 4 Year Olds","05-THIRD","Third Party Payments","05A","Independent units within the council","6517","Non-Maintained Schools","3548825","202001",29/04/2019 00:00:00,20628.3,"17580","Childcare Services","REDACTED DATA","TREE HOUSE NURSERY SCHOOLS LTD (CAMBRIDGE PARK)","3948398","http://opencorporates.com/companies/gb/3948398",""
"London Borough of Redbridge","http://opendatacommunities.org/doc/london-borough-council/redbridge","3BNONSCHFUND","Non-School Funding","3CNONSCH","Non Schools","REV","Revenue","R3962","Early Years - 3 and 4 Year Olds","05-THIRD","Third Party Payments","05A","Independent units within the council","6517","Non-Maintained Schools","3545526","202001",01/04/2019 00:00:00,20628.3,"17580","Childcare Services","REDACTED DATA","TREE HOUSE NURSERY SCHOOLS LTD (CAMBRIDGE PARK)","3948398","http://opencorporates.com/companies/gb/3948398",""
"London Borough of Redbridge","http://opendatacommunities.org/doc/london-borough-council/redbridge","3BNONSCHFUND","Non-School Funding","3CNONSCH","Non Schools","REV","Revenue","R3963","Early Years - 2 Year Olds - Statutory Place Funding","05-THIRD","Third Party Payments","05A","Independent units within the council","6517","Non-Maintained Schools","3545526","202001",01/04/2019 00:00:00,509.4,"17580","Childcare Services","REDACTED DATA","LITTLE DIAMONDS LTD","7004176","http://opencorporates.com/companies/gb/7004176",""
"London Borough of Redbridge","http://opendatacommunities.org/doc/london-borough-council/redbridge","3BNONSCHFUND","Non-School Funding","3CNONSCH","Non Schools","REV","Revenue","R3963","Early Years - 2 Year Olds - Statutory Place Funding","05-THIRD","Third Party Payments","05A","Independent units within the council","6517","Non-Maintained Schools","3548825","202001",29/04/2019 00:00:00,509.4,"17580","Childcare Services","REDACTED DATA","LITTLE DIAMONDS LTD","7004176","http://opencorporates.com/companies/gb/7004176",""
"London Borough of Redbridge","http://opendatacommunities.org/doc/london-borough-council/redbridge","3BNONSCHFUND","Non-School Funding","6CCHILLOOKED","Children Looked After","REV","Revenue","R2238","Looked After Children Placements LA","05-THIRD","Third Party Payments","05H","Private contractors","6907","Private Homes","60400920","202001",27/03/2019 00:00:00,20571.3,"64710","Residential Care Homes","REDACTED DATA","CAMBIAN CHILDCARE LTD","4280519","http://opencorporates.com/companies/gb/4280519","190023541"
"London Borough of Redbridge","http://opendatacommunities.org/doc/london-borough-council/redbridge","3BNONSCHFUND","Non-School Funding","3CNONSCH","Non Schools","REV","Revenue","R3962","Early Years - 3 and 4 Year Olds","05-THIRD","Third Party Payments","05A","Independent units within the council","6517","Non-Maintained Schools","3545315","202001",01/04/2019 00:00:00,20497.88,"59760","Playgroups, Nurseries and Creches","REDACTED DATA","LITTLE RASCALS (ILFORD) LTD","5813376","http://opencorporates.com/companies/gb/5813376",""
"London Borough of Redbridge","http://opendatacommunities.org/doc/london-borough-council/redbridge","3BNONSCHFUND","Non-School Funding","3CNONSCH","Non Schools","REV","Revenue","R3962","Early Years - 3 and 4 Year Olds","05-THIRD","Third Party Payments","05A","Independent units within the council","6517","Non-Maintained Schools","3548614","202001",29/04/2019 00:00:00,20497.88,"59760","Playgroups, Nurseries and Creches","REDACTED DATA","LITTLE RASCALS (ILFORD) LTD","5813376","http://opencorporates.com/companies/gb/5813376",""
"London Borough of Redbridge","http://opendatacommunities.org/doc/london-borough-council/redbridge","3BNONSCHFUND","Non-School Funding","3CNONSCH","Non Schools","REV","Revenue","R3962","Early Years - 3 and 4 Year Olds","05-THIRD","Third Party Payments","05A","Independent units within the council","6517","Non-Maintained Schools","3545412","202001",01/04/2019 00:00:00,20392.13,"59760","Playgroups, Nurseries and Creches","REDACTED DATA","ST PAULS BUSY BEES PRE SCHOOL NURSERY","EY437163","http://opencorporates.com/companies/gb/EY437163",""
"London Borough of Redbridge","http://opendatacommunities.org/doc/london-borough-council/redbridge","3BNONSCHFUND","Non-School Funding","3CNONSCH","Non Schools","REV","Revenue","R3962","Early Years - 3 and 4 Year Olds","05-THIRD","Third Party Payments","05A","Independent units within the council","6517","Non-Maintained Schools","3548711","202001",29/04/2019 00:00:00,20392.13,"59760","Playgroups, Nurseries and Creches","REDACTED DATA","ST PAULS BUSY BEES PRE SCHOOL NURSERY","EY437163","http://opencorporates.com/companies/gb/EY437163",""
"London Borough of Redbridge","http://opendatacommunities.org/doc/london-borough-council/redbridge","1BOTHEROPI&E","Other Operating Income & Expenditure","1CELECTIONS","Elections","REV","Revenue","R9362","Electoral Registration","04-SUPPLIES","Supplies And Services","04H","Grants and subscriptions","5956","Subscriptions","60401847","202001",01/05/2018 00:00:00,16750,"20703","Computer Systems and Software","REDACTED DATA","XPRESS SOFTWARE SOLUTIONS LTD","4152280","http://opencorporates.com/companies/gb/4152280","771293714"
"London Borough of Redbridge","http://opendatacommunities.org/doc/london-borough-council/redbridge","6BADULTSOCIA","Adult Social Care","6CADMENHLTH","Adults Under 65 with Mental Health Needs","REV","Revenue","R4190","MH - Residential Care","05-THIRD","Third Party Payments","05F","Voluntary associations","6802","Residential Homes","91045735","202001",27/03/2019 00:00:00,19831.76,"64710","Residential Care Homes","REDACTED DATA","SIGNHEALTH","2610559","http://opencorporates.com/companies/gb/2610559",""
"London Borough of Redbridge","http://opendatacommunities.org/doc/london-borough-council/redbridge","3BLEACENTFND","LEA Centrally Held School Funds","3CNONSCH","Non Schools","REV","Revenue","R2234","Colleges and ISP Top up fees","05-THIRD","Third Party Payments","05G","Other establishments","7433","OOB Post 16 Top Up","60402574","202001",31/03/2019 00:00:00,19734,"68200","Schools - Special","REDACTED DATA","HESLEY GROUP  LTD","2665377","http://opencorporates.com/companies/gb/2665377",""
"London Borough of Redbridge","http://opendatacommunities.org/doc/london-borough-council/redbridge","3BNONSCHFUND","Non-School Funding","3CSCHSTRATMG","Schools Strategic Management","REV","Revenue","R3003","IT Leasing","04-SUPPLIES","Supplies And Services","04A","Equipment, furniture and materials","5502","Equipment Purchase","60400853","202001",01/04/2019 00:00:00,16353,"52708","Network and Data Communications","REDACTED DATA","LONDON GRID FOR LEARNING TRUST","4205579","http://opencorporates.com/companies/gb/4205579","770756016"
"London Borough of Redbridge","http://opendatacommunities.org/doc/london-borough-council/redbridge","3BNONSCHFUND","Non-School Funding","3CNONSCH","Non Schools","REV","Revenue","R3962","Early Years - 3 and 4 Year Olds","05-THIRD","Third Party Payments","05A","Independent units within the council","6517","Non-Maintained Schools","3545498","202001",01/04/2019 00:00:00,19516.75,"59760","Playgroups, Nurseries and Creches","REDACTED DATA","ZEEBA NURSERY LTD","6875085","http://opencorporates.com/companies/gb/6875085",""
"London Borough of Redbridge","http://opendatacommunities.org/doc/london-borough-council/redbridge","3BNONSCHFUND","Non-School Funding","3CNONSCH","Non Schools","REV","Revenue","R3962","Early Years - 3 and 4 Year Olds","05-THIRD","Third Party Payments","05A","Independent units within the council","6517","Non-Maintained Schools","3548797","202001",29/04/2019 00:00:00,19516.75,"59760","Playgroups, Nurseries and Creches","REDACTED DATA","ZEEBA NURSERY LTD","6875085","http://opencorporates.com/companies/gb/6875085",""
"London Borough of Redbridge","http://opendatacommunities.org/doc/london-borough-council/redbridge","9BNONBVO","Outside the BVACOP Objective Structure","9CNONBVO","Outside the BVACOP Objective Structure","CAP","Capital","C2265","LED street light Replacement","99-NONBV","Capital, Balance Sheet and Control","50E","Capital - Contract Payments","9160","Highways Lighting","3547847","202001",18/04/2019 00:00:00,16108.5,"21555","Construction Contractors - General","REDACTED DATA","SKANSKA CONSTRUCTION UK LTD","191408","http://opencorporates.com/companies/gb/191408","378403142"
"London Borough of Redbridge","http://opendatacommunities.org/doc/london-borough-council/redbridge","6BADULTSOCIA","Adult Social Care","6CADMENHLTH","Adults Under 65 with Mental Health Needs","REV","Revenue","R4190","MH - Residential Care","05-THIRD","Third Party Payments","05F","Voluntary associations","6802","Residential Homes","91052469","202001",23/04/2019 00:00:00,512.5,"64710","Residential Care Homes","REDACTED DATA","ENDSLEIGH CARE LTD","7999328","http://opencorporates.com/companies/gb/7999328",""
"London Borough of Redbridge","http://opendatacommunities.org/doc/london-borough-council/redbridge","6BADULTSOCIA","Adult Social Care","6CADMENHLTH","Adults Under 65 with Mental Health Needs","REV","Revenue","R4190","MH - Residential Care","05-THIRD","Third Party Payments","05F","Voluntary associations","6802","Residential Homes","91052469","202001",23/04/2019 00:00:00,3136.5,"64710","Residential Care Homes","REDACTED DATA","ENDSLEIGH CARE LTD","7999328","http://opencorporates.com/companies/gb/7999328",""
"London Borough of Redbridge","http://opendatacommunities.org/doc/london-borough-council/redbridge","6BADULTSOCIA","Adult Social Care","6CADMENHLTH","Adults Under 65 with Mental Health Needs","REV","Revenue","R4190","MH - Residential Care","05-THIRD","Third Party Payments","05F","Voluntary associations","6802","Residential Homes","91052469","202001",23/04/2019 00:00:00,146.43,"64710","Residential Care Homes","REDACTED DATA","ENDSLEIGH CARE LTD","7999328","http://opencorporates.com/companies/gb/7999328",""
"London Borough of Redbridge","http://opendatacommunities.org/doc/london-borough-council/redbridge","6BADULTSOCIA","Adult Social Care","6CADMENHLTH","Adults Under 65 with Mental Health Needs","REV","Revenue","R4190","MH - Residential Care","05-THIRD","Third Party Payments","05F","Voluntary associations","6802","Residential Homes","91052469","202001",23/04/2019 00:00:00,15667.86,"64710","Residential Care Homes","REDACTED DATA","ENDSLEIGH CARE LTD","7999328","http://opencorporates.com/companies/gb/7999328",""
"London Borough of Redbridge","http://opendatacommunities.org/doc/london-borough-council/redbridge","6BADULTSOCIA","Adult Social Care","6CADMENHLTH","Adults Under 65 with Mental Health Needs","REV","Revenue","R4190","MH - Residential Care","05-THIRD","Third Party Payments","05F","Voluntary associations","6802","Residential Homes","91052469","202001",23/04/2019 00:00:00,219.64,"64710","Residential Care Homes","REDACTED DATA","ENDSLEIGH CARE LTD","7999328","http://opencorporates.com/companies/gb/7999328",""
"London Borough of Redbridge","http://opendatacommunities.org/doc/london-borough-council/redbridge","6BADULTSOCIA","Adult Social Care","6CADMENHLTH","Adults Under 65 with Mental Health Needs","REV","Revenue","R4190","MH - Residential Care","05-THIRD","Third Party Payments","05F","Voluntary associations","6802","Residential Homes","91052469","202001",23/04/2019 00:00:00,366.07,"64710","Residential Care Homes","REDACTED DATA","ENDSLEIGH CARE LTD","7999328","http://opencorporates.com/companies/gb/7999328",""
"London Borough of Redbridge","http://opendatacommunities.org/doc/london-borough-council/redbridge","6BADULTSOCIA","Adult Social Care","6CADMENHLTH","Adults Under 65 with Mental Health Needs","REV","Revenue","R4190","MH - Residential Care","05-THIRD","Third Party Payments","05F","Voluntary associations","6802","Residential Homes","91052469","202001",23/04/2019 00:00:00,366.07,"64710","Residential Care Homes","REDACTED DATA","ENDSLEIGH CARE LTD","7999328","http://opencorporates.com/companies/gb/7999328",""
"London Borough of Redbridge","http://opendatacommunities.org/doc/london-borough-council/redbridge","6BADULTSOCIA","Adult Social Care","6CADMENHLTH","Adults Under 65 with Mental Health Needs","REV","Revenue","R4190","MH - Residential Care","05-THIRD","Third Party Payments","05F","Voluntary associations","6802","Residential Homes","91052469","202001",23/04/2019 00:00:00,366.07,"64710","Residential Care Homes","REDACTED DATA","ENDSLEIGH CARE LTD","7999328","http://opencorporates.com/companies/gb/7999328",""
"London Borough of Redbridge","http://opendatacommunities.org/doc/london-borough-council/redbridge","6BADULTSOCIA","Adult Social Care","6CADMENHLTH","Adults Under 65 with Mental Health Needs","REV","Revenue","R4190","MH - Residential Care","05-THIRD","Third Party Payments","05F","Voluntary associations","6802","Residential Homes","91052469","202001",23/04/2019 00:00:00,-1537.5,"64710","Residential Care Homes","REDACTED DATA","ENDSLEIGH CARE LTD","7999328","http://opencorporates.com/companies/gb/7999328",""
"London Borough of Redbridge","http://opendatacommunities.org/doc/london-borough-council/redbridge","6BADULTSOCIA","Adult Social Care","6CADMENHLTH","Adults Under 65 with Mental Health Needs","REV","Revenue","R4190","MH - Residential Care","05-THIRD","Third Party Payments","05F","Voluntary associations","6802","Residential Homes","91052469","202001",23/04/2019 00:00:00,73.21,"64710","Residential Care Homes","REDACTED DATA","ENDSLEIGH CARE LTD","7999328","http://opencorporates.com/companies/gb/7999328",""
"London Borough of Redbridge","http://opendatacommunities.org/doc/london-borough-council/redbridge","3BNONSCHFUND","Non-School Funding","3CNONSCH","Non Schools","REV","Revenue","R3962","Early Years - 3 and 4 Year Olds","05-THIRD","Third Party Payments","05A","Independent units within the council","6517","Non-Maintained Schools","3548705","202001",29/04/2019 00:00:00,19246.5,"17580","Childcare Services","REDACTED DATA","DIZZY DUCKS DAY NURSERY LTD","5120112","http://opencorporates.com/companies/gb/5120112",""
"London Borough of Redbridge","http://opendatacommunities.org/doc/london-borough-council/redbridge","3BNONSCHFUND","Non-School Funding","3CNONSCH","Non Schools","REV","Revenue","R3962","Early Years - 3 and 4 Year Olds","05-THIRD","Third Party Payments","05A","Independent units within the council","6517","Non-Maintained Schools","3545406","202001",01/04/2019 00:00:00,19246.5,"17580","Childcare Services","REDACTED DATA","DIZZY DUCKS DAY NURSERY LTD","5120112","http://opencorporates.com/companies/gb/5120112",""
"London Borough of Redbridge","http://opendatacommunities.org/doc/london-borough-council/redbridge","3BNONSCHFUND","Non-School Funding","6CCHILLOOKED","Children Looked After","REV","Revenue","R2238","Looked After Children Placements LA","05-THIRD","Third Party Payments","05H","Private contractors","6907","Private Homes","60401168","202001",01/04/2019 00:00:00,19242.9,"17780","Children's Homes","REDACTED DATA","CARE 4 CHILDREN RESIDENTIAL SERVICES LTD","9097182","http://opencorporates.com/companies/gb/9097182",""
"London Borough of Redbridge","http://opendatacommunities.org/doc/london-borough-council/redbridge","3BNONSCHFUND","Non-School Funding","6CCHILLOOKED","Children Looked After","REV","Revenue","R2238","Looked After Children Placements LA","05-THIRD","Third Party Payments","05H","Private contractors","6907","Private Homes","60401242","202001",01/04/2019 00:00:00,19242.9,"17780","Children's Homes","REDACTED DATA","CARE 4 CHILDREN RESIDENTIAL SERVICES LTD","9097182","http://opencorporates.com/companies/gb/9097182",""
"London Borough of Redbridge","http://opendatacommunities.org/doc/london-borough-council/redbridge","6BADULTSOCIA","Adult Social Care","6CADPHYSDIS","Adults Under 65 with Phys Disab or Sensory Impair","REV","Revenue","R4186","PD Residential","05-THIRD","Third Party Payments","05F","Voluntary associations","6802","Residential Homes","91052303","202001",17/04/2019 00:00:00,1272.58,"17020","Charities and Voluntary Organisations","REDACTED DATA","RNID T/AS ACTION ON HEARING LOSS (SERVICES)","454169","http://opencorporates.com/companies/gb/454169","564524337"
"London Borough of Redbridge","http://opendatacommunities.org/doc/london-borough-council/redbridge","6BADULTSOCIA","Adult Social Care","6CADPHYSDIS","Adults Under 65 with Phys Disab or Sensory Impair","REV","Revenue","R4186","PD Residential","05-THIRD","Third Party Payments","05F","Voluntary associations","6802","Residential Homes","91052303","202001",17/04/2019 00:00:00,7788.18,"17020","Charities and Voluntary Organisations","REDACTED DATA","RNID T/AS ACTION ON HEARING LOSS (SERVICES)","454169","http://opencorporates.com/companies/gb/454169","564524337"
"London Borough of Redbridge","http://opendatacommunities.org/doc/london-borough-council/redbridge","6BADULTSOCIA","Adult Social Care","6CADPHYSDIS","Adults Under 65 with Phys Disab or Sensory Impair","REV","Revenue","R4186","PD Residential","05-THIRD","Third Party Payments","05F","Voluntary associations","6802","Residential Homes","91052303","202001",17/04/2019 00:00:00,11453.22,"17020","Charities and Voluntary Organisations","REDACTED DATA","RNID T/AS ACTION ON HEARING LOSS (SERVICES)","454169","http://opencorporates.com/companies/gb/454169","564524337"
"London Borough of Redbridge","http://opendatacommunities.org/doc/london-borough-council/redbridge","6BADULTSOCIA","Adult Social Care","6CADPHYSDIS","Adults Under 65 with Phys Disab or Sensory Impair","REV","Revenue","R4186","PD Residential","09-INCOME","Income","09C","Customer and Client Receipts","8555","Accommodation Charges","91052303","202001",17/04/2019 00:00:00,-735.75,"17020","Charities and Voluntary Organisations","REDACTED DATA","RNID T/AS ACTION ON HEARING LOSS (SERVICES)","454169","http://opencorporates.com/companies/gb/454169","564524337"
"London Borough of Redbridge","http://opendatacommunities.org/doc/london-borough-council/redbridge","6BADULTSOCIA","Adult Social Care","6CADPHYSDIS","Adults Under 65 with Phys Disab or Sensory Impair","REV","Revenue","R4186","PD Residential","09-INCOME","Income","09C","Customer and Client Receipts","8555","Accommodation Charges","91052303","202001",17/04/2019 00:00:00,-490.5,"17020","Charities and Voluntary Organisations","REDACTED DATA","RNID T/AS ACTION ON HEARING LOSS (SERVICES)","454169","http://opencorporates.com/companies/gb/454169","564524337"
"London Borough of Redbridge","http://opendatacommunities.org/doc/london-borough-council/redbridge","6BADULTSOCIA","Adult Social Care","6CADPHYSDIS","Adults Under 65 with Phys Disab or Sensory Impair","REV","Revenue","R4186","PD Residential","09-INCOME","Income","09C","Customer and Client Receipts","8555","Accommodation Charges","91052303","202001",17/04/2019 00:00:00,-81.75,"17020","Charities and Voluntary Organisations","REDACTED DATA","RNID T/AS ACTION ON HEARING LOSS (SERVICES)","454169","http://opencorporates.com/companies/gb/454169","564524337"
"London Borough of Redbridge","http://opendatacommunities.org/doc/london-borough-council/redbridge","9BNONBVO","Outside the BVACOP Objective Structure","9CNONBVO","Outside the BVACOP Objective Structure","REV","Revenue","R5132","Repairs and Maintenance - Other","02-PREMISES","Premises","02A","Repairs, alteration and maintenance of buildings","3037","Service Contracts","60400200","202001",22/03/2019 00:00:00,16000,"83900","Water Engineers","REDACTED DATA","3C ENVIRONMENTAL TECHNOLOGY LTD","5050004101","http://opencorporates.com/companies/gb/5050004101","329871913"
"London Borough of Redbridge","http://opendatacommunities.org/doc/london-borough-council/redbridge","6BADULTSOCIA","Adult Social Care","6CADLEARNDIS","Adults Under 65 with Learning Disabilities","REV","Revenue","R4215","LD Direct Payments","06-TRANSFER","Transfer Payments","06B","Social Services Clients","7053","Direct Payments","3549202","202001",29/04/2019 00:00:00,14820,"90005","Home Care Services DP","REDACTED DATA","REDACTED DATA","",,""
"London Borough of Redbridge","http://opendatacommunities.org/doc/london-borough-council/redbridge","6BADULTSOCIA","Adult Social Care","6CLONGT1864","Long-Term Support 18 - 64 Years","REV","Revenue","R4437","Learning Disabilities - Cranbrook & Loxford","06-TRANSFER","Transfer Payments","06B","Social Services Clients","7053","Direct Payments","3549202","202001",29/04/2019 00:00:00,4368,"90005","Home Care Services DP","REDACTED DATA","REDACTED DATA","",,""
"London Borough of Redbridge","http://opendatacommunities.org/doc/london-borough-council/redbridge","3BLEACENTFND","LEA Centrally Held School Funds","3CNONSCH","Non Schools","REV","Revenue","R3323","Little Heath Foundation School","05-THIRD","Third Party Payments","05G","Other establishments","7451","LMS Bank Accounts Pilot","70107612","202001",25/04/2019 00:00:00,4680.46,"67981","Schools - Local Authority","REDACTED DATA","LITTLE HEATH SCHOOL A/C","",,""
"London Borough of Redbridge","http://opendatacommunities.org/doc/london-borough-council/redbridge","3BLEACENTFND","LEA Centrally Held School Funds","3CNONSCH","Non Schools","REV","Revenue","R3323","Little Heath Foundation School","05-THIRD","Third Party Payments","05G","Other establishments","7451","LMS Bank Accounts Pilot","70107612","202001",25/04/2019 00:00:00,14400,"67981","Schools - Local Authority","REDACTED DATA","LITTLE HEATH SCHOOL A/C","",,""
"London Borough of Redbridge","http://opendatacommunities.org/doc/london-borough-council/redbridge","9BNONBVO","Outside the BVACOP Objective Structure","9CNONBVO","Outside the BVACOP Objective Structure","BAL","Balance Sheet","B0059","DUMMY VAT ACCOUNT","99-NONBV","Capital, Balance Sheet and Control","50L","Debtors","9359","VAT only invoices","70107167","202001",20/03/2019 00:00:00,19059.6,"47846","Letting Agents","REDACTED DATA","ALTWOOD HOUSING LTD","7199769","http://opencorporates.com/companies/gb/7199769","117931708"
"London Borough of Redbridge","http://opendatacommunities.org/doc/london-borough-council/redbridge","9BNONBVO","Outside the BVACOP Objective Structure","9CNONBVO","Outside the BVACOP Objective Structure","BAL","Balance Sheet","B0059","DUMMY VAT ACCOUNT","99-NONBV","Capital, Balance Sheet and Control","50L","Debtors","9359","VAT only invoices","70107167","202001",20/03/2019 00:00:00,-19059.6,"47846","Letting Agents","REDACTED DATA","ALTWOOD HOUSING LTD","7199769","http://opencorporates.com/companies/gb/7199769","117931708"
"London Borough of Redbridge","http://opendatacommunities.org/doc/london-borough-council/redbridge","6BPUBHEALTH","Public Health","6CMISCPHSERV","Miscellaneous Public Health Services","REV","Revenue","R4825","Public Mental Health","05-THIRD","Third Party Payments","05F","Voluntary associations","6800","Voluntary Organisations","60398786","201912",18/02/2019 00:00:00,19000,"48583","Local Government","REDACTED DATA","LONDON BOROUGH OF SUTTON","",,""
"London Borough of Redbridge","http://opendatacommunities.org/doc/london-borough-council/redbridge","9BNONBVO","Outside the BVACOP Objective Structure","9CNONBVO","Outside the BVACOP Objective Structure","BAL","Balance Sheet","B0343","CHILDCARE VOUCHER SCHEME","99-NONBV","Capital, Balance Sheet and Control","50Q","Other Balances & Reserves","9910","Personal Account - Debtor","70107633","202001",26/04/2019 00:00:00,18764.5,"17580","Childcare Services","REDACTED DATA","CHILDCARE VOUCHERS LTD(ACC:154321)- T/AS  EDENRED UK","2420196","http://opencorporates.com/companies/gb/2420196","649503520"
"London Borough of Redbridge","http://opendatacommunities.org/doc/london-borough-council/redbridge","9BNONBVO","Outside the BVACOP Objective Structure","9CNONBVO","Outside the BVACOP Objective Structure","REV","Revenue","R0064","Salaries Oncost","04-SUPPLIES","Supplies And Services","04K","Miscellaneous expenses","6280","Miscellaneous Expenditure","70107633","202001",26/04/2019 00:00:00,75.06,"17580","Childcare Services","REDACTED DATA","CHILDCARE VOUCHERS LTD(ACC:154321)- T/AS  EDENRED UK","2420196","http://opencorporates.com/companies/gb/2420196","649503520"
"London Borough of Redbridge","http://opendatacommunities.org/doc/london-borough-council/redbridge","3BNONSCHFUND","Non-School Funding","3CNONSCH","Non Schools","REV","Revenue","R3962","Early Years - 3 and 4 Year Olds","05-THIRD","Third Party Payments","05A","Independent units within the council","6517","Non-Maintained Schools","3545333","202001",01/04/2019 00:00:00,18852.88,"59760","Playgroups, Nurseries and Creches","REDACTED DATA","AL-FALAH THE SUNFLOWER NURSERY","",,""
"London Borough of Redbridge","http://opendatacommunities.org/doc/london-borough-council/redbridge","3BNONSCHFUND","Non-School Funding","3CNONSCH","Non Schools","REV","Revenue","R3962","Early Years - 3 and 4 Year Olds","05-THIRD","Third Party Payments","05A","Independent units within the council","6517","Non-Maintained Schools","3548632","202001",29/04/2019 00:00:00,18852.88,"59760","Playgroups, Nurseries and Creches","REDACTED DATA","AL-FALAH THE SUNFLOWER NURSERY","",,""
"London Borough of Redbridge","http://opendatacommunities.org/doc/london-borough-council/redbridge","3BNONSCHFUND","Non-School Funding","3CNONSCH","Non Schools","REV","Revenue","R3962","Early Years - 3 and 4 Year Olds","05-THIRD","Third Party Payments","05A","Independent units within the council","6517","Non-Maintained Schools","3548631","202001",29/04/2019 00:00:00,18831.73,"59760","Playgroups, Nurseries and Creches","REDACTED DATA","TAMBA DAY NURSERY LIMITED","",,""
"London Borough of Redbridge","http://opendatacommunities.org/doc/london-borough-council/redbridge","3BNONSCHFUND","Non-School Funding","3CNONSCH","Non Schools","REV","Revenue","R3962","Early Years - 3 and 4 Year Olds","05-THIRD","Third Party Payments","05A","Independent units within the council","6517","Non-Maintained Schools","3545332","202001",01/04/2019 00:00:00,18831.73,"59760","Playgroups, Nurseries and Creches","REDACTED DATA","TAMBA DAY NURSERY LIMITED","",,""
"London Borough of Redbridge","http://opendatacommunities.org/doc/london-borough-council/redbridge","2BPLAN&DEVEL","Planning & Development Services","2CCOMMDEVT","Community Development","REV","Revenue","R9854","Voluntary Sector Support","04-SUPPLIES","Supplies And Services","04H","Grants and subscriptions","5951","New Initiatives","60401037","202001",03/04/2019 00:00:00,18750,"71855","Social Services","REDACTED DATA","REDBRIDGE COUNCIL FOR VOLUNTARY SERVICES","2569614","http://opencorporates.com/companies/gb/2569614",""
"London Borough of Redbridge","http://opendatacommunities.org/doc/london-borough-council/redbridge","1BOTHEROPI&E","Other Operating Income & Expenditure","1CTRADSURDEF","Trading Account Surpluses & Deficits","REV","Revenue","R9154","Audit","04-SUPPLIES","Supplies And Services","04E","Services","5754","Consultancy","60401109","202001",04/04/2019 00:00:00,15599,"5480","Auditors","REDACTED DATA","PRICEWATERHOUSECOOPERS","OC303525","http://opencorporates.com/companies/gb/OC303525","243823957"
"London Borough of Redbridge","http://opendatacommunities.org/doc/london-borough-council/redbridge","4BPUBLICTRAN","Public Transport","4CPARKING","Parking Services","REV","Revenue","R7037","Attendants Parking Enforcement","05-THIRD","Third Party Payments","05H","Private contractors","6911","Parking and Traffic Enforcement Contract","60401143","202001",03/04/2019 00:00:00,18608,"48583","Local Government","REDACTED DATA","CITY OF LONDON(LONDON COUNCILS)","",,"766069205"
"London Borough of Redbridge","http://opendatacommunities.org/doc/london-borough-council/redbridge","1BOTHEROPI&E","Other Operating Income & Expenditure","1CTRADSURDEF","Trading Account Surpluses & Deficits","REV","Revenue","R9578","Misc Properties","04-SUPPLIES","Supplies And Services","04H","Grants and subscriptions","5954","Professional Fees","60400336","202001",26/03/2019 00:00:00,15412.5,"74700","Surveyors and Valuers","REDACTED DATA","KNIGHT FRANK LLP","OC305934","http://opencorporates.com/companies/gb/OC305934","238515653"
"London Borough of Redbridge","http://opendatacommunities.org/doc/london-borough-council/redbridge","1BOTHEROPI&E","Other Operating Income & Expenditure","1CTRADSURDEF","Trading Account Surpluses & Deficits","REV","Revenue","R9252","IT Applications","04-SUPPLIES","Supplies And Services","04E","Services","5754","Consultancy","60400337","201912",26/03/2019 00:00:00,15215,"12100","Business and Management Consultants","REDACTED DATA","BLOOM PROCUREMENT SERVICES LTD","8045123","http://opencorporates.com/companies/gb/8045123","157489170"
"London Borough of Redbridge","http://opendatacommunities.org/doc/london-borough-council/redbridge","3BLEACENTFND","LEA Centrally Held School Funds","3CNONSCH","Non Schools","REV","Revenue","R2232","Mainstream Units SEN Provision Top up Fees","05-THIRD","Third Party Payments","05G","Other establishments","7430","LBR Pre 16 Top Up","3545293","202001",25/03/2019 00:00:00,18257.33,"67981","Schools - Local Authority","REDACTED DATA","THE FOREST ACADEMY","7835788","http://opencorporates.com/companies/gb/7835788",""
